Workbook

Sheet برنامج محاسبه الاقساط

Sheet ورقة1 (hidden)

Sheet اجمالي المبيعات
B1: تاريخ اليوم | C1: =TODAY() -> 2020-05-21 | D1: =NOW() -> 43972.20113 | E1: الوقت الحالي | G1: بسم الله الرحمن الرحيم | J1: بسم الله ماشاء الله
A2: رقم الملف | B2: تاريخ الشراء | C2: اسم العميل | D2: اسم الجهاز | E2: تاريخ بدايةقسط | F2: تاريخ اخرقسط | G2: سعر الجملة | H2: سعر البيع | I2: الربح | J2: المقدم | K2: الصافي | L2: عدد قسط | M2: فوائد القسط | N2: الاجمالي بعد الفوائد | O2: القسط | P2: يناير | Q2: فبراير | R2: مارس | S2: ابريل | T2: مايو | U2: يونيو | V2: يوليو | W2: اغسطس | X2: سمبتمبر | Y2: اكتوبر | Z2: نوفمبر | AA2: ديسمبر | AB2: صافي القسط | AC2: عمود21 | AD2: اسم الضامن | AE2: رقم الضامن | AF2: رقم الوصل | AG2: تاريخ الشراء2 | AH2: ملاحظات | AI2: عمود1 | AJ2: عمود2
A3: 1 | B3: 2019-01-10 | C3: عثمان كريم | D3: a303 | E3: 2019-01-11 | F3: =EDATE(الجدول1[[#This Row],[تاريخ بدايةقسط]],الجدول1[[#This Row],[عدد قسط]]-1) -> 2019-10-11 | G3: 3720 | H3: 3750 | I3: =H3-G3 -> 30 | J3: 0 | K3: =H3-J3 -> 3750 | L3: 10 | M3: =K3*30/100 -> 1125 | N3: =SUM(M3+K3) -> 4875 | O3: =الجدول1[[#This Row],[الاجمالي بعد الفوائد]]/الجدول1[[#This Row],[عدد قسط]] -> 487.5 | Z3: 487.5 | AA3: 487.5 | AB3: =M3+K3-(AA3+Z3+Y3+X3+W3+V3+U3+T3+S3+R3+Q3+P3) -> 3900 | AC3: 1121212127
A4: 2 | B4: 2019-01-10 | C4: عبد الباقي محمد | D4: k2x | E4: 2019-01-11 | F4: =EDATE(الجدول1[[#This Row],[تاريخ بدايةقسط]],الجدول1[[#This Row],[عدد قسط]]-1) -> 2019-08-11 | G4: 3880 | H4: 3900 | I4: 20 | J4: 900 | K4: 3000 | L4: 8 | M4: =K4*30/100 -> 900 | N4: 3900 | O4: =الجدول1[[#This Row],[الاجمالي بعد الفوائد]]/الجدول1[[#This Row],[عدد قسط]] -> 487.5 | Z4: 487.5 | AA4: 487.5 | AB4: =M4+K4-(AA4+Z4+Y4+X4+W4+V4+U4+T4+S4+R4+Q4+P4) -> 2925
A5: 3 | B5: 2019-01-10 | C5: محمود عربي | D5: a55 | E5: 2019-01-11 | F5: =EDATE(الجدول1[[#This Row],[تاريخ بدايةقسط]],الجدول1[[#This Row],[عدد قسط]]-1) -> 2019-09-11 | G5: 2620 | H5: 2650 | I5: 30 | J5: 500 | K5: 2150 | L5: 9 | M5: 645 | N5: 2795 | O5: =الجدول1[[#This Row],[الاجمالي بعد الفوائد]]/الجدول1[[#This Row],[عدد قسط]] -> 310.5555556 | Z5: 306.5 | AA5: 306.5 | AB5: =M5+K5-(AA5+Z5+Y5+X5+W5+V5+U5+T5+S5+R5+Q5+P5) -> 2182 | AC5: 1121212127
A6: 4 | B6: 2019-01-10 | C6: عم ممدوح | D6: سمارت 2 | E6: 2019-01-11 | F6: =EDATE(الجدول1[[#This Row],[تاريخ بدايةقسط]],الجدول1[[#This Row],[عدد قسط]]-1) -> 2019-07-11 | G6: 1430 | H6: 1450 | I6: 20 | J6: 450 | K6: 1000 | L6: 7 | M6: 300 | N6: 1300 | O6: =الجدول1[[#This Row],[الاجمالي بعد الفوائد]]/الجدول1[[#This Row],[عدد قسط]] -> 185.7142857 | Z6: 185.7 | AA6: 185.7 | AB6: =M6+K6-(AA6+Z6+Y6+X6+W6+V6+U6+T6+S6+R6+Q6+P6) -> 928.6
A7: 5 | B7: 2019-01-10 | C7: عم ممدح حازم | D7: سمارت 2 | E7: 2019-01-11 | F7: =EDATE(الجدول1[[#This Row],[تاريخ بدايةقسط]],الجدول1[[#This Row],[عدد قسط]]-1) -> 2019-08-11 | G7: 1430 | H7: 1450 | I7: 20 | J7: 450 | K7: 1000 | L7: 8 | M7: 300 | N7: 1300 | O7: =الجدول1[[#This Row],[الاجمالي بعد الفوائد]]/الجدول1[[#This Row],[عدد قسط]] -> 162.5 | Z7: 162.5 | AA7: 162.5 | AB7: 975 | AC7: 1121212127
A8: 6 | B8: 2019-01-10 | C8: رضا رجب علي | D8: اوبو f11 | E8: 2019-01-11 | F8: =EDATE(الجدول1[[#This Row],[تاريخ بدايةقسط]],الجدول1[[#This Row],[عدد قسط]]-1) -> 2019-10-11 | G8: 4950 | H8: 5000 | I8: 50 | J8: 1000 | K8: 4000 | L8: 10 | M8: 1200 | N8: 5200 | O8: =الجدول1[[#This Row],[الاجمالي بعد الفوائد]]/الجدول1[[#This Row],[عدد قسط]] -> 520 | Z8: 520 | AA8: 520 | AB8: 4160 | AC8: 1121212127
A9: 7 | B9: 2019-01-10 | C9: عاطف السيد لمونه | D9: a20 | E9: 2019-01-11 | F9: =EDATE(الجدول1[[#This Row],[تاريخ بدايةقسط]],الجدول1[[#This Row],[عدد قسط]]-1) -> 2019-08-11 | G9: 2600 | H9: 2650 | I9: 50 | J9: 550 | K9: 2100 | L9: 8 | M9: 630 | N9: 2730 | O9: =الجدول1[[#This Row],[الاجمالي بعد الفوائد]]/الجدول1[[#This Row],[عدد قسط]] -> 341.25 | Z9: 341.3 | AA9: 341.3 | AB9: 2047.4 | AC9: 1121212127
A10: 8 | B10: 2019-01-10 | C10: ابراهيم احمد عباس | D10: y72019 | E10: 2019-01-11 | F10: =EDATE(الجدول1[[#This Row],[تاريخ بدايةقسط]],الجدول1[[#This Row],[عدد قسط]]-1) -> 2019-08-11 | G10: 2570 | H10: 2600 | I10: 30 | J10: 600 | K10: 2000 | L10: 8 | M10: 600 | N10: 2600 | O10: =الجدول1[[#This Row],[الاجمالي بعد الفوائد]]/الجدول1[[#This Row],[عدد قسط]] -> 325 | Z10: 325 | AA10: 325 | AB10: 1950 | AC10: 1121212127
A11: 9 | B11: 2019-01-10 | C11: علي الزنوني علي | D11: y72019 | E11: 2019-01-11 | F11: =EDATE(الجدول1[[#This Row],[تاريخ بدايةقسط]],الجدول1[[#This Row],[عدد قسط]]-1) -> 2019-08-11 | G11: 2520 | H11: 2550 | I11: 30 | J11: 550 | K11: 2000 | L11: 8 | M11: 600 | N11: 2600 | O11: =الجدول1[[#This Row],[الاجمالي بعد الفوائد]]/الجدول1[[#This Row],[عدد قسط]] -> 325 | Z11: 325 | AA11: 325 | AB11: 1950 | AC11: 1121212127
A12: 10 | B12: 2019-01-11 | C12: محمد طه صادق | D12: f11 | E12: 2019-01-12 | F12: =EDATE(الجدول1[[#This Row],[تاريخ بدايةقسط]],الجدول1[[#This Row],[عدد قسط]]-1) -> 2019-10-12 | G12: 4820 | H12: 4850 | I12: 30 | J12: 850 | K12: 4000 | L12: 10 | M12: 1200 | N12: 5200 | O12: =الجدول1[[#This Row],[الاجمالي بعد الفوائد]]/الجدول1[[#This Row],[عدد قسط]] -> 520 | AA12: 520 | AB12: 4680 | AC12: 1121212127
A13: 11 | B13: 2019-01-11 | C13: محمد احمد حسين | D13: A20s | E13: 2019-01-12 | F13: =EDATE(الجدول1[[#This Row],[تاريخ بدايةقسط]],الجدول1[[#This Row],[عدد قسط]]-1) -> 2019-10-12 | G13: 2820 | H13: 2850 | I13: 30 | J13: 500 | K13: 2350 | L13: 10 | M13: 705 | N13: 3055 | O13: =الجدول1[[#This Row],[الاجمالي بعد الفوائد]]/الجدول1[[#This Row],[عدد قسط]] -> 305.5 | AA13: 305.5 | AB13: 2749.5 | AC13: 1121212127
A14: 12 | B14: 2019-01-11 | C14: جمال الجندي | D14: a105 | E14: 2019-01-12 | F14: =EDATE(الجدول1[[#This Row],[تاريخ بدايةقسط]],الجدول1[[#This Row],[عدد قسط]]-1) -> 2019-08-12 | G14: 2120 | H14: 2150 | I14: 30 | J14: 250 | K14: 1900 | L14: 8 | M14: 570 | N14: 2470 | O14: =الجدول1[[#This Row],[الاجمالي بعد الفوائد]]/الجدول1[[#This Row],[عدد قسط]] -> 308.75 | AA14: 308.5 | AB14: 2161.5 | AC14: 1121212127
A15: 13 | B15: 2019-01-11 | C15: محمد محمود سليم | D15: a10s | E15: 2019-01-12 | F15: =EDATE(الجدول1[[#This Row],[تاريخ بدايةقسط]],الجدول1[[#This Row],[عدد قسط]]-1) -> 2019-09-12 | G15: 2120 | H15: 2150 | I15: 30 | J15: 150 | K15: 2000 | L15: 9 | M15: 600 | N15: 2600 | O15: =الجدول1[[#This Row],[الاجمالي بعد الفوائد]]/الجدول1[[#This Row],[عدد قسط]] -> 288.8888889 | AA15: 288.9 | AB15: 2311.1 | AC15: 1121212127
A16: 14 | B16: 2019-01-11 | C16: عبد الله احمد عبد العاطي | D16: A20s | E16: 2019-01-12 | F16: =EDATE(الجدول1[[#This Row],[تاريخ بدايةقسط]],الجدول1[[#This Row],[عدد قسط]]-1) -> 2019-10-12 | G16: 2820 | H16: 2850 | I16: 30 | J16: 500 | K16: 2350 | L16: 10 | M16: 705 | N16: 3055 | O16: =الجدول1[[#This Row],[الاجمالي بعد الفوائد]]/الجدول1[[#This Row],[عدد قسط]] -> 305.5 | AA16: 305.5 | AB16: 2749.5 | AC16: 15556663
A17: 15 | B17: 2019-01-11 | C17: طارق عبد الجواد محمد | D17: hot8 | E17: 2019-01-12 | F17: =EDATE(الجدول1[[#This Row],[تاريخ بدايةقسط]],الجدول1[[#This Row],[عدد قسط]]-1) -> 2019-05-12 | G17: 1800 | H17: 1830 | I17: 30 | J17: 630 | K17: 1200 | L17: 5 | M17: 360 | N17: 1560 | O17: =الجدول1[[#This Row],[الاجمالي بعد الفوائد]]/الجدول1[[#This Row],[عدد قسط]] -> 312 | AA17: 312 | AB17: 1248 | AC17: 1121212127
A18: 16 | B18: 2019-01-11 | C18: عادل سيد محمد | D18: HOT7 | E18: 2019-01-12 | F18: =EDATE(الجدول1[[#This Row],[تاريخ بدايةقسط]],الجدول1[[#This Row],[عدد قسط]]-1) -> 2019-07-12 | G18: 1690 | H18: 1710 | I18: 20 | J18: 0 | K18: 1710 | L18: 7 | M18: 513 | N18: 2223 | O18: =الجدول1[[#This Row],[الاجمالي بعد الفوائد]]/الجدول1[[#This Row],[عدد قسط]] -> 317.5714286 | AA18: 317.6 | AB18: 1905.4 | AC18: 1121212127
A19: 17 | B19: 1/112019 | C19: محمود ناصر محمد مغاغه | D19: HOT8 | E19: 2019-01-12 | F19: =EDATE(الجدول1[[#This Row],[تاريخ بدايةقسط]],الجدول1[[#This Row],[عدد قسط]]-1) -> 2019-09-12 | G19: 1780 | H19: 1800 | I19: 20 | J19: 0 | K19: 1800 | L19: 9 | M19: 540 | N19: 2340 | O19: =الجدول1[[#This Row],[الاجمالي بعد الفوائد]]/الجدول1[[#This Row],[عدد قسط]] -> 260 | AA19: 260 | AB19: 2080 | AC19: 1121212127
A20: 18 | B20: 2019-01-10 | C20: اشرف محمد عبد الله | D20: A20S | E20: 2019-01-12 | F20: =EDATE(الجدول1[[#This Row],[تاريخ بدايةقسط]],الجدول1[[#This Row],[عدد قسط]]-1) -> 2019-08-12 | G20: 2500 | H20: 2500 | I20: 0 | J20: 500 | K20: 2000 | L20: 8 | M20: 600 | N20: 2600 | O20: =الجدول1[[#This Row],[الاجمالي بعد الفوائد]]/الجدول1[[#This Row],[عدد قسط]] -> 325 | AA20: 325 | AB20: 2275 | AC20: 1121212127 | AG20: 15/9/20119
A21: 19 | B21: 2019-01-12 | C21: محمود رجب محمود | D21: ريلمي5 | E21: 2020-01-01 | F21: =EDATE(الجدول1[[#This Row],[تاريخ بدايةقسط]],الجدول1[[#This Row],[عدد قسط]]-1) -> 2020-03-01 | G21: 2620 | H21: 2650 | I21: 30 | J21: 2000 | K21: 650 | L21: 3 | M21: 195 | N21: 845 | O21: =الجدول1[[#This Row],[الاجمالي بعد الفوائد]]/الجدول1[[#This Row],[عدد قسط]] -> 281.6666667 | AB21: 845 | AC21: 1121212127
A22: 20 | B22: 2019-01-12 | C22: خالد وليد رجب | D22: HOT86 | E22: 2020-01-01 | F22: =EDATE(الجدول1[[#This Row],[تاريخ بدايةقسط]],الجدول1[[#This Row],[عدد قسط]]-1) -> 2020-05-01 | G22: 2160 | H22: 2180 | I22: 20 | J22: 1000 | K22: 1180 | L22: 5 | M22: 354 | N22: 1534 | O22: =الجدول1[[#This Row],[الاجمالي بعد الفوائد]]/الجدول1[[#This Row],[عدد قسط]] -> 306.8 | AB22: 1534 | AC22: 1121212127
A23: 21 | B23: 2019-01-12 | C23: عز الدين علي صابر | D23: X9 | E23: 2020-01-01 | F23: =EDATE(الجدول1[[#This Row],[تاريخ بدايةقسط]],الجدول1[[#This Row],[عدد قسط]]-1) -> 2020-08-01 | G23: 4150 | H23: 4200 | I23: 50 | J23: 2200 | K23: 2000 | L23: 8 | M23: 600 | N23: 2600 | O23: =الجدول1[[#This Row],[الاجمالي بعد الفوائد]]/الجدول1[[#This Row],[عدد قسط]] -> 325 | AB23: 2600 | AC23: 5532525
A24: 22 | B24: 2019-01-12 | C24: مؤمن جمال محمد | D24: ستار4 | E24: 2020-01-01 | F24: =EDATE(الجدول1[[#This Row],[تاريخ بدايةقسط]],الجدول1[[#This Row],[عدد قسط]]-1) -> 2020-04-01 | G24: 1620 | H24: 1650 | I24: 30 | J24: 650 | K24: 1000 | L24: 4 | M24: 300 | N24: 1300 | O24: =الجدول1[[#This Row],[الاجمالي بعد الفوائد]]/الجدول1[[#This Row],[عدد قسط]] -> 325 | AB24: 1300 | AC24: 5545853
A25: 23 | B25: 2019-01-12 | C25: مصطفي محمود | D25: Y92019 | E25: 2020-01-01 | F25: =EDATE(الجدول1[[#This Row],[تاريخ بدايةقسط]],الجدول1[[#This Row],[عدد قسط]]-1) -> 2020-10-01 | G25: 3560 | H25: 3600 | I25: 40 | J25: 1000 | K25: 2600 | L25: 10 | M25: 780 | N25: 3380 | O25: =الجدول1[[#This Row],[الاجمالي بعد الفوائد]]/الجدول1[[#This Row],[عدد قسط]] -> 338 | AB25: 3380 | AC25: 1121212127
A26: 24 | B26: 2019-01-12 | C26: حسين امين جمال | D26: Y72019 | E26: 2020-01-01 | F26: =EDATE(الجدول1[[#This Row],[تاريخ بدايةقسط]],الجدول1[[#This Row],[عدد قسط]]-1) -> 2020-05-01 | G26: 2180 | H26: 2200 | I26: 20 | J26: 200 | K26: 2000 | L26: 5 | M26: 600 | N26: 2600 | O26: =الجدول1[[#This Row],[الاجمالي بعد الفوائد]]/الجدول1[[#This Row],[عدد قسط]] -> 520 | AB26: 2600 | AG26: 2019-10-10
A27: 25 | B27: 2019-01-12 | C27: كريم عبد الناصر | D27: ريلمي5 برو | E27: 2020-01-01 | F27: =EDATE(الجدول1[[#This Row],[تاريخ بدايةقسط]],الجدول1[[#This Row],[عدد قسط]]-1) -> 2020-10-01 | G27: 3720 | H27: 3750 | I27: 30 | J27: 1050 | K27: 2700 | L27: 10 | M27: 810 | N27: 3510 | O27: =الجدول1[[#This Row],[الاجمالي بعد الفوائد]]/الجدول1[[#This Row],[عدد قسط]] -> 351 | AB27: 3510 | AC27: 1121212127
A28: 26 | B28: 2020-01-01 | C28: احمد السيد محمد | D28: HOT8 | E28: 2020-01-02 | F28: =EDATE(الجدول1[[#This Row],[تاريخ بدايةقسط]],الجدول1[[#This Row],[عدد قسط]]-1) -> 2020-06-02 | G28: 1820 | H28: 1850 | I28: 30 | J28: 350 | K28: 1500 | L28: 6 | M28: 450 | N28: 1950 | O28: =الجدول1[[#This Row],[الاجمالي بعد الفوائد]]/الجدول1[[#This Row],[عدد قسط]] -> 325 | AB28: 1950 | AC28: 1121212127
A29: 27 | B29: 2020-01-01 | C29: عبد الحميد السيد | D29: اوبو+A10 | E29: 2020-01-02 | F29: =EDATE(الجدول1[[#This Row],[تاريخ بدايةقسط]],الجدول1[[#This Row],[عدد قسط]]-1) -> 2020-10-02 | G29: 7350 | H29: 7400 | I29: 50 | J29: 2000 | K29: 5400 | L29: 10 | M29: 1620 | N29: 7020 | O29: =الجدول1[[#This Row],[الاجمالي بعد الفوائد]]/الجدول1[[#This Row],[عدد قسط]] -> 702 | AB29: 7020 | AC29: 1121212127
A30: 28 | B30: 2020-01-01 | C30: محمد خالد سرحان | D30: Y72019 | E30: 2020-01-02 | F30: =EDATE(الجدول1[[#This Row],[تاريخ بدايةقسط]],الجدول1[[#This Row],[عدد قسط]]-1) -> 2020-05-02 | G30: 2280 | H30: 2300 | I30: 20 | J30: 1000 | K30: 1300 | L30: 5 | M30: 390 | N30: 1690 | O30: =الجدول1[[#This Row],[الاجمالي بعد الفوائد]]/الجدول1[[#This Row],[عدد قسط]] -> 338 | AB30: 1690
A31: 29 | B31: 2020-01-01 | C31: احمد رجب مينو | D31: اوبوF | E31: 2020-01-02 | F31: =EDATE(الجدول1[[#This Row],[تاريخ بدايةقسط]],الجدول1[[#This Row],[عدد قسط]]-1) -> 2020-10-02 | G31: 5250 | H31: 5300 | I31: 50 | J31: 2300 | K31: 3000 | L31: 10 | M31: 900 | N31: 3900 | O31: =الجدول1[[#This Row],[الاجمالي بعد الفوائد]]/الجدول1[[#This Row],[عدد قسط]] -> 390 | AB31: 3900 | AC31: 1121212127
A32: 30 | B32: 2019-01-12 | C32: عصام سوريا | D32: a51 | E32: 2020-01-01 | F32: =EDATE(الجدول1[[#This Row],[تاريخ بدايةقسط]],الجدول1[[#This Row],[عدد قسط]]-1) -> 2020-12-01 | G32: 5200 | H32: 5200 | I32: 0 | J32: 0 | K32: 5200 | L32: 12 | M32: 1560 | N32: 6760 | O32: =الجدول1[[#This Row],[الاجمالي بعد الفوائد]]/الجدول1[[#This Row],[عدد قسط]] -> 563.3333333 | AB32: 6760 | AC32: 1121212127
A33: 31 | B33: 2019-01-12 | C33: عصام سوريا2 | D33: a51 | E33: 2020-01-01 | F33: =EDATE(الجدول1[[#This Row],[تاريخ بدايةقسط]],الجدول1[[#This Row],[عدد قسط]]-1) -> 2020-12-01 | G33: 5540 | H33: 5540 | I33: 0 | J33: 0 | K33: 5540 | L33: 12 | M33: 1662 | N33: 7202 | O33: =الجدول1[[#This Row],[الاجمالي بعد الفوائد]]/الجدول1[[#This Row],[عدد قسط]] -> 600.1666667 | AB33: 7202 | AC33: 14525255
A34: 32 | B34: 2020-01-02 | C34: ابو يوسف العاشر3 | D34: a30s | E34: 2020-01-03 | F34: =EDATE(الجدول1[[#This Row],[تاريخ بدايةقسط]],الجدول1[[#This Row],[عدد قسط]]-1) -> 2020-12-03 | G34: 3500 | H34: 3500 | I34: 0 | J34: 0 | K34: 3500 | L34: 12 | M34: 1050 | N34: 4550 | O34: =الجدول1[[#This Row],[الاجمالي بعد الفوائد]]/الجدول1[[#This Row],[عدد قسط]] -> 379.1666667 | AB34: 4550 | AC34: 1121212127
A35: 33 | B35: 2020-01-02 | C35: احمد السيد محمد | D35: سمارت 2 | E35: 2020-01-03 | F35: =EDATE(الجدول1[[#This Row],[تاريخ بدايةقسط]],الجدول1[[#This Row],[عدد قسط]]-1) -> 2020-05-03 | G35: 1430 | H35: 1450 | I35: 20 | J35: 170 | K35: 1280 | L35: 5 | M35: 384 | N35: 1664 | O35: =الجدول1[[#This Row],[الاجمالي بعد الفوائد]]/الجدول1[[#This Row],[عدد قسط]] -> 332.8 | AB35: 1664 | AC35: 1121212127
A36: 34 | B36: 2020-01-02 | C36: محمد رجب محمد | D36: y9 | E36: 2020-01-03 | F36: =EDATE(الجدول1[[#This Row],[تاريخ بدايةقسط]],الجدول1[[#This Row],[عدد قسط]]-1) -> 2020-10-03 | G36: 3380 | H36: 3400 | I36: 20 | J36: 500 | K36: 2900 | L36: 10 | M36: 870 | N36: 3770 | O36: =الجدول1[[#This Row],[الاجمالي بعد الفوائد]]/الجدول1[[#This Row],[عدد قسط]] -> 377 | AB36: 3770 | AC36: 1121212127
A37: 35 | B37: 2020-01-02 | C37: مصطفي احمد عبد العظيم | D37: a10s | E37: 2020-01-03 | F37: =EDATE(الجدول1[[#This Row],[تاريخ بدايةقسط]],الجدول1[[#This Row],[عدد قسط]]-1) -> 2020-07-03 | G37: 2090 | H37: 2100 | I37: 10 | J37: 500 | K37: 1600 | L37: 7 | M37: 480 | N37: 2080 | O37: =الجدول1[[#This Row],[الاجمالي بعد الفوائد]]/الجدول1[[#This Row],[عدد قسط]] -> 297.1428571 | AB37: 2080 | AC37: 1121212127 | AG37: 5/9/20119
A38: 36 | B38: 2020-01-02 | C38: طاهر علي عبد الوهاب | D38: hot8 | E38: 2020-01-03 | F38: =EDATE(الجدول1[[#This Row],[تاريخ بدايةقسط]],الجدول1[[#This Row],[عدد قسط]]-1) -> 2020-06-03 | G38: 1820 | H38: 1830 | I38: 10 | J38: 0 | K38: 1830 | L38: 6 | M38: 549 | N38: 2379 | O38: =الجدول1[[#This Row],[الاجمالي بعد الفوائد]]/الجدول1[[#This Row],[عدد قسط]] -> 396.5 | AB38: 2379 | AC38: 1121212127 | AG38: 5/9/20119
A39: 37 | B39: 2020-01-03 | C39: حسن فؤاد حسن | D39: a20s | E39: 2020-01-04 | F39: =EDATE(الجدول1[[#This Row],[تاريخ بدايةقسط]],الجدول1[[#This Row],[عدد قسط]]-1) -> 2020-09-04 | G39: 2580 | H39: 2600 | I39: 20 | J39: 500 | K39: 2100 | L39: 9 | M39: 630 | N39: 2730 | O39: =الجدول1[[#This Row],[الاجمالي بعد الفوائد]]/الجدول1[[#This Row],[عدد قسط]] -> 303.3333333 | AB39: 2730 | AC39: 1121212127
A40: 38 | B40: 2020-01-04 | C40: طارق عبد الجواد | D40: hot8 | E40: 2020-01-05 | F40: =EDATE(الجدول1[[#This Row],[تاريخ بدايةقسط]],الجدول1[[#This Row],[عدد قسط]]-1) -> 2020-08-05 | G40: 1820 | H40: 1850 | I40: 30 | J40: 0 | K40: 1850 | L40: 8 | M40: 555 | N40: 2405 | O40: =الجدول1[[#This Row],[الاجمالي بعد الفوائد]]/الجدول1[[#This Row],[عدد قسط]] -> 300.625 | AB40: 2405 | AG40: 2019-10-10
A41: 39 | B41: 2020-01-03 | C41: اشرف محمد قطب | D41: a20s | E41: 2020-01-04 | F41: =EDATE(الجدول1[[#This Row],[تاريخ بدايةقسط]],الجدول1[[#This Row],[عدد قسط]]-1) -> 2020-10-04 | G41: 2580 | H41: 2600 | I41: 20 | J41: 300 | K41: 2300 | L41: 10 | M41: 690 | N41: 2990 | O41: =الجدول1[[#This Row],[الاجمالي بعد الفوائد]]/الجدول1[[#This Row],[عدد قسط]] -> 299 | AB41: 2990 | AC41: 1121212127
A42: 40 | B42: 2020-01-03 | C42: محمود عبد العال | D42: a20s | E42: 2020-01-04 | F42: =EDATE(الجدول1[[#This Row],[تاريخ بدايةقسط]],الجدول1[[#This Row],[عدد قسط]]-1) -> 2020-01-04 | G42: 2600 | H42: 2600 | I42: 0 | J42: 0 | K42: 2600 | L42: 1 | M42: =K42*15/100 -> 390 | N42: 2990 | O42: =الجدول1[[#This Row],[الاجمالي بعد الفوائد]]/الجدول1[[#This Row],[عدد قسط]] -> 2990 | AB42: 2990 | AC42: 1121212127
A43: 41 | B43: 2020-01-04 | C43: احمد خيري عبد العال | D43: a20s | E43: 2020-01-05 | F43: =EDATE(الجدول1[[#This Row],[تاريخ بدايةقسط]],الجدول1[[#This Row],[عدد قسط]]-1) -> 2020-10-05 | G43: 2580 | H43: 2600 | I43: 20 | J43: 300 | K43: 2300 | L43: 10 | M43: 690 | N43: 2990 | O43: =الجدول1[[#This Row],[الاجمالي بعد الفوائد]]/الجدول1[[#This Row],[عدد قسط]] -> 299 | AB43: 2990 | AC43: 1121212127
A44: 42 | B44: 2020-01-03 | C44: مصطفي انور مغاغه | D44: ريلمي 5 برو | E44: 2020-01-04 | F44: =EDATE(الجدول1[[#This Row],[تاريخ بدايةقسط]],الجدول1[[#This Row],[عدد قسط]]-1) -> 2020-10-04 | G44: 3580 | H44: 3600 | I44: 20 | J44: 500 | K44: 3100 | L44: 10 | M44: 930 | N44: 4030 | O44: =الجدول1[[#This Row],[الاجمالي بعد الفوائد]]/الجدول1[[#This Row],[عدد قسط]] -> 403 | AB44: 4030 | AC44: 1121212127
A45: 43 | B45: 2020-01-03 | C45: اسلام حسني احمد مصطفي | D45: a20s | E45: 2020-01-04 | F45: =EDATE(الجدول1[[#This Row],[تاريخ بدايةقسط]],الجدول1[[#This Row],[عدد قسط]]-1) -> 2020-10-04 | G45: 2550 | H45: 2550 | I45: 0 | J45: 300 | K45: 2250 | L45: 10 | M45: 675 | N45: 2925 | O45: =الجدول1[[#This Row],[الاجمالي بعد الفوائد]]/الجدول1[[#This Row],[عدد قسط]] -> 292.5 | AB45: 2925 | AC45: 1121212127
A46: 44 | B46: 2020-01-03 | C46: حسن فؤاد حسن2 | D46: a20s | E46: 2020-01-04 | F46: =EDATE(الجدول1[[#This Row],[تاريخ بدايةقسط]],الجدول1[[#This Row],[عدد قسط]]-1) -> 2020-09-04 | G46: 2580 | H46: 2600 | I46: 20 | J46: 500 | K46: 2100 | L46: 9 | M46: 630 | N46: 2730 | O46: =الجدول1[[#This Row],[الاجمالي بعد الفوائد]]/الجدول1[[#This Row],[عدد قسط]] -> 303.3333333 | AB46: 2730 | AC46: 1121212127
A47: 45 | B47: 2020-01-05 | C47: احمد تبع العباسي | D47: y9s | E47: 2020-01-06 | F47: =EDATE(الجدول1[[#This Row],[تاريخ بدايةقسط]],الجدول1[[#This Row],[عدد قسط]]-1) -> 2020-10-06 | G47: 3750 | H47: 3750 | I47: 0 | J47: 2250 | K47: 1500 | L47: 10 | M47: 450 | N47: 1950 | O47: =الجدول1[[#This Row],[الاجمالي بعد الفوائد]]/الجدول1[[#This Row],[عدد قسط]] -> 195 | AB47: 1950 | AC47: 1121212127
A48: 46 | B48: 2020-01-04 | C48: العربي عبد الجواد | D48: a5s | E48: 2020-01-05 | F48: =EDATE(الجدول1[[#This Row],[تاريخ بدايةقسط]],الجدول1[[#This Row],[عدد قسط]]-1) -> 2020-08-05 | G48: 2380 | H48: 2400 | I48: 20 | J48: 400 | K48: 2000 | L48: 8 | M48: 600 | N48: 2600 | O48: =الجدول1[[#This Row],[الاجمالي بعد الفوائد]]/الجدول1[[#This Row],[عدد قسط]] -> 325 | AB48: 2600 | AC48: 1121212127
A49: 47 | B49: 2020-01-04 | C49: عيس عبدالعزيز عدلي | D49: y92019 | E49: 2020-01-05 | F49: =EDATE(الجدول1[[#This Row],[تاريخ بدايةقسط]],الجدول1[[#This Row],[عدد قسط]]-1) -> 2020-10-05 | G49: 3380 | H49: 3400 | I49: 20 | J49: 0 | K49: 3400 | L49: 10 | M49: 1020 | N49: 4420 | O49: =الجدول1[[#This Row],[الاجمالي بعد الفوائد]]/الجدول1[[#This Row],[عدد قسط]] -> 442 | AB49: 4420 | AC49: 1121212127
A50: 48 | B50: 2020-01-04 | C50: اسلاسعيد مغاغه | D50: y9s | E50: 2020-01-05 | F50: =EDATE(الجدول1[[#This Row],[تاريخ بدايةقسط]],الجدول1[[#This Row],[عدد قسط]]-1) -> 2020-10-05 | G50: 4230 | H50: 4250 | I50: 20 | J50: 0 | K50: 4250 | L50: 10 | M50: 1275 | N50: 5525 | O50: =الجدول1[[#This Row],[الاجمالي بعد الفوائد]]/الجدول1[[#This Row],[عدد قسط]] -> 552.5 | AB50: 5525 | AC50: 1121212127
A51: 49 | B51: 2020-01-05 | C51: مؤمن السيد احمد لمونه | D51: a51 | E51: 2020-01-06 | F51: =EDATE(الجدول1[[#This Row],[تاريخ بدايةقسط]],الجدول1[[#This Row],[عدد قسط]]-1) -> 2020-10-06 | G51: 4600 | H51: 4600 | I51: 0 | J51: 0 | K51: 4600 | L51: 10 | M51: 1380 | N51: 5980 | O51: =الجدول1[[#This Row],[الاجمالي بعد الفوائد]]/الجدول1[[#This Row],[عدد قسط]] -> 598 | AB51: 5980 | AC51: 1121212127
A52: 50 | B52: 2020-01-05 | C52: محمد علي حسين | D52: a51 | E52: 2020-01-06 | F52: =EDATE(الجدول1[[#This Row],[تاريخ بدايةقسط]],الجدول1[[#This Row],[عدد قسط]]-1) -> 2020-10-06 | G52: 4600 | H52: 4600 | I52: 0 | J52: 600 | K52: 4000 | L52: 10 | M52: 1200 | N52: 5200 | O52: =الجدول1[[#This Row],[الاجمالي بعد الفوائد]]/الجدول1[[#This Row],[عدد قسط]] -> 520 | AB52: 5200 | AC52: 1121212127
A53: 51 | B53: 2020-01-05 | C53: عمي عصام ابو الحسن2 | D53: a10s | E53: 2020-01-06 | F53: =EDATE(الجدول1[[#This Row],[تاريخ بدايةقسط]],الجدول1[[#This Row],[عدد قسط]]-1) -> 2020-07-06 | G53: 2200 | H53: 2200 | I53: 0 | J53: 500 | K53: 1700 | L53: 7 | M53: 510 | N53: 2210 | O53: =الجدول1[[#This Row],[الاجمالي بعد الفوائد]]/الجدول1[[#This Row],[عدد قسط]] -> 315.7142857 | AB53: 2210 | AC53: 1121212127
A54: 52 | B54: 2020-01-05 | C54: ندا محمد قطب | D54: a20s | E54: 2020-01-06 | F54: =EDATE(الجدول1[[#This Row],[تاريخ بدايةقسط]],الجدول1[[#This Row],[عدد قسط]]-1) -> 2020-10-06 | G54: 2550 | H54: 2550 | I54: 0 | J54: 400 | K54: 2150 | L54: 10 | M54: 645 | N54: 2795 | O54: =الجدول1[[#This Row],[الاجمالي بعد الفوائد]]/الجدول1[[#This Row],[عدد قسط]] -> 279.5 | AB54: 2795 | AC54: 1121212127
A55: 53 | B55: 2020-01-02 | C55: ابو يوسف العاشر2 | D55: a51 | E55: 2020-01-03 | F55: =EDATE(الجدول1[[#This Row],[تاريخ بدايةقسط]],الجدول1[[#This Row],[عدد قسط]]-1) -> 2020-12-03 | G55: 4750 | H55: 4800 | I55: 50 | J55: 0 | K55: 4800 | L55: 12 | M55: 1440 | N55: 6240 | O55: =الجدول1[[#This Row],[الاجمالي بعد الفوائد]]/الجدول1[[#This Row],[عدد قسط]] -> 520 | AB55: 6240 | AC55: 5566252
A56: 54 | B56: 2020-01-02 | C56: ابو يوسف العاشر | D56: a51 | E56: 2020-01-03 | F56: =EDATE(الجدول1[[#This Row],[تاريخ بدايةقسط]],الجدول1[[#This Row],[عدد قسط]]-1) -> 2020-03-03 | G56: 4750 | H56: 4800 | I56: 50 | J56: 0 | K56: 4800 | L56: 3 | M56: =K56*4/100 -> 192 | N56: 4992 | O56: =الجدول1[[#This Row],[الاجمالي بعد الفوائد]]/الجدول1[[#This Row],[عدد قسط]] -> 1664 | AB56: 4992 | AC56: 1121212127
A57: 55 | B57: 2020-01-01 | C57: نادي محمد عماد | D57: a10s | E57: 2020-01-02 | F57: =EDATE(الجدول1[[#This Row],[تاريخ بدايةقسط]],الجدول1[[#This Row],[عدد قسط]]-1) -> 2020-08-02 | G57: 1980 | H57: 2000 | I57: 20 | J57: 200 | K57: 1800 | L57: 8 | M57: 540 | N57: 2340 | O57: =الجدول1[[#This Row],[الاجمالي بعد الفوائد]]/الجدول1[[#This Row],[عدد قسط]] -> 292.5 | AB57: 2340 | AC57: 1121212127 | AH57: من هنا الي فوق يوم 1 ف الشهر
A58: 56 | B58: 20/4/2020 | C58: سعودي اسامه | D58: a20 | E58: 20/5/2020 | F58: =EDATE(الجدول1[[#This Row],[تاريخ بدايةقسط]],الجدول1[[#This Row],[عدد قسط]]-1) -> 2021-01-20 | G58: 2500 | H58: 2500 | I58: 0 | J58: 300 | K58: 2200 | L58: 9 | M58: 660 | N58: 2860 | O58: =الجدول1[[#This Row],[الاجمالي بعد الفوائد]]/الجدول1[[#This Row],[عدد قسط]] -> 317.7777778 | AB58: 2860 | AC58: 1121212127 | AH58: زيادة ف الفؤائد
A59: 57 | B59: 20/4/2020 | C59: احمد صيام الحلو 3 | D59: c3 | E59: 20/5/2020 | F59: =EDATE(الجدول1[[#This Row],[تاريخ بدايةقسط]],الجدول1[[#This Row],[عدد قسط]]-1) -> 2021-02-20 | G59: 2450 | H59: 2450 | I59: 0 | J59: 0 | K59: 2450 | L59: 10 | M59: 735 | N59: 3185 | O59: =الجدول1[[#This Row],[الاجمالي بعد الفوائد]]/الجدول1[[#This Row],[عدد قسط]] -> 318.5 | AB59: 3185 | AC59: 153523222
A60: 58 | B60: 20/4/2020 | C60: عاطف السيد لمونه | D60: ريلمي8 | E60: 20/5/2020 | F60: =EDATE(الجدول1[[#This Row],[تاريخ بدايةقسط]],الجدول1[[#This Row],[عدد قسط]]-1) -> 2021-02-20 | G60: 2450 | H60: 2450 | I60: 0 | J60: 450 | K60: 2000 | L60: 10 | M60: 600 | N60: 2600 | O60: =الجدول1[[#This Row],[الاجمالي بعد الفوائد]]/الجدول1[[#This Row],[عدد قسط]] -> 260 | AB60: 2600 | AG60: 2019-10-10
A61: 59 | B61: 20/4/2020 | C61: رمضان عبد الستار | D61: ao1 | E61: 20/5/2020 | F61: =EDATE(الجدول1[[#This Row],[تاريخ بدايةقسط]],الجدول1[[#This Row],[عدد قسط]]-1) -> 2020-11-20 | G61: 1800 | H61: 1800 | I61: 0 | J61: 400 | K61: 1400 | L61: 7 | M61: 420 | N61: 1820 | O61: =الجدول1[[#This Row],[الاجمالي بعد الفوائد]]/الجدول1[[#This Row],[عدد قسط]] -> 260 | AB61: 1820 | AG61: 2019-10-10
A62: 60 | B62: 20/4/2020 | C62: بدر رجب | D62: a20s | E62: 20/5/2020 | F62: =EDATE(الجدول1[[#This Row],[تاريخ بدايةقسط]],الجدول1[[#This Row],[عدد قسط]]-1) -> 2021-01-20 | G62: 2550 | H62: 2550 | I62: 0 | J62: 550 | K62: 2000 | L62: 9 | M62: 600 | N62: 2600 | O62: =الجدول1[[#This Row],[الاجمالي بعد الفوائد]]/الجدول1[[#This Row],[عدد قسط]] -> 288.8888889 | AB62: 2600 | AC62: 1121212127
A63: 61 | B63: 20/4/2020 | C63: محمود مصطفي اسماعيل | D63: شاومي 8 | E63: 20/5/2020 | F63: =EDATE(الجدول1[[#This Row],[تاريخ بدايةقسط]],الجدول1[[#This Row],[عدد قسط]]-1) -> 2020-12-20 | G63: 2950 | H63: 2950 | I63: 0 | J63: 1000 | K63: 1950 | L63: 8 | M63: 585 | N63: 2535 | O63: =الجدول1[[#This Row],[الاجمالي بعد الفوائد]]/الجدول1[[#This Row],[عدد قسط]] -> 316.875 | AB63: 2535 | AC63: 52565322
A64: 62 | B64: 20/4/2020 | C64: محمد قياتي الحلو | D64: y92019 | E64: 20/5/2020 | F64: =EDATE(الجدول1[[#This Row],[تاريخ بدايةقسط]],الجدول1[[#This Row],[عدد قسط]]-1) -> 2021-01-20 | G64: 3300 | H64: 3300 | I64: 0 | J64: 1200 | K64: 2100 | L64: 9 | M64: 630 | N64: 2730 | O64: =الجدول1[[#This Row],[الاجمالي بعد الفوائد]]/الجدول1[[#This Row],[عدد قسط]] -> 303.3333333 | AB64: 2730 | AC64: 1121212127
A65: 63 | B65: 20/4/2020 | C65: تامر جمعه محمد احمد | D65: y92019 | E65: 20/5/2020 | F65: =EDATE(الجدول1[[#This Row],[تاريخ بدايةقسط]],الجدول1[[#This Row],[عدد قسط]]-1) -> 2021-02-20 | G65: 3300 | H65: 3300 | I65: 0 | J65: 1000 | K65: 2300 | L65: 10 | M65: 690 | N65: 2990 | O65: =الجدول1[[#This Row],[الاجمالي بعد الفوائد]]/الجدول1[[#This Row],[عدد قسط]] -> 299 | AB65: 2990 | AC65: 1121212127
A66: 64 | B66: 20/4/2020 | C66: عمي عصام حسن | D66: A20 S | E66: 20/5/2020 | F66: =EDATE(الجدول1[[#This Row],[تاريخ بدايةقسط]],الجدول1[[#This Row],[عدد قسط]]-1) -> 2021-01-20 | G66: 2530 | H66: 2550 | I66: 20 | J66: 550 | K66: 2000 | L66: 9 | M66: 600 | N66: 2600 | O66: =الجدول1[[#This Row],[الاجمالي بعد الفوائد]]/الجدول1[[#This Row],[عدد قسط]] -> 288.8888889 | AB66: 2600 | AC66: 12586455
A67: 65 | B67: 20/4/2020 | C67: ابراهيم عاشور حسن | D67: hot8 | E67: 20/5/2020 | F67: =EDATE(الجدول1[[#This Row],[تاريخ بدايةقسط]],الجدول1[[#This Row],[عدد قسط]]-1) -> 2020-10-20 | G67: 1850 | H67: 1850 | I67: =H67-G67 -> 0 | J67: 500 | K67: =H67-J67 -> 1350 | L67: 6 | M67: 405 | N67: =SUM(M67+K67) -> 1755 | O67: =الجدول1[[#This Row],[الاجمالي بعد الفوائد]]/الجدول1[[#This Row],[عدد قسط]] -> 292.5 | AB67: 1755 | AC67: 1121212127
A68: 66 | B68: 20/4/2020 | C68: احمد تبع القادر | D68: ريلمي 5 برو | E68: 20/5/2020 | F68: =EDATE(الجدول1[[#This Row],[تاريخ بدايةقسط]],الجدول1[[#This Row],[عدد قسط]]-1) -> 2021-02-20 | G68: 3580 | H68: 3600 | I68: 20 | J68: 400 | K68: 3200 | L68: 10 | M68: =K68*30/100 -> 960 | N68: 4160 | O68: =الجدول1[[#This Row],[الاجمالي بعد الفوائد]]/الجدول1[[#This Row],[عدد قسط]] -> 416 | AB68: 4160 | AC68: 1121212127
A69: 67 | B69: 20/4/2020 | C69: عبد القادر السيد هنداوي | D69: a92020 | E69: 20/5/2020 | F69: =EDATE(الجدول1[[#This Row],[تاريخ بدايةقسط]],الجدول1[[#This Row],[عدد قسط]]-1) -> 2021-02-20 | G69: 4180 | H69: 4200 | I69: 20 | J69: 1000 | K69: 3200 | L69: 10 | M69: 960 | N69: 4160 | O69: =الجدول1[[#This Row],[الاجمالي بعد الفوائد]]/الجدول1[[#This Row],[عدد قسط]] -> 416 | AB69: =M69+K69-(AA69+Z69+Y69+X69+W69+V69+U69+T69+S69+R69+Q69+P69) -> 4160 | AC69: 1121212127
A70: 68 | B70: 20/4/2020 | C70: عبد الوهاب علي عبد الوهاب | D70: a92020 | E70: 20/5/2020 | F70: =EDATE(الجدول1[[#This Row],[تاريخ بدايةقسط]],الجدول1[[#This Row],[عدد قسط]]-1) -> 2021-02-20 | G70: 3280 | H70: 3300 | I70: 20 | J70: 300 | K70: 3000 | L70: 10 | M70: 900 | N70: 3900 | O70: =الجدول1[[#This Row],[الاجمالي بعد الفوائد]]/الجدول1[[#This Row],[عدد قسط]] -> 390 | AB70: 3900 | AC70: 1121212127
A71: 69 | B71: 20/4/2020 | C71: محمد احمد اسماعيل | D71: a51 | E71: 20/5/2020 | F71: =EDATE(الجدول1[[#This Row],[تاريخ بدايةقسط]],الجدول1[[#This Row],[عدد قسط]]-1) -> 2020-09-20 | G71: 4580 | H71: 4600 | I71: 20 | J71: 2000 | K71: 2600 | L71: 5 | M71: 780 | N71: 3380 | O71: =الجدول1[[#This Row],[الاجمالي بعد الفوائد]]/الجدول1[[#This Row],[عدد قسط]] -> 676 | AB71: 3380 | AC71: 1121212127 | AH71: خطا ف القسط ناقص
A72: 70 | B72: 20/4/2020 | C72: طارق طه | D72: a92020 | E72: 20/5/2020 | F72: =EDATE(الجدول1[[#This Row],[تاريخ بدايةقسط]],الجدول1[[#This Row],[عدد قسط]]-1) -> 2021-02-20 | G72: 4100 | H72: 4100 | I72: 0 | J72: 1100 | K72: 3000 | L72: 10 | M72: 900 | N72: 3900 | O72: =الجدول1[[#This Row],[الاجمالي بعد الفوائد]]/الجدول1[[#This Row],[عدد قسط]] -> 390 | AB72: 3900 | AC72: 1121212127
A73: 71 | B73: 20/4/2020 | C73: محمد ابو سعودي | D73: a20s | E73: 20/5/2020 | F73: =EDATE(الجدول1[[#This Row],[تاريخ بدايةقسط]],الجدول1[[#This Row],[عدد قسط]]-1) -> 2021-02-20 | G73: 2550 | H73: 2550 | I73: 0 | J73: 200 | K73: 2350 | L73: 10 | M73: 705 | N73: 3055 | O73: =الجدول1[[#This Row],[الاجمالي بعد الفوائد]]/الجدول1[[#This Row],[عدد قسط]] -> 305.5 | AB73: 3055 | AC73: 4525223
A74: 72 | B74: 20/12/2020 | C74: عبد الرحمن السيد مبروك | D74: a20s | E74: 20/1/2020 | F74: =EDATE(الجدول1[[#This Row],[تاريخ بدايةقسط]],الجدول1[[#This Row],[عدد قسط]]-1) -> 2020-10-20 | G74: 2820 | H74: 2850 | I74: 30 | J74: 500 | K74: 2350 | L74: 10 | M74: 705 | N74: 3055 | O74: =الجدول1[[#This Row],[الاجمالي بعد الفوائد]]/الجدول1[[#This Row],[عدد قسط]] -> 305.5 | AB74: 3055 | AC74: 1121212127
A75: 73 | B75: 20/11/2019 | C75: احمد صيام الحلو | D75: a30s | E75: 20/12/2020 | F75: =EDATE(الجدول1[[#This Row],[تاريخ بدايةقسط]],الجدول1[[#This Row],[عدد قسط]]-1) -> 2021-09-20 | G75: 3520 | H75: 3550 | I75: 30 | J75: 0 | K75: 3550 | L75: 10 | M75: 1065 | N75: 4615 | O75: =الجدول1[[#This Row],[الاجمالي بعد الفوائد]]/الجدول1[[#This Row],[عدد قسط]] -> 461.5 | AB75: 4615 | AC75: 1121212127
A76: 74 | B76: 20/12/2019 | C76: شاهر علي محمد | D76: y9 | E76: 20/1/2020 | F76: =EDATE(الجدول1[[#This Row],[تاريخ بدايةقسط]],الجدول1[[#This Row],[عدد قسط]]-1) -> 2020-08-20 | G76: 2320 | H76: 2350 | I76: 30 | J76: 350 | K76: 2000 | L76: 8 | M76: 600 | N76: 2600 | O76: =الجدول1[[#This Row],[الاجمالي بعد الفوائد]]/الجدول1[[#This Row],[عدد قسط]] -> 325 | AB76: 2600 | AC76: 1121212127
A77: 75 | B77: 20/11/2019 | C77: محمد هريدي | D77: غير ظاهر | E77: 20/12/2019 | F77: =EDATE(الجدول1[[#This Row],[تاريخ بدايةقسط]],الجدول1[[#This Row],[عدد قسط]]-1) -> 2020-09-20 | G77: 4800 | H77: 4850 | I77: 50 | J77: 850 | K77: 4000 | L77: 10 | M77: 1200 | N77: 5200 | O77: =الجدول1[[#This Row],[الاجمالي بعد الفوائد]]/الجدول1[[#This Row],[عدد قسط]] -> 520 | AA77: 520 | AB77: 4680
A78: 76 | B78: 20/11/2019 | C78: زينب محمود عبد الوهاب | D78: غير ظاهر | E78: 20/12/2020 | F78: =EDATE(الجدول1[[#This Row],[تاريخ بدايةقسط]],الجدول1[[#This Row],[عدد قسط]]-1) -> 2021-11-20 | G78: 3570 | H78: 3600 | I78: 30 | J78: 500 | K78: 3100 | L78: 12 | M78: 930 | N78: 4030 | O78: =الجدول1[[#This Row],[الاجمالي بعد الفوائد]]/الجدول1[[#This Row],[عدد قسط]] -> 335.8333333 | AA78: 335.8 | AB78: 3694.2 | AC78: 1121212127
A79: 77 | B79: 20/10/2019 | C79: طاهر ابو زيت | D79: a30s | E79: 20/11/2019 | F79: =EDATE(الجدول1[[#This Row],[تاريخ بدايةقسط]],الجدول1[[#This Row],[عدد قسط]]-1) -> 2020-08-20 | G79: 3370 | H79: 3400 | I79: 30 | J79: 400 | K79: 3000 | L79: 10 | M79: 900 | N79: 3900 | O79: =الجدول1[[#This Row],[الاجمالي بعد الفوائد]]/الجدول1[[#This Row],[عدد قسط]] -> 390 | Z79: 390 | AA79: 390 | AB79: 3120 | AG79: 2019-10-10
A80: 78 | B80: 20/9/2019 | C80: حنان سيد فكري | D80: غير ظاهر | E80: 20/10/2019 | F80: =EDATE(الجدول1[[#This Row],[تاريخ بدايةقسط]],الجدول1[[#This Row],[عدد قسط]]-1) -> 2020-05-20 | G80: 2520 | H80: 2550 | I80: 30 | J80: 550 | K80: 2000 | L80: 8 | M80: 600 | N80: 2600 | O80: =الجدول1[[#This Row],[الاجمالي بعد الفوائد]]/الجدول1[[#This Row],[عدد قسط]] -> 325 | Y80: 325 | Z80: 325 | AA80: 325 | AB80: 1625 | AC80: 1121212127
A81: 79 | B81: 20/8/2019 | C81: محب مايكل | D81: a20s | E81: 20/9/2019 | F81: =EDATE(الجدول1[[#This Row],[تاريخ بدايةقسط]],الجدول1[[#This Row],[عدد قسط]]-1) -> 2020-05-20 | G81: 2550 | H81: 2600 | I81: 50 | J81: 500 | K81: 2100 | L81: 9 | M81: 630 | N81: 2730 | O81: =الجدول1[[#This Row],[الاجمالي بعد الفوائد]]/الجدول1[[#This Row],[عدد قسط]] -> 303.3333333 | X81: 303.3 | Y81: 303.3 | Z81: 303.3 | AA81: 303.3 | AB81: 1516.8 | AC81: 1121212127
A82: 80 | B82: 20/10/2019 | C82: محمد علي سيد | D82: a5 | E82: 20/11/2019 | F82: =EDATE(الجدول1[[#This Row],[تاريخ بدايةقسط]],الجدول1[[#This Row],[عدد قسط]]-1) -> 2020-07-20 | G82: 2560 | H82: 2600 | I82: 40 | J82: 350 | K82: 2250 | L82: 9 | M82: 675 | N82: 2925 | O82: =الجدول1[[#This Row],[الاجمالي بعد الفوائد]]/الجدول1[[#This Row],[عدد قسط]] -> 325 | Z82: 325 | AA82: 325 | AB82: 2275 | AC82: 1121212127
A83: 81 | B83: 20/5/2019 | C83: محمود احمد الطيار | D83: a30 | E83: 20/6/2019 | F83: =EDATE(الجدول1[[#This Row],[تاريخ بدايةقسط]],الجدول1[[#This Row],[عدد قسط]]-1) -> 2020-05-20 | G83: 3500 | H83: 3500 | I83: 0 | J83: 500 | K83: 3000 | L83: 12 | M83: 900 | N83: 3900 | O83: =الجدول1[[#This Row],[الاجمالي بعد الفوائد]]/الجدول1[[#This Row],[عدد قسط]] -> 325 | U83: 325 | V83: 325 | W83: 325 | X83: 325 | Y83: 325 | Z83: 325 | AA83: 325 | AB83: 1625 | AC83: 1121212127
A84: 82 | B84: 20/7/2019 | C84: محمد رجب شيريف غالب | D84: a10 | E84: 20/8/2019 | F84: =EDATE(الجدول1[[#This Row],[تاريخ بدايةقسط]],الجدول1[[#This Row],[عدد قسط]]-1) -> 2020-02-20 | G84: 2000 | H84: 2050 | I84: 50 | J84: 500 | K84: 1550 | L84: 7 | M84: 465 | N84: 2015 | O84: =الجدول1[[#This Row],[الاجمالي بعد الفوائد]]/الجدول1[[#This Row],[عدد قسط]] -> 287.8571429 | W84: 287.9 | X84: 287.9 | Y84: 287.9 | Z84: 287.9 | AA84: 287.9 | AB84: 575.5 | AC84: 456585636
A85: 83 | B85: 20/3/2020 | C85: محمد فرج سرحان | D85: s5 | E85: 20/4/2020 | F85: =EDATE(الجدول1[[#This Row],[تاريخ بدايةقسط]],الجدول1[[#This Row],[عدد قسط]]-1) -> 2020-11-20 | G85: 2830 | H85: 2850 | I85: 20 | J85: 500 | K85: 2350 | L85: 8 | M85: 705 | N85: 3055 | O85: =الجدول1[[#This Row],[الاجمالي بعد الفوائد]]/الجدول1[[#This Row],[عدد قسط]] -> 381.875 | AB85: 3055 | AC85: 1121212127 | AH85: اول قسط 300 فقط
A86: 84 | B86: 20/3/2020 | C86: عبد الله عادل | D86: c3 | E86: 20/4/2020 | F86: =EDATE(الجدول1[[#This Row],[تاريخ بدايةقسط]],الجدول1[[#This Row],[عدد قسط]]-1) -> 2020-08-20 | G86: 2280 | H86: 2300 | I86: 20 | J86: 1250 | K86: 1050 | L86: 5 | M86: 315 | N86: 1365 | O86: =الجدول1[[#This Row],[الاجمالي بعد الفوائد]]/الجدول1[[#This Row],[عدد قسط]] -> 273 | AB86: 1365 | AC86: 1121212127
A87: 85 | B87: 20/3/2020 | C87: احمد فرج عبد العظيم | D87: a10s | E87: 20/4/2020 | F87: =EDATE(الجدول1[[#This Row],[تاريخ بدايةقسط]],الجدول1[[#This Row],[عدد قسط]]-1) -> 2020-10-20 | G87: 2130 | H87: 2150 | I87: 20 | J87: 400 | K87: 1750 | L87: 7 | M87: 525 | N87: 2275 | O87: =الجدول1[[#This Row],[الاجمالي بعد الفوائد]]/الجدول1[[#This Row],[عدد قسط]] -> 325 | AB87: 2275 | AC87: 532525
A88: 86 | B88: 20/4/2020 | C88: احمد خلف شعبان | D88: y7 | E88: 20/5/2020 | F88: =EDATE(الجدول1[[#This Row],[تاريخ بدايةقسط]],الجدول1[[#This Row],[عدد قسط]]-1) -> 2021-02-20 | G88: 2470 | H88: 2500 | I88: 30 | J88: 0 | K88: 2500 | L88: 10 | M88: 750 | N88: 3250 | O88: =الجدول1[[#This Row],[الاجمالي بعد الفوائد]]/الجدول1[[#This Row],[عدد قسط]] -> 325 | AB88: 3250 | AC88: 1121212127
A89: 87 | B89: 20/3/2020 | C89: احمد طه علي | D89: y6 | E89: 20/4/2020 | F89: =EDATE(الجدول1[[#This Row],[تاريخ بدايةقسط]],الجدول1[[#This Row],[عدد قسط]]-1) -> 2020-09-20 | G89: 1830 | H89: 1850 | I89: 20 | J89: 500 | K89: 1350 | L89: 6 | M89: 405 | N89: 1755 | O89: =الجدول1[[#This Row],[الاجمالي بعد الفوائد]]/الجدول1[[#This Row],[عدد قسط]] -> 292.5 | AB89: 1755 | AC89: 1121212127
A90: 88 | B90: 20/3/2020 | C90: محمد عبد الفتاح | D90: a30 | E90: 20/4/2020 | F90: =EDATE(الجدول1[[#This Row],[تاريخ بدايةقسط]],الجدول1[[#This Row],[عدد قسط]]-1) -> 2021-01-20 | G90: 2580 | H90: 2600 | I90: 20 | J90: 200 | K90: 2400 | L90: 10 | M90: 720 | N90: 3120 | O90: =الجدول1[[#This Row],[الاجمالي بعد الفوائد]]/الجدول1[[#This Row],[عدد قسط]] -> 312 | AB90: 3120 | AC90: 1121212127
A91: 89 | B91: 20/3/2020 | C91: محمد خالد عبد العال | D91: a10s | E91: 20/4/2020 | F91: =EDATE(الجدول1[[#This Row],[تاريخ بدايةقسط]],الجدول1[[#This Row],[عدد قسط]]-1) -> 2020-08-20 | G91: 2080 | H91: 2100 | I91: 20 | J91: 1000 | K91: 1100 | L91: 5 | M91: 330 | N91: 1430 | O91: =الجدول1[[#This Row],[الاجمالي بعد الفوائد]]/الجدول1[[#This Row],[عدد قسط]] -> 286 | AB91: 1430 | AC91: 1121212127
A92: 90 | B92: 20/3/2020 | C92: سعودي اسامه ابو السعود | D92: a20s | E92: 20/4/2020 | F92: =EDATE(الجدول1[[#This Row],[تاريخ بدايةقسط]],الجدول1[[#This Row],[عدد قسط]]-1) -> 2021-01-20 | G92: 2580 | H92: 2600 | I92: 20 | J92: 400 | K92: 2200 | L92: 10 | M92: 660 | N92: 2860 | O92: =الجدول1[[#This Row],[الاجمالي بعد الفوائد]]/الجدول1[[#This Row],[عدد قسط]] -> 286 | AB92: 2860 | AC92: 1121212127
A93: 91 | B93: 20/2/2020 | C93: احمد قياتي محمد | D93: a10 | E93: 20/3/2020 | F93: =EDATE(الجدول1[[#This Row],[تاريخ بدايةقسط]],الجدول1[[#This Row],[عدد قسط]]-1) -> 2020-10-20 | G93: 2080 | H93: 2100 | I93: 20 | J93: 0 | K93: 2100 | L93: 8 | M93: 630 | N93: 2730 | O93: =الجدول1[[#This Row],[الاجمالي بعد الفوائد]]/الجدول1[[#This Row],[عدد قسط]] -> 341.25 | AB93: 2730 | AC93: 1121212127
A94: 92 | B94: 20/2/2020 | C94: يوسف عزمي | D94: a10s | E94: 20/3/2020 | F94: =EDATE(الجدول1[[#This Row],[تاريخ بدايةقسط]],الجدول1[[#This Row],[عدد قسط]]-1) -> 2020-10-20 | G94: 2080 | H94: 2100 | I94: 20 | J94: 0 | K94: 2100 | L94: 8 | M94: 630 | N94: 2730 | O94: =الجدول1[[#This Row],[الاجمالي بعد الفوائد]]/الجدول1[[#This Row],[عدد قسط]] -> 341.25 | AB94: 2730 | AC94: 1121212127
A95: 93 | B95: 20/2/2020 | C95: قاسم محمد محمود | D95: A30 | E95: 20/3/2020 | F95: =EDATE(الجدول1[[#This Row],[تاريخ بدايةقسط]],الجدول1[[#This Row],[عدد قسط]]-1) -> 2020-12-20 | G95: 3570 | H95: 3600 | I95: 30 | J95: 1000 | K95: 2600 | L95: 10 | M95: 780 | N95: 3380 | O95: =الجدول1[[#This Row],[الاجمالي بعد الفوائد]]/الجدول1[[#This Row],[عدد قسط]] -> 338 | AB95: 3380 | AC95: 1121212127
A96: 94 | B96: 20/2/2020 | C96: عمر عادل | D96: a1k | E96: 20/3/2020 | F96: =EDATE(الجدول1[[#This Row],[تاريخ بدايةقسط]],الجدول1[[#This Row],[عدد قسط]]-1) -> 2020-08-20 | G96: 1870 | H96: 1900 | I96: 30 | J96: 500 | K96: 1400 | L96: 6 | M96: 420 | N96: 1820 | O96: =الجدول1[[#This Row],[الاجمالي بعد الفوائد]]/الجدول1[[#This Row],[عدد قسط]] -> 303.3333333 | AB96: 1820 | AC96: 1121212127
A97: 95 | B97: 20/1/2020 | C97: احمد رجب عبد الصمد | D97: 5 | E97: 20/2/2020 | F97: =EDATE(الجدول1[[#This Row],[تاريخ بدايةقسط]],الجدول1[[#This Row],[عدد قسط]]-1) -> 2020-08-20 | G97: 2780 | H97: 2800 | I97: 20 | J97: 1000 | K97: 1800 | L97: 7 | M97: 540 | N97: 2340 | O97: =الجدول1[[#This Row],[الاجمالي بعد الفوائد]]/الجدول1[[#This Row],[عدد قسط]] -> 334.2857143 | AB97: 2340 | AC97: 115656565
A98: 96 | B98: 20/1/2020 | C98: احمد راشد | D98: a10s | E98: 20/2/2020 | F98: =EDATE(الجدول1[[#This Row],[تاريخ بدايةقسط]],الجدول1[[#This Row],[عدد قسط]]-1) -> 2020-05-20 | G98: 1980 | H98: 2000 | I98: 20 | J98: 1000 | K98: 1000 | L98: 4 | M98: 300 | N98: 1300 | O98: =الجدول1[[#This Row],[الاجمالي بعد الفوائد]]/الجدول1[[#This Row],[عدد قسط]] -> 325 | AB98: 1300 | AC98: 1121212127
A99: 97 | B99: 20/2/2020 | C99: ايمان محمود سليم | D99: a10s | E99: 20/3/2020 | F99: =EDATE(الجدول1[[#This Row],[تاريخ بدايةقسط]],الجدول1[[#This Row],[عدد قسط]]-1) -> 2020-10-20 | G99: 1980 | H99: 2000 | I99: 20 | J99: 150 | K99: 1850 | L99: 8 | M99: 555 | N99: 2405 | O99: =الجدول1[[#This Row],[الاجمالي بعد الفوائد]]/الجدول1[[#This Row],[عدد قسط]] -> 300.625 | AB99: 2405 | AC99: 1121212127
A100: 98 | B100: 20/1/2020 | C100: محمود مصطفي حسن | D100: a10s | E100: 20/2/2020 | F100: =EDATE(الجدول1[[#This Row],[تاريخ بدايةقسط]],الجدول1[[#This Row],[عدد قسط]]-1) -> 2020-07-20 | G100: 1980 | H100: 2000 | I100: 20 | J100: 500 | K100: 1500 | L100: 6 | M100: 450 | N100: 1950 | O100: =الجدول1[[#This Row],[الاجمالي بعد الفوائد]]/الجدول1[[#This Row],[عدد قسط]] -> 325 | AB100: 1950 | AC100: 1121212127
A101: 99 | B101: 20/1/2020 | C101: محمد عبد المحسن محمد | D101: a10s | E101: 20/2/2020 | F101: =EDATE(الجدول1[[#This Row],[تاريخ بدايةقسط]],الجدول1[[#This Row],[عدد قسط]]-1) -> 2020-07-20 | G101: 1980 | H101: 2000 | I101: 20 | J101: 500 | K101: 1500 | L101: 6 | M101: 450 | N101: 1950 | O101: =الجدول1[[#This Row],[الاجمالي بعد الفوائد]]/الجدول1[[#This Row],[عدد قسط]] -> 325 | AB101: 1950 | AC101: 0 | AG101: 2019-10-10
A102: 100 | B102: 20/1/2020 | C102: محمود شعبان محمد ابو الحسن | D102: ريلمي5 | E102: 20/2/2020 | F102: =EDATE(الجدول1[[#This Row],[تاريخ بدايةقسط]],الجدول1[[#This Row],[عدد قسط]]-1) -> 2020-09-20 | G102: 2620 | H102: 2650 | I102: 30 | J102: 650 | K102: 2000 | L102: 8 | M102: 600 | N102: 2600 | O102: =الجدول1[[#This Row],[الاجمالي بعد الفوائد]]/الجدول1[[#This Row],[عدد قسط]] -> 325 | AB102: 2600
A103: 101 | B103: 20/1/2020 | C103: مايكل نقاش | D103: F11 | E103: 20/2/2020 | F103: =EDATE(الجدول1[[#This Row],[تاريخ بدايةقسط]],الجدول1[[#This Row],[عدد قسط]]-1) -> 2020-09-20 | G103: 3080 | H103: 3100 | I103: 20 | J103: 1100 | K103: 2000 | L103: 8 | M103: 600 | N103: 2600 | O103: =الجدول1[[#This Row],[الاجمالي بعد الفوائد]]/الجدول1[[#This Row],[عدد قسط]] -> 325 | AB103: 2600 | AC103: 1121212127
A104: 102 | B104: 20/1/2020 | C104: رضا محمد مرسي | D104: a10s | E104: 20/2/2020 | F104: =EDATE(الجدول1[[#This Row],[تاريخ بدايةقسط]],الجدول1[[#This Row],[عدد قسط]]-1) -> 2020-10-20 | G104: 1980 | H104: 2000 | I104: 20 | J104: 300 | K104: 1700 | L104: 9 | M104: 510 | N104: 2210 | O104: =الجدول1[[#This Row],[الاجمالي بعد الفوائد]]/الجدول1[[#This Row],[عدد قسط]] -> 245.5555556 | AB104: 2210 | AC104: 1121212127
A105: 103 | B105: 20/1/2020 | C105: وائل محمود محمد | D105: a10 | E105: 20/2/2020 | F105: =EDATE(الجدول1[[#This Row],[تاريخ بدايةقسط]],الجدول1[[#This Row],[عدد قسط]]-1) -> 2020-08-20 | G105: 1980 | H105: 2000 | I105: 20 | J105: 300 | K105: 1700 | L105: 7 | M105: 510 | N105: 2210 | O105: =الجدول1[[#This Row],[الاجمالي بعد الفوائد]]/الجدول1[[#This Row],[عدد قسط]] -> 315.7142857 | AB105: 2210 | AC105: 116585625
A106: 104 | B106: 20/1/2020 | C106: سيف علي نعاس | D106: a20s | E106: 20/2/2020 | F106: =EDATE(الجدول1[[#This Row],[تاريخ بدايةقسط]],الجدول1[[#This Row],[عدد قسط]]-1) -> 2020-11-20 | G106: 2580 | H106: 2600 | I106: 20 | J106: 200 | K106: 2400 | L106: 10 | M106: 720 | N106: 3120 | O106: =الجدول1[[#This Row],[الاجمالي بعد الفوائد]]/الجدول1[[#This Row],[عدد قسط]] -> 312 | AB106: 3120 | AC106: 1121212127
A107: 105 | B107: 20/1/2020 | C107: وليد عصام عبد الفتاح | D107: a10s | E107: 20/2/2020 | F107: =EDATE(الجدول1[[#This Row],[تاريخ بدايةقسط]],الجدول1[[#This Row],[عدد قسط]]-1) -> 2020-07-20 | G107: 1980 | H107: 2000 | I107: 20 | J107: 500 | K107: 1500 | L107: 6 | M107: 450 | N107: 1950 | O107: =الجدول1[[#This Row],[الاجمالي بعد الفوائد]]/الجدول1[[#This Row],[عدد قسط]] -> 325 | AB107: 1950
A108: 106 | B108: 20/1/2020 | C108: احمد عبد الله محمد | D108: roo2f | E108: 20/2/2020 | F108: =EDATE(الجدول1[[#This Row],[تاريخ بدايةقسط]],الجدول1[[#This Row],[عدد قسط]]-1) -> 2020-11-20 | G108: 5200 | H108: 5250 | I108: 50 | J108: 500 | K108: 4750 | L108: 10 | M108: 1425 | N108: 6175 | O108: =الجدول1[[#This Row],[الاجمالي بعد الفوائد]]/الجدول1[[#This Row],[عدد قسط]] -> 617.5 | AB108: 6175 | AC108: 1121212127
A109: 107 | B109: 20/2/2020 | C109: احمد صيام الحلو | D109: a30s | E109: 20/3/2020 | F109: =EDATE(الجدول1[[#This Row],[تاريخ بدايةقسط]],الجدول1[[#This Row],[عدد قسط]]-1) -> 2020-12-20 | G109: 3380 | H109: 3400 | I109: 20 | J109: 0 | K109: 3400 | L109: 10 | M109: 1020 | N109: 4420 | O109: =الجدول1[[#This Row],[الاجمالي بعد الفوائد]]/الجدول1[[#This Row],[عدد قسط]] -> 442 | AB109: 4420 | AC109: 1121212127
A110: 108 | B110: 20/1/2020 | C110: محمد مصطفي ادريسي | D110: a10s | E110: 20/2/2020 | F110: =EDATE(الجدول1[[#This Row],[تاريخ بدايةقسط]],الجدول1[[#This Row],[عدد قسط]]-1) -> 2020-09-20 | G110: 1980 | H110: 2000 | I110: 20 | J110: 200 | K110: 1800 | L110: 8 | M110: 540 | N110: 2340 | O110: =الجدول1[[#This Row],[الاجمالي بعد الفوائد]]/الجدول1[[#This Row],[عدد قسط]] -> 292.5 | AB110: 2340 | AC110: 52655565
A111: 109 | B111: 20/1/2020 | C111: نورهان محمد السيد | D111: a10s | E111: 20/2/2020 | F111: =EDATE(الجدول1[[#This Row],[تاريخ بدايةقسط]],الجدول1[[#This Row],[عدد قسط]]-1) -> 2020-06-20 | G111: 1980 | H111: 2000 | I111: 20 | J111: 1000 | K111: 1000 | L111: 5 | M111: 300 | N111: 1300 | O111: =الجدول1[[#This Row],[الاجمالي بعد الفوائد]]/الجدول1[[#This Row],[عدد قسط]] -> 260 | AB111: 1300 | AC111: 452220
A112: 110 | B112: 20/1/2020 | C112: محمد علي مصطفي | D112: a10s | E112: 20/2/2020 | F112: =EDATE(الجدول1[[#This Row],[تاريخ بدايةقسط]],الجدول1[[#This Row],[عدد قسط]]-1) -> 2020-08-20 | G112: 1980 | H112: 2000 | I112: 20 | J112: 400 | K112: 1600 | L112: 7 | M112: 480 | N112: 2080 | O112: =الجدول1[[#This Row],[الاجمالي بعد الفوائد]]/الجدول1[[#This Row],[عدد قسط]] -> 297.1428571 | AB112: 2080 | AC112: 1121212127
A113: 111 | B113: 20/10/2019 | C113: حنان صبحي السيد | D113: y72019 | E113: 20/11/2020 | F113: =EDATE(الجدول1[[#This Row],[تاريخ بدايةقسط]],الجدول1[[#This Row],[عدد قسط]]-1) -> 2021-07-20 | G113: 2570 | H113: 2600 | I113: 30 | J113: 500 | K113: 2100 | L113: 9 | M113: 630 | N113: 2730 | O113: =الجدول1[[#This Row],[الاجمالي بعد الفوائد]]/الجدول1[[#This Row],[عدد قسط]] -> 303.3333333 | AB113: 2730 | AC113: 555851454
A114: 112 | B114: 20/10/2019 | C114: عبد الجواد 105 | D114: 105 | E114: 20/11/2019 | F114: =EDATE(الجدول1[[#This Row],[تاريخ بدايةقسط]],الجدول1[[#This Row],[عدد قسط]]-1) -> 2019-12-20 | G114: 330 | H114: 350 | I114: 20 | J114: 100 | K114: 250 | L114: 2 | M114: 75 | N114: 325 | O114: =الجدول1[[#This Row],[الاجمالي بعد الفوائد]]/الجدول1[[#This Row],[عدد قسط]] -> 162.5 | Z114: 162.5 | AA114: 162.5 | AB114: 0 | AC114: 1121212127
A115: 113 | B115: 20/10/2019 | C115: عربي محمد طه | D115: a5s | E115: 20/11/2019 | F115: =EDATE(الجدول1[[#This Row],[تاريخ بدايةقسط]],الجدول1[[#This Row],[عدد قسط]]-1) -> 2020-08-20 | G115: 2650 | H115: 2700 | I115: 50 | J115: 300 | K115: 2400 | L115: 10 | M115: 720 | N115: 3120 | O115: =الجدول1[[#This Row],[الاجمالي بعد الفوائد]]/الجدول1[[#This Row],[عدد قسط]] -> 312 | Z115: 312 | AA115: 312 | AB115: 2496 | AC115: 1121212127
A116: 114 | B116: 20/10/2019 | C116: السيد احمد السيد | D116: ستار2 | E116: 20/11/2019 | F116: =EDATE(الجدول1[[#This Row],[تاريخ بدايةقسط]],الجدول1[[#This Row],[عدد قسط]]-1) -> 2020-04-20 | G116: 1420 | H116: 1450 | I116: 30 | J116: 0 | K116: 1450 | L116: 6 | M116: 435 | N116: 1885 | O116: =الجدول1[[#This Row],[الاجمالي بعد الفوائد]]/الجدول1[[#This Row],[عدد قسط]] -> 314.1666667 | Z116: 314.2 | AA116: 314.2 | AB116: 1256.6 | AC116: 1121212127
A117: 115 | B117: 20/10/2019 | C117: رضا السيد همام | D117: ستار2 | E117: 20/11/2019 | F117: =EDATE(الجدول1[[#This Row],[تاريخ بدايةقسط]],الجدول1[[#This Row],[عدد قسط]]-1) -> 2020-04-20 | G117: 1420 | H117: 1450 | I117: 30 | J117: 0 | K117: 1450 | L117: 6 | M117: 435 | N117: 1885 | O117: =الجدول1[[#This Row],[الاجمالي بعد الفوائد]]/الجدول1[[#This Row],[عدد قسط]] -> 314.1666667 | Z117: 314.2 | AA117: 314.2 | AB117: 1256.6 | AC117: 1121212127 | AG117: 15/9/20119
A118: 116 | B118: 20/10/2019 | C118: مؤمن السيداحمد جبر | D118: a20s | E118: 20/11/2019 | F118: =EDATE(الجدول1[[#This Row],[تاريخ بدايةقسط]],الجدول1[[#This Row],[عدد قسط]]-1) -> 2020-08-20 | G118: 2820 | H118: 2850 | I118: 30 | J118: 500 | K118: 2350 | L118: 10 | M118: 705 | N118: 3055 | O118: =الجدول1[[#This Row],[الاجمالي بعد الفوائد]]/الجدول1[[#This Row],[عدد قسط]] -> 305.5 | Z118: 305.5 | AA118: 305.5 | AB118: 2444 | AC118: 1121212127
A119: 117 | B119: 20/10/2019 | C119: علي محمد احمد حسن | D119: a10s | E119: 20/11/2020 | F119: =EDATE(الجدول1[[#This Row],[تاريخ بدايةقسط]],الجدول1[[#This Row],[عدد قسط]]-1) -> 2021-05-20 | G119: 2120 | H119: 2150 | I119: 30 | J119: 500 | K119: 1650 | L119: 7 | M119: 495 | N119: 2145 | O119: =الجدول1[[#This Row],[الاجمالي بعد الفوائد]]/الجدول1[[#This Row],[عدد قسط]] -> 306.4285714 | Z119: 306.4 | AA119: 306.4 | AB119: 1532.2 | AC119: 1121212127
A120: 118 | B120: 20/10/2019 | C120: سعودي صابر | D120: ستار2 | E120: 20/11/2019 | F120: =EDATE(الجدول1[[#This Row],[تاريخ بدايةقسط]],الجدول1[[#This Row],[عدد قسط]]-1) -> 2020-04-20 | G120: 1420 | H120: 1450 | I120: 30 | J120: 0 | K120: 1450 | L120: 6 | M120: 435 | N120: 1885 | O120: =الجدول1[[#This Row],[الاجمالي بعد الفوائد]]/الجدول1[[#This Row],[عدد قسط]] -> 314.1666667 | Z120: 314.2 | AA120: 314.2 | AB120: 1256.6 | AC120: 1121212127
A121: 119 | B121: 20/10/2019 | C121: شعبان عبد العظيم | D121: a30s | E121: 20/11/2019 | F121: =EDATE(الجدول1[[#This Row],[تاريخ بدايةقسط]],الجدول1[[#This Row],[عدد قسط]]-1) -> 2020-08-20 | G121: 3720 | H121: 3750 | I121: 30 | J121: 500 | K121: 3250 | L121: 10 | M121: 975 | N121: 4225 | O121: =الجدول1[[#This Row],[الاجمالي بعد الفوائد]]/الجدول1[[#This Row],[عدد قسط]] -> 422.5 | Z121: 422.5 | AA121: 422.5 | AB121: 3380 | AC121: 1121212127
A122: 120 | B122: 20/10/2019 | C122: شيرهان جمال السيد | D122: f11 | E122: 20/11/2019 | F122: =EDATE(الجدول1[[#This Row],[تاريخ بدايةقسط]],الجدول1[[#This Row],[عدد قسط]]-1) -> 2020-08-20 | G122: 4820 | H122: 4850 | I122: 30 | J122: 500 | K122: 4350 | L122: 10 | M122: 1305 | N122: 5655 | O122: =الجدول1[[#This Row],[الاجمالي بعد الفوائد]]/الجدول1[[#This Row],[عدد قسط]] -> 565.5 | Z122: 565.5 | AA122: 565.5 | AB122: 4524 | AC122: 1121212127
A123: 121 | B123: 20/10/2019 | C123: شيرهان جمال السيد2 | D123: y72019 | E123: 20/11/2019 | F123: =EDATE(الجدول1[[#This Row],[تاريخ بدايةقسط]],الجدول1[[#This Row],[عدد قسط]]-1) -> 2020-07-20 | G123: 2630 | H123: 2650 | I123: 20 | J123: 400 | K123: 2250 | L123: 9 | M123: 675 | N123: 2925 | O123: =الجدول1[[#This Row],[الاجمالي بعد الفوائد]]/الجدول1[[#This Row],[عدد قسط]] -> 325 | Z123: 325 | AA123: 325 | AB123: 2275 | AC123: 1121212127
A124: 122 | B124: 20/10/2019 | C124: بدر عادل يونس | D124: y72019 | E124: 20/11/2019 | F124: =EDATE(الجدول1[[#This Row],[تاريخ بدايةقسط]],الجدول1[[#This Row],[عدد قسط]]-1) -> 2020-06-20 | G124: 2520 | H124: 2550 | I124: 30 | J124: 550 | K124: 2000 | L124: 8 | M124: 600 | N124: 2600 | O124: =الجدول1[[#This Row],[الاجمالي بعد الفوائد]]/الجدول1[[#This Row],[عدد قسط]] -> 325 | Z124: 325 | AA124: 325 | AB124: 1950 | AC124: 1121212127
A125: 123 | B125: 20/10/2019 | C125: شعبان علي محمد | D125: s5 | E125: 20/11/2019 | F125: =EDATE(الجدول1[[#This Row],[تاريخ بدايةقسط]],الجدول1[[#This Row],[عدد قسط]]-1) -> 2020-07-20 | G125: 2720 | H125: 2750 | I125: 30 | J125: 500 | K125: 2250 | L125: 9 | M125: 675 | N125: 2925 | O125: =الجدول1[[#This Row],[الاجمالي بعد الفوائد]]/الجدول1[[#This Row],[عدد قسط]] -> 325 | Z125: 325 | AA125: 325 | AB125: 2275 | AC125: 1121212127
A126: 124 | B126: 20/11/2019 | C126: محمود فتحي الجندي | D126: a10s | E126: 20/12/2019 | F126: =EDATE(الجدول1[[#This Row],[تاريخ بدايةقسط]],الجدول1[[#This Row],[عدد قسط]]-1) -> 2020-07-20 | G126: 2030 | H126: 2050 | I126: 20 | J126: 250 | K126: 1800 | L126: 8 | M126: 540 | N126: 2340 | O126: =الجدول1[[#This Row],[الاجمالي بعد الفوائد]]/الجدول1[[#This Row],[عدد قسط]] -> 292.5 | AA126: 292.5 | AB126: 2047.5 | AC126: 1121212127
A127: 125 | B127: 20/11/2019 | C127: طارق عبد الله رمضان | D127: ريلمي5 برو | E127: 20/12/2019 | F127: =EDATE(الجدول1[[#This Row],[تاريخ بدايةقسط]],الجدول1[[#This Row],[عدد قسط]]-1) -> 2020-09-20 | G127: 3820 | H127: 3850 | I127: 30 | J127: 500 | K127: 3350 | L127: 10 | M127: 1005 | N127: 4355 | O127: =الجدول1[[#This Row],[الاجمالي بعد الفوائد]]/الجدول1[[#This Row],[عدد قسط]] -> 435.5 | AA127: 435.5 | AB127: 3919.5 | AC127: 1121212127
A128: 126 | B128: 20/11/2019 | C128: اسلام السيد هنداوي | D128: y92019 | E128: 20/12/2019 | F128: =EDATE(الجدول1[[#This Row],[تاريخ بدايةقسط]],الجدول1[[#This Row],[عدد قسط]]-1) -> 2020-03-20 | G128: 3570 | H128: 3600 | I128: 30 | J128: 2000 | K128: 1600 | L128: 4 | M128: 480 | N128: 2080 | O128: =الجدول1[[#This Row],[الاجمالي بعد الفوائد]]/الجدول1[[#This Row],[عدد قسط]] -> 520 | AA128: 520 | AB128: 1560 | AC128: 1121212127
A129: 127 | B129: 20/12/2019 | C129: وليد علي عبد الوهاب | D129: y72019 | E129: 20/1/2019 | F129: =EDATE(الجدول1[[#This Row],[تاريخ بدايةقسط]],الجدول1[[#This Row],[عدد قسط]]-1) -> 2019-07-20 | G129: 2320 | H129: 2350 | I129: 30 | J129: 600 | K129: 1750 | L129: 7 | M129: 525 | N129: 2275 | O129: =الجدول1[[#This Row],[الاجمالي بعد الفوائد]]/الجدول1[[#This Row],[عدد قسط]] -> 325 | AB129: 2275 | AC129: 1121212127
A130: 128 | B130: 20/12/2019 | C130: رضا محمد مرسي2 | D130: a10s x2 | E130: 20/1/2020 | F130: =EDATE(الجدول1[[#This Row],[تاريخ بدايةقسط]],الجدول1[[#This Row],[عدد قسط]]-1) -> 2020-10-20 | G130: 3960 | H130: 4000 | I130: 40 | J130: 600 | K130: 3400 | L130: 10 | M130: 1020 | N130: 4420 | O130: =الجدول1[[#This Row],[الاجمالي بعد الفوائد]]/الجدول1[[#This Row],[عدد قسط]] -> 442 | AB130: 4420 | AC130: 1121212127
A131: 129 | B131: 20/12/2019 | C131: محمود شعبان جودة | D131: a2coy | E131: 20/1/2020 | F131: =EDATE(الجدول1[[#This Row],[تاريخ بدايةقسط]],الجدول1[[#This Row],[عدد قسط]]-1) -> 2020-03-20 | G131: 1280 | H131: 1300 | I131: =H131-G131 -> 20 | J131: 650 | K131: =H131-J131 -> 650 | L131: 3 | M131: 195 | N131: =SUM(M131+K131) -> 845 | O131: =الجدول1[[#This Row],[الاجمالي بعد الفوائد]]/الجدول1[[#This Row],[عدد قسط]] -> 281.6666667 | AB131: 845 | AC131: 1121212127
A132: 130 | B132: 20/12/2019 | C132: سعودي شعبان حلمي | D132: a30s | E132: 20/1/2020 | F132: =EDATE(الجدول1[[#This Row],[تاريخ بدايةقسط]],الجدول1[[#This Row],[عدد قسط]]-1) -> 2020-08-20 | G132: 3720 | H132: 3750 | I132: =H132-G132 -> 30 | J132: 1750 | K132: 2000 | L132: 8 | M132: =K132*30/100 -> 600 | N132: 2600 | O132: =الجدول1[[#This Row],[الاجمالي بعد الفوائد]]/الجدول1[[#This Row],[عدد قسط]] -> 325 | AB132: 2600 | AC132: 1121212127
A133: 131 | B133: 20/1/2020 | C133: سعودي شعبان حلمي2 | D133: a20s | E133: 20/2/2020 | F133: =EDATE(الجدول1[[#This Row],[تاريخ بدايةقسط]],الجدول1[[#This Row],[عدد قسط]]-1) -> 2020-09-20 | G133: 2620 | H133: 2650 | I133: =H133-G133 -> 30 | J133: 650 | K133: 2000 | L133: 8 | M133: 600 | N133: 2600 | O133: =الجدول1[[#This Row],[الاجمالي بعد الفوائد]]/الجدول1[[#This Row],[عدد قسط]] -> 325 | AB133: =M133+K133-(AA133+Z133+Y133+X133+W133+V133+U133+T133+S133+R133+Q133+P133) -> 2600 | AC133: 1121212127
A134: 132 | B134: 20/1/2020 | C134: عبد العظيم رجب عبد | D134: a30s | E134: 20/2/2020 | F134: =EDATE(الجدول1[[#This Row],[تاريخ بدايةقسط]],الجدول1[[#This Row],[عدد قسط]]-1) -> 2020-04-20 | G134: 3650 | H134: 3700 | I134: =H134-G134 -> 50 | J134: 2000 | K134: 1700 | L134: 3 | M134: 510 | N134: 2210 | O134: =الجدول1[[#This Row],[الاجمالي بعد الفوائد]]/الجدول1[[#This Row],[عدد قسط]] -> 736.6666667 | AB134: 2210 | AC134: 1121212127
A135: 133 | B135: 20/12/2020 | C135: ام مصطفي حنان | D135: a10s | E135: 20/1/2020 | F135: =EDATE(الجدول1[[#This Row],[تاريخ بدايةقسط]],الجدول1[[#This Row],[عدد قسط]]-1) -> 2020-06-20 | G135: 1980 | H135: 2000 | I135: 20 | J135: 500 | K135: 1500 | L135: 6 | M135: 450 | N135: 1950 | O135: =الجدول1[[#This Row],[الاجمالي بعد الفوائد]]/الجدول1[[#This Row],[عدد قسط]] -> 325 | AB135: 1950 | AC135: 1121212127
A136: 134 | B136: 20/12/2019 | C136: شعبان احمد | D136: A20S | E136: 20/1/2020 | F136: =EDATE(الجدول1[[#This Row],[تاريخ بدايةقسط]],الجدول1[[#This Row],[عدد قسط]]-1) -> 2020-08-20 | G136: 2650 | H136: 2700 | I136: 50 | J136: 850 | K136: 1850 | L136: 8 | M136: 555 | N136: 2405 | O136: =الجدول1[[#This Row],[الاجمالي بعد الفوائد]]/الجدول1[[#This Row],[عدد قسط]] -> 300.625 | AB136: 2405 | AC136: 1121212127 | AH136: من هنا الي فوق يوم20
A137: 135 | B137: 2020-05-04 | C137: محمد محمود سليم2 | D137: A30S | E137: 2020-05-05 | F137: =EDATE(الجدول1[[#This Row],[تاريخ بدايةقسط]],الجدول1[[#This Row],[عدد قسط]]-1) -> 2021-03-05 | G137: 3470 | H137: 3500 | I137: 30 | J137: 300 | K137: 3200 | L137: 11 | M137: 960 | N137: 4160 | O137: =الجدول1[[#This Row],[الاجمالي بعد الفوائد]]/الجدول1[[#This Row],[عدد قسط]] -> 378.1818182 | AB137: 4160 | AC137: 1121212127 | AH137: خطا ف عدد الشهور
A138: 136 | B138: 2020-05-03 | C138: حسن عزت حسن مغاغه | D138: اوبو | E138: 2020-05-04 | F138: =EDATE(الجدول1[[#This Row],[تاريخ بدايةقسط]],الجدول1[[#This Row],[عدد قسط]]-1) -> 2021-02-04 | G138: 5120 | H138: 5150 | I138: 30 | J138: 0 | K138: 5150 | L138: 10 | M138: 1545 | N138: 6695 | O138: =الجدول1[[#This Row],[الاجمالي بعد الفوائد]]/الجدول1[[#This Row],[عدد قسط]] -> 669.5 | AB138: 6695 | AC138: 1121212127 | AH138: نقص في القسط
A139: 137 | B139: 2020-05-02 | C139: كريم قهوه | D139: A20S | E139: 2020-05-03 | F139: =EDATE(الجدول1[[#This Row],[تاريخ بدايةقسط]],الجدول1[[#This Row],[عدد قسط]]-1) -> 2020-11-03 | G139: 2580 | H139: 2600 | I139: 20 | J139: 1000 | K139: 1600 | L139: 7 | M139: 480 | N139: 2080 | O139: =الجدول1[[#This Row],[الاجمالي بعد الفوائد]]/الجدول1[[#This Row],[عدد قسط]] -> 297.1428571 | AB139: 2080 | AC139: 1121212127
A140: 138 | B140: 2020-05-02 | C140: محمود فرج2 | D140: Y72019 | E140: 2020-05-03 | F140: =EDATE(الجدول1[[#This Row],[تاريخ بدايةقسط]],الجدول1[[#This Row],[عدد قسط]]-1) -> 2021-01-03 | G140: 2230 | H140: 2250 | I140: 20 | J140: 0 | K140: 2250 | L140: 9 | M140: 675 | N140: 2925 | O140: =الجدول1[[#This Row],[الاجمالي بعد الفوائد]]/الجدول1[[#This Row],[عدد قسط]] -> 325 | AB140: 2925 | AC140: 1121212127
A141: 139 | B141: 2020-05-01 | C141: عبد العظيم عيد عبد النبي | D141: A10S | E141: 2020-05-02 | F141: =EDATE(الجدول1[[#This Row],[تاريخ بدايةقسط]],الجدول1[[#This Row],[عدد قسط]]-1) -> 2020-10-02 | G141: 1980 | H141: 2000 | I141: 20 | J141: 500 | K141: 1500 | L141: 6 | M141: 450 | N141: 1950 | O141: =الجدول1[[#This Row],[الاجمالي بعد الفوائد]]/الجدول1[[#This Row],[عدد قسط]] -> 325 | AB141: 1950 | AC141: 1121212127
A142: 140 | B142: 2020-05-02 | C142: محمود مفتاح | D142: A30S | E142: 2020-05-03 | F142: =EDATE(الجدول1[[#This Row],[تاريخ بدايةقسط]],الجدول1[[#This Row],[عدد قسط]]-1) -> 2021-02-03 | G142: 3280 | H142: 3300 | I142: 20 | J142: 0 | K142: 3300 | L142: 10 | M142: 990 | N142: 4290 | O142: =الجدول1[[#This Row],[الاجمالي بعد الفوائد]]/الجدول1[[#This Row],[عدد قسط]] -> 429 | AB142: 4290 | AC142: 1121212127
A143: 141 | B143: 2020-05-02 | C143: عم جمال محمد احمد | D143: A20S | E143: 2020-05-03 | F143: =EDATE(الجدول1[[#This Row],[تاريخ بدايةقسط]],الجدول1[[#This Row],[عدد قسط]]-1) -> 2021-02-03 | G143: 2720 | H143: 2750 | I143: 30 | J143: 500 | K143: 2250 | L143: 10 | M143: 675 | N143: 2925 | O143: =الجدول1[[#This Row],[الاجمالي بعد الفوائد]]/الجدول1[[#This Row],[عدد قسط]] -> 292.5 | AB143: 2925 | AC143: 1121212127
A144: 142 | B144: 2020-05-02 | C144: عثمان رمضان عبد الوهاب | D144: Y92019 | E144: 2020-05-03 | F144: =EDATE(الجدول1[[#This Row],[تاريخ بدايةقسط]],الجدول1[[#This Row],[عدد قسط]]-1) -> 2021-02-03 | G144: 3380 | H144: 3400 | I144: 20 | J144: 1000 | K144: 2400 | L144: 10 | M144: 720 | N144: 3120 | O144: =الجدول1[[#This Row],[الاجمالي بعد الفوائد]]/الجدول1[[#This Row],[عدد قسط]] -> 312 | AB144: 3120 | AC144: 1121212127
A145: 143 | B145: 2020-05-01 | C145: محمود فرج محمود | D145: A10S | E145: 2020-05-02 | F145: =EDATE(الجدول1[[#This Row],[تاريخ بدايةقسط]],الجدول1[[#This Row],[عدد قسط]]-1) -> 2020-11-02 | G145: 1980 | H145: 2000 | I145: 20 | J145: 400 | K145: 1600 | L145: 7 | M145: 480 | N145: 2080 | O145: =الجدول1[[#This Row],[الاجمالي بعد الفوائد]]/الجدول1[[#This Row],[عدد قسط]] -> 297.1428571 | AB145: 2080 | AC145: 1121212127
A146: 144 | B146: 2020-05-01 | C146: عمر محمد كامل | D146: A10S | E146: 2020-05-02 | F146: =EDATE(الجدول1[[#This Row],[تاريخ بدايةقسط]],الجدول1[[#This Row],[عدد قسط]]-1) -> 2020-10-02 | G146: 1980 | H146: 2000 | I146: 20 | J146: 500 | K146: 1500 | L146: 6 | M146: 450 | N146: 1950 | O146: =الجدول1[[#This Row],[الاجمالي بعد الفوائد]]/الجدول1[[#This Row],[عدد قسط]] -> 325 | AB146: 1950 | AC146: 1123166522
A147: 145 | B147: 2020-05-01 | C147: احمد طلبه حسن | D147: A10S | E147: 2020-05-02 | F147: =EDATE(الجدول1[[#This Row],[تاريخ بدايةقسط]],الجدول1[[#This Row],[عدد قسط]]-1) -> 2020-08-02 | G147: 1980 | H147: 2000 | I147: 20 | J147: 1000 | K147: 1000 | L147: 4 | M147: 300 | N147: 1300 | O147: =الجدول1[[#This Row],[الاجمالي بعد الفوائد]]/الجدول1[[#This Row],[عدد قسط]] -> 325 | AB147: 1300 | AC147: 1121212127
A148: 146 | B148: 2020-05-01 | C148: الشيخ محمد محمود | D148: غير ظاهر | E148: 2020-05-02 | F148: =EDATE(الجدول1[[#This Row],[تاريخ بدايةقسط]],الجدول1[[#This Row],[عدد قسط]]-1) -> 2020-10-02 | G148: 1670 | H148: 1700 | I148: 30 | J148: 400 | K148: 1300 | L148: 6 | M148: 390 | N148: 1690 | O148: =الجدول1[[#This Row],[الاجمالي بعد الفوائد]]/الجدول1[[#This Row],[عدد قسط]] -> 281.6666667 | AB148: 1690 | AC148: 1121212127
A149: 147 | B149: 2020-05-01 | C149: الاستاذ ابو زيد | D149: A10S | E149: 2020-05-02 | F149: =EDATE(الجدول1[[#This Row],[تاريخ بدايةقسط]],الجدول1[[#This Row],[عدد قسط]]-1) -> 2020-10-02 | G149: 1970 | H149: 2000 | I149: 30 | J149: 600 | K149: 1400 | L149: 6 | M149: 420 | N149: 1820 | O149: =الجدول1[[#This Row],[الاجمالي بعد الفوائد]]/الجدول1[[#This Row],[عدد قسط]] -> 303.3333333 | AB149: 1820 | AC149: 1155088075
A150: 148 | B150: 2020-05-01 | C150: شادي رضا همام | D150: A20S | E150: 2020-05-02 | F150: =EDATE(الجدول1[[#This Row],[تاريخ بدايةقسط]],الجدول1[[#This Row],[عدد قسط]]-1) -> 2021-02-02 | G150: 2620 | H150: 2650 | I150: 30 | J150: 300 | K150: 2350 | L150: 10 | M150: 705 | N150: 3055 | O150: =الجدول1[[#This Row],[الاجمالي بعد الفوائد]]/الجدول1[[#This Row],[عدد قسط]] -> 305.5 | AB150: 3055 | AC150: 1121212127
A151: 149 | B151: 2020-05-01 | C151: ابو عيسي | D151: a30s | E151: 2020-05-02 | F151: =EDATE(الجدول1[[#This Row],[تاريخ بدايةقسط]],الجدول1[[#This Row],[عدد قسط]]-1) -> 2021-02-02 | G151: 3650 | H151: 3700 | I151: 50 | J151: 1300 | K151: 2400 | L151: 10 | M151: 720 | N151: 3120 | O151: =الجدول1[[#This Row],[الاجمالي بعد الفوائد]]/الجدول1[[#This Row],[عدد قسط]] -> 312 | AB151: 3120 | AC151: 1121212127
A152: 150 | B152: 2020-05-01 | C152: يوسف صالح عبد المولي | D152: اوبو5 | E152: 2020-05-02 | F152: =EDATE(الجدول1[[#This Row],[تاريخ بدايةقسط]],الجدول1[[#This Row],[عدد قسط]]-1) -> 2020-11-02 | G152: 2620 | H152: 2650 | I152: 30 | J152: 1000 | K152: 1650 | L152: 7 | M152: 495 | N152: 2145 | O152: =الجدول1[[#This Row],[الاجمالي بعد الفوائد]]/الجدول1[[#This Row],[عدد قسط]] -> 306.4285714 | AB152: 2145 | AC152: 1121212127
A153: 151 | B153: 2020-05-01 | C153: فتحي عبد العزيز عدلي | D153: y9 | E153: 2020-05-02 | F153: =EDATE(الجدول1[[#This Row],[تاريخ بدايةقسط]],الجدول1[[#This Row],[عدد قسط]]-1) -> 2021-02-02 | G153: 4280 | H153: 4300 | I153: 20 | J153: 0 | K153: 4300 | L153: 10 | M153: 1290 | N153: 5590 | O153: =الجدول1[[#This Row],[الاجمالي بعد الفوائد]]/الجدول1[[#This Row],[عدد قسط]] -> 559 | AB153: 5590 | AC153: 1121212127
A154: 152 | B154: 2020-05-01 | C154: احمد محمد احمد حسن | D154: a20s | E154: 2020-05-02 | F154: =EDATE(الجدول1[[#This Row],[تاريخ بدايةقسط]],الجدول1[[#This Row],[عدد قسط]]-1) -> 2020-12-02 | G154: 2620 | H154: 2650 | I154: 30 | J154: 650 | K154: 2000 | L154: 8 | M154: 600 | N154: 2600 | O154: =الجدول1[[#This Row],[الاجمالي بعد الفوائد]]/الجدول1[[#This Row],[عدد قسط]] -> 325 | AB154: 2600 | AC154: 1121212127
A155: 153 | B155: 2020-05-01 | C155: خالد محمد محمد عبد الجواد | D155: y92019 | E155: 2020-05-02 | F155: =EDATE(الجدول1[[#This Row],[تاريخ بدايةقسط]],الجدول1[[#This Row],[عدد قسط]]-1) -> 2021-02-02 | G155: 3520 | H155: 3550 | I155: 30 | J155: 550 | K155: 3000 | L155: 10 | M155: 900 | N155: 3900 | O155: =الجدول1[[#This Row],[الاجمالي بعد الفوائد]]/الجدول1[[#This Row],[عدد قسط]] -> 390 | AB155: 3900 | AC155: 1121212127
A156: 154 | B156: 2020-05-01 | C156: حاتم مصطفي عبد الوهاب | D156: A10S | E156: 2020-05-02 | F156: =EDATE(الجدول1[[#This Row],[تاريخ بدايةقسط]],الجدول1[[#This Row],[عدد قسط]]-1) -> 2020-10-02 | G156: 1980 | H156: 2000 | I156: 20 | J156: 500 | K156: 1500 | L156: 6 | M156: 450 | N156: 1950 | O156: =الجدول1[[#This Row],[الاجمالي بعد الفوائد]]/الجدول1[[#This Row],[عدد قسط]] -> 325 | AB156: 1950 | AC156: 1121212127
A157: 155 | B157: 2020-05-01 | C157: احمد ناصر محمد مغاغه | D157: A52020 | E157: 2020-05-02 | F157: =EDATE(الجدول1[[#This Row],[تاريخ بدايةقسط]],الجدول1[[#This Row],[عدد قسط]]-1) -> 2021-02-02 | G157: 3520 | H157: 3550 | I157: =H157-G157 -> 30 | J157: 450 | K157: 3100 | L157: 10 | M157: 930 | N157: 4030 | O157: =الجدول1[[#This Row],[الاجمالي بعد الفوائد]]/الجدول1[[#This Row],[عدد قسط]] -> 403 | AB157: 4030 | AC157: 1121212127
A158: 156 | B158: 2020-05-01 | C158: شريف فرج الله | D158: A20S | E158: 2020-05-02 | F158: =EDATE(الجدول1[[#This Row],[تاريخ بدايةقسط]],الجدول1[[#This Row],[عدد قسط]]-1) -> 2020-12-02 | G158: 2620 | H158: 2650 | I158: 30 | J158: 650 | K158: 2000 | L158: 8 | M158: 600 | N158: 2600 | O158: =الجدول1[[#This Row],[الاجمالي بعد الفوائد]]/الجدول1[[#This Row],[عدد قسط]] -> 325 | AB158: 2600 | AC158: 1121212127
A159: 157 | B159: 2019-05-12 | C159: محمود منصور | D159: A120S | E159: 2020-05-01 | F159: =EDATE(الجدول1[[#This Row],[تاريخ بدايةقسط]],الجدول1[[#This Row],[عدد قسط]]-1) -> 2020-09-01 | G159: 2020 | H159: 2050 | I159: 30 | J159: 1000 | K159: 1050 | L159: 5 | M159: 315 | N159: 1365 | O159: =الجدول1[[#This Row],[الاجمالي بعد الفوائد]]/الجدول1[[#This Row],[عدد قسط]] -> 273 | AB159: 1365 | AC159: 1121212127
A160: 158 | B160: 2019-05-12 | C160: عيس عبدالعزيز عدلي2 | D160: A10S | E160: 2020-05-01 | F160: =EDATE(الجدول1[[#This Row],[تاريخ بدايةقسط]],الجدول1[[#This Row],[عدد قسط]]-1) -> 2020-12-01 | G160: 2020 | H160: 2050 | I160: 30 | J160: 0 | K160: 2050 | L160: 8 | M160: 615 | N160: 2665 | O160: =الجدول1[[#This Row],[الاجمالي بعد الفوائد]]/الجدول1[[#This Row],[عدد قسط]] -> 333.125 | AB160: 2665 | AC160: 1148101201
A161: 159 | B161: 2019-05-12 | C161: عبد اللطيف محمد | D161: A20S | E161: 2020-05-01 | F161: =EDATE(الجدول1[[#This Row],[تاريخ بدايةقسط]],الجدول1[[#This Row],[عدد قسط]]-1) -> 2021-02-01 | G161: 2770 | H161: 2800 | I161: 30 | J161: 500 | K161: 2300 | L161: 10 | M161: 690 | N161: 2990 | O161: =الجدول1[[#This Row],[الاجمالي بعد الفوائد]]/الجدول1[[#This Row],[عدد قسط]] -> 299 | AB161: 2990 | AC161: 1121212127
A162: 160 | B162: 2019-05-12 | C162: احمد ابو الجرس | D162: ريلمي5 | E162: 2020-05-01 | F162: =EDATE(الجدول1[[#This Row],[تاريخ بدايةقسط]],الجدول1[[#This Row],[عدد قسط]]-1) -> 2021-02-01 | G162: 2620 | H162: 2650 | I162: 30 | J162: 150 | K162: 2500 | L162: 10 | M162: 750 | N162: 3250 | O162: =الجدول1[[#This Row],[الاجمالي بعد الفوائد]]/الجدول1[[#This Row],[عدد قسط]] -> 325 | AB162: 3250 | AC162: 1153249980
A163: 161 | B163: 2019-05-10 | C163: بتول ايوبي | D163: NT7 | E163: 2019-05-11 | F163: =EDATE(الجدول1[[#This Row],[تاريخ بدايةقسط]],الجدول1[[#This Row],[عدد قسط]]-1) -> 2020-02-11 | G163: 3930 | H163: 3950 | I163: 20 | J163: 450 | K163: 3500 | L163: 10 | M163: 1050 | N163: 4550 | O163: =الجدول1[[#This Row],[الاجمالي بعد الفوائد]]/الجدول1[[#This Row],[عدد قسط]] -> 455 | Z163: 465 | AB163: 4085 | AC163: 1121212127
A164: 162 | B164: 2019-05-10 | C164: ولاء ابراهيم | D164: S4 | E164: 2020-05-11 | F164: =EDATE(الجدول1[[#This Row],[تاريخ بدايةقسط]],الجدول1[[#This Row],[عدد قسط]]-1) -> 2021-02-11 | G164: 2720 | H164: 2750 | I164: 30 | J164: 300 | K164: 2450 | L164: 10 | M164: 735 | N164: 3185 | O164: =الجدول1[[#This Row],[الاجمالي بعد الفوائد]]/الجدول1[[#This Row],[عدد قسط]] -> 318.5 | Z164: 318.5 | AA164: 318.5 | AB164: 2548 | AC164: 1121212127
A165: 163 | B165: 2019-05-10 | C165: رجب محمد رزق | D165: A20 | E165: 2019-05-11 | F165: =EDATE(الجدول1[[#This Row],[تاريخ بدايةقسط]],الجدول1[[#This Row],[عدد قسط]]-1) -> 2019-12-11 | G165: 2600 | H165: 2650 | I165: 50 | J165: 800 | K165: 1850 | L165: 8 | M165: 555 | N165: 2405 | O165: =الجدول1[[#This Row],[الاجمالي بعد الفوائد]]/الجدول1[[#This Row],[عدد قسط]] -> 300.625 | Z165: 300.6 | AA165: 300.6 | AB165: 1803.8 | AC165: 1121212127
A166: 164 | B166: 2019-05-10 | C166: عبد الله جمال ادم | D166: A20 | E166: 2019-05-11 | F166: =EDATE(الجدول1[[#This Row],[تاريخ بدايةقسط]],الجدول1[[#This Row],[عدد قسط]]-1) -> 2019-12-11 | G166: 2620 | H166: 2650 | I166: 30 | J166: 500 | K166: 2150 | L166: 8 | M166: 645 | N166: 2795 | O166: =الجدول1[[#This Row],[الاجمالي بعد الفوائد]]/الجدول1[[#This Row],[عدد قسط]] -> 349.375 | Z166: 349.4 | AA166: 349.4 | AB166: 2096.2 | AC166: 1121212127
A167: 165 | B167: 2019-05-10 | C167: محمد كثروي | D167: S4 | E167: 2019-05-11 | F167: =EDATE(الجدول1[[#This Row],[تاريخ بدايةقسط]],الجدول1[[#This Row],[عدد قسط]]-1) -> 2020-02-11 | G167: 2730 | H167: 2750 | I167: 20 | J167: 300 | K167: 2450 | L167: 10 | M167: 735 | N167: 3185 | O167: =الجدول1[[#This Row],[الاجمالي بعد الفوائد]]/الجدول1[[#This Row],[عدد قسط]] -> 318.5 | Z167: 318.5 | AA167: 318.5 | AB167: 2548 | AC167: 1121212127
A168: 166 | B168: 2019-05-10 | C168: رباب محمد السيد | D168: A20 XZ | E168: 2019-05-11 | F168: =EDATE(الجدول1[[#This Row],[تاريخ بدايةقسط]],الجدول1[[#This Row],[عدد قسط]]-1) -> 2020-02-11 | G168: 5340 | H168: 5400 | I168: 60 | J168: 1000 | K168: 4400 | L168: 10 | M168: 1320 | N168: 5720 | O168: =الجدول1[[#This Row],[الاجمالي بعد الفوائد]]/الجدول1[[#This Row],[عدد قسط]] -> 572 | Z168: 572 | AA168: 572 | AB168: 4576 | AC168: 1121212127
A169: 167 | B169: 2019-05-10 | C169: رجب السيد | D169: A10S | E169: 2019-05-11 | F169: =EDATE(الجدول1[[#This Row],[تاريخ بدايةقسط]],الجدول1[[#This Row],[عدد قسط]]-1) -> 2019-12-11 | G169: 2670 | H169: 2700 | I169: 30 | J169: 700 | K169: 2000 | L169: 8 | M169: 600 | N169: 2600 | O169: =الجدول1[[#This Row],[الاجمالي بعد الفوائد]]/الجدول1[[#This Row],[عدد قسط]] -> 325 | Z169: 325 | AA169: 325 | AB169: 1950 | AC169: 1121212127
A170: 168 | B170: 2019-05-11 | C170: رضا عبد المطلب | D170: A10S | E170: 2019-05-12 | F170: =EDATE(الجدول1[[#This Row],[تاريخ بدايةقسط]],الجدول1[[#This Row],[عدد قسط]]-1) -> 2019-10-12 | G170: 2120 | H170: 2150 | I170: 30 | J170: 600 | K170: 1550 | L170: 6 | M170: 465 | N170: 2015 | O170: =الجدول1[[#This Row],[الاجمالي بعد الفوائد]]/الجدول1[[#This Row],[عدد قسط]] -> 335.8333333 | AA170: 300 | AB170: 1715 | AC170: 1121212127
A171: 169 | B171: 2019-05-11 | C171: احمد ماهر المصري | D171: اوبو A9 | E171: 2019-05-12 | F171: =EDATE(الجدول1[[#This Row],[تاريخ بدايةقسط]],الجدول1[[#This Row],[عدد قسط]]-1) -> 2020-02-12 | G171: 5100 | H171: 5150 | I171: 50 | J171: 1000 | K171: 4150 | L171: 10 | M171: 1245 | N171: 5395 | O171: =الجدول1[[#This Row],[الاجمالي بعد الفوائد]]/الجدول1[[#This Row],[عدد قسط]] -> 539.5 | AA171: 539.5 | AB171: 4855.5 | AC171: 109695739
A172: 170 | B172: 2019-05-11 | C172: فرجاني احمد مصطفي | D172: A10S | E172: 2019-05-12 | F172: =EDATE(الجدول1[[#This Row],[تاريخ بدايةقسط]],الجدول1[[#This Row],[عدد قسط]]-1) -> 2019-12-12 | G172: 2120 | H172: 2150 | I172: 30 | J172: 150 | K172: 2000 | L172: 8 | M172: 600 | N172: 2600 | O172: =الجدول1[[#This Row],[الاجمالي بعد الفوائد]]/الجدول1[[#This Row],[عدد قسط]] -> 325 | AA172: 325 | AB172: 2275 | AC172: 101847658
A173: 171 | B173: 2019-05-11 | C173: عبد العظيم السيد عبد العظيم | D173: Y92019 | E173: 2019-05-12 | F173: =EDATE(الجدول1[[#This Row],[تاريخ بدايةقسط]],الجدول1[[#This Row],[عدد قسط]]-1) -> 2019-10-12 | G173: 2480 | H173: 2500 | I173: 20 | J173: 1000 | K173: 1500 | L173: 6 | M173: 450 | N173: 1950 | O173: =الجدول1[[#This Row],[الاجمالي بعد الفوائد]]/الجدول1[[#This Row],[عدد قسط]] -> 325 | AA173: 325 | AB173: 1625 | AC173: 1121212127
A174: 172 | B174: 2019-05-10 | C174: رجب محمد رزق2 | D174: A20S | E174: 2019-05-11 | F174: =EDATE(الجدول1[[#This Row],[تاريخ بدايةقسط]],الجدول1[[#This Row],[عدد قسط]]-1) -> 2019-12-11 | G174: 2820 | H174: 2850 | I174: 30 | J174: 1000 | K174: 1850 | L174: 8 | M174: 555 | N174: 2405 | O174: =الجدول1[[#This Row],[الاجمالي بعد الفوائد]]/الجدول1[[#This Row],[عدد قسط]] -> 300.625 | Z174: 300.6 | AA174: 300.6 | AB174: 1803.8 | AC174: 1121212127
A175: 173 | B175: 2020-10-02 | C175: محمد السيد ابراهيم | D175: S5 | E175: 2020-10-03 | F175: =EDATE(الجدول1[[#This Row],[تاريخ بدايةقسط]],الجدول1[[#This Row],[عدد قسط]]-1) -> 2021-07-03 | G175: 2820 | H175: 2850 | I175: 30 | J175: 500 | K175: 2350 | L175: 10 | M175: 705 | N175: 3055 | O175: =الجدول1[[#This Row],[الاجمالي بعد الفوائد]]/الجدول1[[#This Row],[عدد قسط]] -> 305.5 | AB175: 3055 | AC175: 1121212127
A176: 174 | B176: 2020-10-02 | C176: محمد عبد الوهاب عبد العزيز | D176: A20S | E176: 2020-10-03 | F176: =EDATE(الجدول1[[#This Row],[تاريخ بدايةقسط]],الجدول1[[#This Row],[عدد قسط]]-1) -> 2021-06-03 | G176: 2580 | H176: 2600 | I176: 20 | J176: 500 | K176: 2100 | L176: 9 | M176: 630 | N176: 2730 | O176: =الجدول1[[#This Row],[الاجمالي بعد الفوائد]]/الجدول1[[#This Row],[عدد قسط]] -> 303.3333333 | AB176: 2730 | AC176: 1121212127 | AH176: خطا في فرق الجمله ونقص القسط
A177: 175 | B177: 2020-10-03 | C177: عم احمد ابو الجندي | D177: A10S | E177: 2020-10-04 | F177: =EDATE(الجدول1[[#This Row],[تاريخ بدايةقسط]],الجدول1[[#This Row],[عدد قسط]]-1) -> 2021-06-04 | G177: 2100 | H177: 2100 | I177: 0 | J177: 400 | K177: 1700 | L177: 9 | M177: 510 | N177: 2210 | O177: =الجدول1[[#This Row],[الاجمالي بعد الفوائد]]/الجدول1[[#This Row],[عدد قسط]] -> 245.5555556 | AB177: 2210 | AC177: 1121212127
A178: 176 | B178: 2020-10-03 | C178: مصطفي صلاح محمد | D178: ريملي5 | E178: 2020-10-04 | F178: =EDATE(الجدول1[[#This Row],[تاريخ بدايةقسط]],الجدول1[[#This Row],[عدد قسط]]-1) -> 2021-02-04 | G178: 2620 | H178: 2650 | I178: 30 | J178: 1500 | K178: 1150 | L178: 5 | M178: 345 | N178: 1495 | O178: =الجدول1[[#This Row],[الاجمالي بعد الفوائد]]/الجدول1[[#This Row],[عدد قسط]] -> 299 | AB178: 1495 | AC178: 1121212127
A179: 177 | B179: 2020-10-03 | C179: جمال خالد محمد علي | D179: A10S | E179: 2020-10-04 | F179: =EDATE(الجدول1[[#This Row],[تاريخ بدايةقسط]],الجدول1[[#This Row],[عدد قسط]]-1) -> 2021-04-04 | G179: 2080 | H179: 2100 | I179: 20 | J179: 500 | K179: 1600 | L179: 7 | M179: 480 | N179: 2080 | O179: =الجدول1[[#This Row],[الاجمالي بعد الفوائد]]/الجدول1[[#This Row],[عدد قسط]] -> 297.1428571 | AB179: 2080 | AC179: 1121212127
A180: 178 | B180: 2020-10-02 | C180: احمد محمود محمد | D180: A10S | E180: 2020-10-03 | F180: =EDATE(الجدول1[[#This Row],[تاريخ بدايةقسط]],الجدول1[[#This Row],[عدد قسط]]-1) -> 2021-07-03 | G180: 2080 | H180: 2100 | I180: 20 | J180: 500 | K180: 1600 | L180: 10 | M180: 480 | N180: 2080 | O180: =الجدول1[[#This Row],[الاجمالي بعد الفوائد]]/الجدول1[[#This Row],[عدد قسط]] -> 208 | AB180: 2080 | AC180: 1121212127
A181: 179 | B181: 2020-10-03 | C181: علي فرج عبد الطيف | D181: A20S | E181: 2020-10-04 | F181: =EDATE(الجدول1[[#This Row],[تاريخ بدايةقسط]],الجدول1[[#This Row],[عدد قسط]]-1) -> 2021-06-04 | G181: 2580 | H181: 2600 | I181: 20 | J181: 500 | K181: 2100 | L181: 9 | M181: 630 | N181: 2730 | O181: =الجدول1[[#This Row],[الاجمالي بعد الفوائد]]/الجدول1[[#This Row],[عدد قسط]] -> 303.3333333 | AB181: 2730 | AC181: 1121212127
A182: 180 | B182: 2020-10-03 | C182: محمود ناصر مغاغه2 | D182: HOT8 | E182: 2020-10-04 | F182: =EDATE(الجدول1[[#This Row],[تاريخ بدايةقسط]],الجدول1[[#This Row],[عدد قسط]]-1) -> 2021-07-04 | G182: 2180 | H182: 2200 | I182: 20 | J182: 0 | K182: 2200 | L182: 10 | M182: 660 | N182: 2860 | O182: =الجدول1[[#This Row],[الاجمالي بعد الفوائد]]/الجدول1[[#This Row],[عدد قسط]] -> 286 | AB182: 2860 | AC182: 1121212127
A183: 181 | B183: 2020-10-03 | C183: محمد عبد الفتاح حسن | D183: A20S | E183: 2020-10-04 | F183: =EDATE(الجدول1[[#This Row],[تاريخ بدايةقسط]],الجدول1[[#This Row],[عدد قسط]]-1) -> 2021-07-04 | G183: 2580 | H183: 2600 | I183: 20 | J183: 300 | K183: 2300 | L183: 10 | M183: 690 | N183: 2990 | O183: =الجدول1[[#This Row],[الاجمالي بعد الفوائد]]/الجدول1[[#This Row],[عدد قسط]] -> 299 | AB183: 2990 | AC183: 1121212127
A184: 182 | B184: 2020-10-03 | C184: حسام رجب عبد اللطيف | D184: a20s | E184: 2020-10-04 | F184: =EDATE(الجدول1[[#This Row],[تاريخ بدايةقسط]],الجدول1[[#This Row],[عدد قسط]]-1) -> 2021-04-04 | G184: 2580 | H184: 2600 | I184: 20 | J184: 1000 | K184: 1600 | L184: 7 | M184: 480 | N184: 2080 | O184: =الجدول1[[#This Row],[الاجمالي بعد الفوائد]]/الجدول1[[#This Row],[عدد قسط]] -> 297.1428571 | AB184: 2080 | AC184: 1121212127
A185: 183 | B185: 2020-10-03 | C185: محمد طه عبد الوهاب | D185: y7b | E185: 2020-10-04 | F185: =EDATE(الجدول1[[#This Row],[تاريخ بدايةقسط]],الجدول1[[#This Row],[عدد قسط]]-1) -> 2021-07-04 | G185: 2780 | H185: 2800 | I185: 20 | J185: 200 | K185: 2600 | L185: 10 | M185: 780 | N185: 3380 | O185: =الجدول1[[#This Row],[الاجمالي بعد الفوائد]]/الجدول1[[#This Row],[عدد قسط]] -> 338 | AB185: 3380 | AC185: 1121212127
A186: 184 | B186: 2020-10-03 | C186: درويش | D186: a10s | E186: 2020-10-04 | F186: =EDATE(الجدول1[[#This Row],[تاريخ بدايةقسط]],الجدول1[[#This Row],[عدد قسط]]-1) -> 2021-06-04 | G186: 2080 | H186: 2100 | I186: 20 | J186: 400 | K186: 1700 | L186: 9 | M186: 510 | N186: 2210 | O186: =الجدول1[[#This Row],[الاجمالي بعد الفوائد]]/الجدول1[[#This Row],[عدد قسط]] -> 245.5555556 | AB186: 2210 | AC186: 1121212127
A187: 185 | B187: 2020-10-03 | C187: عبد الجليل | D187: a10s | E187: 2020-10-04 | F187: =EDATE(الجدول1[[#This Row],[تاريخ بدايةقسط]],الجدول1[[#This Row],[عدد قسط]]-1) -> 2021-05-04 | G187: 2080 | H187: 2100 | I187: 20 | J187: 100 | K187: 2000 | L187: 8 | M187: 600 | N187: 2600 | O187: =الجدول1[[#This Row],[الاجمالي بعد الفوائد]]/الجدول1[[#This Row],[عدد قسط]] -> 325 | AB187: 2600 | AC187: 1121212127
A188: 186 | B188: 2020-10-03 | C188: صالح علي احمد | D188: a5s | E188: 2020-10-04 | F188: =EDATE(الجدول1[[#This Row],[تاريخ بدايةقسط]],الجدول1[[#This Row],[عدد قسط]]-1) -> 2021-06-04 | G188: 2430 | H188: 2450 | I188: 20 | J188: 400 | K188: 2050 | L188: 9 | M188: 615 | N188: 2665 | O188: =الجدول1[[#This Row],[الاجمالي بعد الفوائد]]/الجدول1[[#This Row],[عدد قسط]] -> 296.1111111 | AB188: 2665 | AC188: 1121212127
A189: 187 | B189: 2020-10-03 | C189: احمد محمد عبد الحميد | D189: سمارت 2 | E189: 2020-10-04 | F189: =EDATE(الجدول1[[#This Row],[تاريخ بدايةقسط]],الجدول1[[#This Row],[عدد قسط]]-1) -> 2021-05-04 | G189: 1530 | H189: 1550 | I189: 20 | J189: 200 | K189: 1350 | L189: 8 | M189: 405 | N189: 1755 | O189: =الجدول1[[#This Row],[الاجمالي بعد الفوائد]]/الجدول1[[#This Row],[عدد قسط]] -> 219.375 | AB189: 1755 | AC189: 1121212127
A190: 188 | B190: 2020-10-03 | C190: عبد العظيم رجب عبد العظيم | D190: a10s | E190: 2020-10-04 | F190: =EDATE(الجدول1[[#This Row],[تاريخ بدايةقسط]],الجدول1[[#This Row],[عدد قسط]]-1) -> 2021-05-04 | G190: 2080 | H190: 2100 | I190: 20 | J190: 100 | K190: 2000 | L190: 8 | M190: 600 | N190: 2600 | O190: =الجدول1[[#This Row],[الاجمالي بعد الفوائد]]/الجدول1[[#This Row],[عدد قسط]] -> 325 | AB190: 2600 | AC190: 1121212127
A191: 189 | B191: 2020-10-03 | C191: ايمن حسين سالم | D191: 5 | E191: 2020-10-04 | F191: =EDATE(الجدول1[[#This Row],[تاريخ بدايةقسط]],الجدول1[[#This Row],[عدد قسط]]-1) -> 2021-05-04 | G191: 2630 | H191: 2650 | I191: 20 | J191: 650 | K191: 2000 | L191: 8 | M191: 600 | N191: 2600 | O191: =الجدول1[[#This Row],[الاجمالي بعد الفوائد]]/الجدول1[[#This Row],[عدد قسط]] -> 325 | AB191: 2600 | AC191: 1121212127
A192: 190 | B192: 2020-10-05 | C192: محمد ابو الحسن | D192: اوبو2 | E192: 2020-10-06 | F192: =EDATE(الجدول1[[#This Row],[تاريخ بدايةقسط]],الجدول1[[#This Row],[عدد قسط]]-1) -> 2021-07-06 | G192: 4000 | H192: 4000 | I192: 0 | J192: 0 | K192: 4000 | L192: 10 | M192: 1200 | N192: 5200 | O192: =الجدول1[[#This Row],[الاجمالي بعد الفوائد]]/الجدول1[[#This Row],[عدد قسط]] -> 520 | AB192: 5200 | AC192: 1121212127
A193: 191 | B193: 2020-10-04 | C193: محمد رجب حسين | D193: ra2f | E193: 2020-10-05 | F193: =EDATE(الجدول1[[#This Row],[تاريخ بدايةقسط]],الجدول1[[#This Row],[عدد قسط]]-1) -> 2021-07-05 | G193: 5100 | H193: 5100 | I193: 0 | J193: 2100 | K193: 3000 | L193: 10 | M193: 900 | N193: 3900 | O193: =الجدول1[[#This Row],[الاجمالي بعد الفوائد]]/الجدول1[[#This Row],[عدد قسط]] -> 390 | AB193: 3900 | AC193: 1121212127
A194: 192 | B194: 2020-10-03 | C194: احمد ايمن مخيمر | D194: y92019 | E194: 2020-10-04 | F194: =EDATE(الجدول1[[#This Row],[تاريخ بدايةقسط]],الجدول1[[#This Row],[عدد قسط]]-1) -> 2021-05-04 | G194: 3380 | H194: 3400 | I194: 20 | J194: 1400 | K194: 2000 | L194: 8 | M194: 600 | N194: 2600 | O194: =الجدول1[[#This Row],[الاجمالي بعد الفوائد]]/الجدول1[[#This Row],[عدد قسط]] -> 325 | AB194: 2600 | AC194: 1121212127
A195: 193 | B195: 2020-10-04 | C195: ياسر محمد علي بطيخه | D195: a30s | E195: 2020-10-05 | F195: =EDATE(الجدول1[[#This Row],[تاريخ بدايةقسط]],الجدول1[[#This Row],[عدد قسط]]-1) -> 2021-07-05 | G195: 3020 | H195: 3050 | I195: 30 | J195: 500 | K195: =H195-J195 -> 2550 | L195: 10 | M195: 765 | N195: =SUM(M195+K195) -> 3315 | O195: =الجدول1[[#This Row],[الاجمالي بعد الفوائد]]/الجدول1[[#This Row],[عدد قسط]] -> 331.5 | AB195: 3315 | AC195: 1121212127
A196: 194 | B196: 2020-10-04 | C196: معتصم محمد ابراهيم | D196: y6 | E196: 2020-10-05 | F196: =EDATE(الجدول1[[#This Row],[تاريخ بدايةقسط]],الجدول1[[#This Row],[عدد قسط]]-1) -> 2021-05-05 | G196: 1830 | H196: 1850 | I196: 20 | J196: 0 | K196: 1850 | L196: 8 | M196: =K196*30/100 -> 555 | N196: 2405 | O196: =الجدول1[[#This Row],[الاجمالي بعد الفوائد]]/الجدول1[[#This Row],[عدد قسط]] -> 300.625 | AB196: 2405 | AC196: 1121212127
A197: 195 | B197: 2020-10-04 | C197: محمد السيد بهجات | D197: a20s | E197: 2020-10-05 | F197: =EDATE(الجدول1[[#This Row],[تاريخ بدايةقسط]],الجدول1[[#This Row],[عدد قسط]]-1) -> 2021-07-05 | G197: 2600 | H197: 2600 | I197: 0 | J197: 0 | K197: 2600 | L197: 10 | M197: 780 | N197: 3380 | O197: =الجدول1[[#This Row],[الاجمالي بعد الفوائد]]/الجدول1[[#This Row],[عدد قسط]] -> 338 | AB197: =M197+K197-(AA197+Z197+Y197+X197+W197+V197+U197+T197+S197+R197+Q197+P197) -> 3380 | AC197: 1121212127
A198: 196 | B198: 2020-10-04 | C198: اخت عبد الرحمن السيد مبروك | D198: a20s | E198: 2020-10-05 | F198: =EDATE(الجدول1[[#This Row],[تاريخ بدايةقسط]],الجدول1[[#This Row],[عدد قسط]]-1) -> 2021-05-05 | G198: 2550 | H198: 2550 | I198: =H198-G198 -> 0 | J198: 1000 | K198: 1550 | L198: 8 | M198: 465 | N198: 2015 | O198: =الجدول1[[#This Row],[الاجمالي بعد الفوائد]]/الجدول1[[#This Row],[عدد قسط]] -> 251.875 | AB198: 2015 | AC198: 1121212127
A199: 197 | B199: 2020-10-05 | C199: محمد تبع همام | D199: y92019 | E199: 2020-10-06 | F199: =EDATE(الجدول1[[#This Row],[تاريخ بدايةقسط]],الجدول1[[#This Row],[عدد قسط]]-1) -> 2021-07-06 | G199: 3400 | H199: 3400 | I199: 0 | J199: 500 | K199: 2900 | L199: 10 | M199: 870 | N199: 3770 | O199: =الجدول1[[#This Row],[الاجمالي بعد الفوائد]]/الجدول1[[#This Row],[عدد قسط]] -> 377 | AB199: 3770 | AC199: 1121212127
A200: 198 | B200: 2020-10-05 | C200: صفاء السيد احمد احمد | D200: a20s | E200: 2020-10-06 | F200: =EDATE(الجدول1[[#This Row],[تاريخ بدايةقسط]],الجدول1[[#This Row],[عدد قسط]]-1) -> 2021-07-06 | G200: 2550 | H200: 2550 | I200: 0 | J200: 250 | K200: 2300 | L200: 10 | M200: 690 | N200: 2990 | O200: =الجدول1[[#This Row],[الاجمالي بعد الفوائد]]/الجدول1[[#This Row],[عدد قسط]] -> 299 | AB200: 2990 | AC200: 1121212127
... 1924 more rows

Sheet تسديد اقساط 2020
A1: رقم الملف | C1: تاريخ اليوم | D1: =TODAY() -> 2020-05-21 | E1: =NOW() -> 43972.20113 | F1: الوقت الحالي | G1: بسم الله الرحمن الرحيم | L1: بسم الله ماشاء الله
B2: تاريخ الشراء | C2: اسم العميل | D2: اسم الجهاز | E2: تاريخ بدايةقسط | F2: تاريخ اخرقسط | G2: سعر الجملة | H2: سعر البيع | I2: الربح | J2: المقدم | K2: الصافي | L2: عدد قسط | M2: فوائد القسط | N2: الاجمالي بعد الفوائد | O2: القسط | P2: يناير | Q2: فبراير | R2: مارس | S2: ابريل | T2: مايو | U2: يونيو | V2: يوليو | W2: اغسطس | X2: سمبتمبر | Y2: اكتوبر | Z2: نوفمبر | AA2: ديسمبر | AB2: صافي القسط | AC2: عمود21 | AD2: اسم الضامن | AE2: رقم الضامن | AF2: رقم الوصل | AG2: تاريخ الشراء2 | AH2: ملاحظات
A3: 1 | B3: 2019-01-10 | C3: عثمان كريم | D3: a303 | E3: 2019-01-11 | G3: 3720 | H3: 3750 | I3: =H3-G3 -> 30 | J3: 0 | K3: =H3-J3 -> 3750 | L3: 10 | M3: =K3*30/100 -> 1125 | N3: =SUM(M3+K3) -> 4875 | O3: =الجدول14[[#This Row],[الاجمالي بعد الفوائد]]/الجدول14[[#This Row],[عدد قسط]] -> 487.5 | P3: 487.5 | Q3: 487.5 | R3: 487.5 | S3: 487.5 | Z3: 487.5 | AA3: 487.5 | AB3: =M3+K3-(AA3+Z3+Y3+X3+W3+V3+U3+T3+S3+R3+Q3+P3) -> 1950 | AC3: 1121212127
A4: 2 | B4: 2019-01-10 | C4: عبد الباقي محمد | D4: k2x | E4: 2019-01-11 | G4: 3880 | H4: 3900 | I4: =H4-G4 -> 20 | J4: 900 | K4: 3000 | L4: 8 | M4: =K4*30/100 -> 900 | N4: 3900 | O4: =الجدول14[[#This Row],[الاجمالي بعد الفوائد]]/الجدول14[[#This Row],[عدد قسط]] -> 487.5 | P4: 487.5 | Q4: 487.5 | R4: 487.5 | S4: 487.5 | T4: 487.5 | Z4: 487.5 | AA4: 487.5 | AB4: =M4+K4-(AA4+Z4+Y4+X4+W4+V4+U4+T4+S4+R4+Q4+P4) -> 487.5
A5: 3 | B5: 2019-01-10 | C5: محمود عربي | D5: a55 | E5: 2019-01-11 | G5: 2620 | H5: 2650 | I5: 30 | J5: 500 | K5: 2150 | L5: 9 | M5: 645 | N5: 2795 | O5: =الجدول14[[#This Row],[الاجمالي بعد الفوائد]]/الجدول14[[#This Row],[عدد قسط]] -> 310.5555556 | P5: 310.6 | Q5: 310.6 | R5: 310.6 | S5: 310.6 | T5: 310.6 | U5: 310.6 | V5: 310.6 | Z5: 306.5 | AA5: 306.5 | AB5: =M5+K5-(AA5+Z5+Y5+X5+W5+V5+U5+T5+S5+R5+Q5+P5) -> 7.8 | AC5: 1121212127
A6: 4 | B6: 2019-01-10 | C6: عم ممدوح | D6: سمارت 2 | E6: 2019-01-11 | G6: 1430 | H6: 1450 | I6: 20 | J6: 450 | K6: 1000 | L6: 7 | M6: 300 | N6: =SUM(M6+K6) -> 1300 | O6: =الجدول14[[#This Row],[الاجمالي بعد الفوائد]]/الجدول14[[#This Row],[عدد قسط]] -> 185.7142857 | P6: 185.7 | Q6: 185.7 | R6: 185.7 | S6: 185.7 | T6: 185.7 | Z6: 185.7 | AA6: 185.7 | AB6: =M6+K6-(AA6+Z6+Y6+X6+W6+V6+U6+T6+S6+R6+Q6+P6) -> 0.1
A7: 5 | B7: 2019-01-10 | C7: عم ممدح حازم | D7: سمارت 2 | E7: 2019-01-11 | G7: 1430 | H7: 1450 | I7: 20 | J7: 450 | K7: 1000 | L7: 8 | M7: 300 | N7: 1300 | O7: =الجدول14[[#This Row],[الاجمالي بعد الفوائد]]/الجدول14[[#This Row],[عدد قسط]] -> 162.5 | P7: 162.5 | Q7: 162.5 | R7: 162.5 | S7: 162.5 | T7: 162.5 | Z7: 162.5 | AA7: 162.5 | AB7: 162.5 | AC7: 1121212127
A8: 6 | B8: 2019-01-10 | C8: رضا رجب علي | D8: اوبو f11 | E8: 2019-01-11 | G8: 4950 | H8: 5000 | I8: 50 | J8: 1000 | K8: 4000 | L8: 10 | M8: 1200 | N8: 5200 | O8: =الجدول14[[#This Row],[الاجمالي بعد الفوائد]]/الجدول14[[#This Row],[عدد قسط]] -> 520 | P8: 520 | Q8: 520 | Z8: 520 | AA8: 520 | AB8: 3120 | AC8: 1121212127
A9: 7 | B9: 2019-01-10 | C9: عاطف السيد لمونه | D9: a20 | E9: 2019-01-11 | G9: 2600 | H9: 2650 | I9: 50 | J9: 550 | K9: 2100 | L9: 8 | M9: 630 | N9: 2730 | O9: =الجدول14[[#This Row],[الاجمالي بعد الفوائد]]/الجدول14[[#This Row],[عدد قسط]] -> 341.25 | P9: 341.3 | Q9: 341.3 | R9: 341.3 | S9: 341.3 | AB9: 1364.8 | AC9: 1121212127
A10: 8 | B10: 2019-01-10 | C10: ابراهيم احمد عباس | D10: y72019 | E10: 2019-01-11 | G10: 2570 | H10: 2600 | I10: 30 | J10: 600 | K10: 2000 | L10: 8 | M10: 600 | N10: 2600 | O10: =الجدول14[[#This Row],[الاجمالي بعد الفوائد]]/الجدول14[[#This Row],[عدد قسط]] -> 325 | P10: 325 | Q10: 325 | R10: 325 | S10: 325 | T10: 325 | Z10: 325 | AA10: 325 | AB10: 325 | AC10: 1121212127
A11: 9 | B11: 2019-01-10 | C11: علي الزنوني علي | D11: y72019 | E11: 2019-01-11 | G11: 2520 | H11: 2550 | I11: 30 | J11: 550 | K11: 2000 | L11: 8 | M11: 600 | N11: 2600 | O11: =الجدول14[[#This Row],[الاجمالي بعد الفوائد]]/الجدول14[[#This Row],[عدد قسط]] -> 325 | P11: 325 | Q11: 325 | R11: 325 | S11: 325 | Z11: 325 | AA11: 325 | AB11: 650 | AC11: 1121212127
A12: 10 | B12: 2019-01-11 | C12: محمد طه صادق | D12: f11 | E12: 2019-01-12 | G12: 4820 | H12: 4850 | I12: 30 | J12: 850 | K12: 4000 | L12: 10 | M12: 1200 | N12: 5200 | O12: =الجدول14[[#This Row],[الاجمالي بعد الفوائد]]/الجدول14[[#This Row],[عدد قسط]] -> 520 | P12: 520 | Q12: 520 | R12: 520 | S12: 520 | AA12: 520 | AB12: 2600 | AC12: 1121212127
A13: 11 | B13: 2019-01-11 | C13: محمد احمد حسين | D13: A20s | E13: 2019-01-12 | G13: 2820 | H13: 2850 | I13: 30 | J13: 500 | K13: 2350 | L13: 10 | M13: 705 | N13: 3055 | O13: =الجدول14[[#This Row],[الاجمالي بعد الفوائد]]/الجدول14[[#This Row],[عدد قسط]] -> 305.5 | P13: 305.5 | Q13: 305.5 | R13: 305.5 | S13: 305.5 | T13: 305.5 | U13: 305.5 | V13: 305.5 | AA13: 305.5 | AB13: 611 | AC13: 1121212127
A14: 12 | B14: 2019-01-11 | C14: جمال الجندي | D14: a105 | E14: 2019-01-12 | G14: 2120 | H14: 2150 | I14: 30 | J14: 250 | K14: 1900 | L14: 8 | M14: 570 | N14: 2470 | O14: =الجدول14[[#This Row],[الاجمالي بعد الفوائد]]/الجدول14[[#This Row],[عدد قسط]] -> 308.75 | P14: 308.8 | Q14: 308.8 | R14: 308.8 | S14: 308.8 | T14: 308.8 | AA14: 308.5 | AB14: 617.5 | AC14: 1121212127
A15: 13 | B15: 2019-01-11 | C15: محمد محمود سليم | D15: a10s | E15: 2019-01-12 | G15: 2120 | H15: 2150 | I15: 30 | J15: 150 | K15: 2000 | L15: 9 | M15: 600 | N15: 2600 | O15: =الجدول14[[#This Row],[الاجمالي بعد الفوائد]]/الجدول14[[#This Row],[عدد قسط]] -> 288.8888889 | P15: 288.9 | Q15: 288.9 | R15: 288.9 | S15: 288.9 | AA15: 288.9 | AB15: 1155.5 | AC15: 1121212127
A16: 14 | B16: 2019-01-11 | C16: عبد الله احمد عبد العاطي | D16: A20s | E16: 2019-01-12 | G16: 2820 | H16: 2850 | I16: 30 | J16: 500 | K16: 2350 | L16: 10 | M16: 705 | N16: 3055 | O16: =الجدول14[[#This Row],[الاجمالي بعد الفوائد]]/الجدول14[[#This Row],[عدد قسط]] -> 305.5 | P16: 305.5 | Q16: 305.5 | R16: 305.5 | S16: 305.5 | T16: 305.5 | AA16: 305.5 | AB16: 1222 | AC16: 15556663
A17: 15 | B17: 2019-01-11 | C17: طارق عبد الجواد محمد | D17: hot8 | E17: 2019-01-12 | G17: 1800 | H17: 1830 | I17: 30 | J17: 630 | K17: 1200 | L17: 5 | M17: 360 | N17: 1560 | O17: =الجدول14[[#This Row],[الاجمالي بعد الفوائد]]/الجدول14[[#This Row],[عدد قسط]] -> 312 | P17: 312 | Q17: 312 | R17: 312 | S17: 312 | AA17: 312 | AB17: 0 | AC17: 1121212127
A18: 16 | B18: 2019-01-11 | C18: عادل سيد محمد | D18: HOT7 | E18: 2019-01-12 | G18: 1690 | H18: 1710 | I18: 20 | J18: 0 | K18: 1710 | L18: 7 | M18: 513 | N18: 2223 | O18: =الجدول14[[#This Row],[الاجمالي بعد الفوائد]]/الجدول14[[#This Row],[عدد قسط]] -> 317.5714286 | P18: 317.6 | Q18: 317.6 | R18: 317.6 | S18: 317.6 | T18: 317.6 | AA18: 317.6 | AB18: 317.4 | AC18: 1121212127
A19: 17 | B19: 1/112019 | C19: محمود ناصر محمد مغاغه | D19: HOT8 | E19: 2019-01-12 | G19: 1780 | H19: 1800 | I19: 20 | J19: 0 | K19: 1800 | L19: 9 | M19: 540 | N19: 2340 | O19: =الجدول14[[#This Row],[الاجمالي بعد الفوائد]]/الجدول14[[#This Row],[عدد قسط]] -> 260 | P19: 260 | Q19: 260 | R19: 260 | S19: 260 | AA19: 260 | AB19: 1040 | AC19: 1121212127
A20: 18 | B20: 2019-01-10 | C20: اشرف محمد عبد الله | D20: A20S | E20: 2019-01-12 | G20: 2500 | H20: 2500 | I20: 0 | J20: 500 | K20: 2000 | L20: 8 | M20: 600 | N20: 2600 | O20: =الجدول14[[#This Row],[الاجمالي بعد الفوائد]]/الجدول14[[#This Row],[عدد قسط]] -> 325 | P20: 325 | Q20: 325 | R20: 325 | S20: 325 | AA20: 325 | AB20: 975 | AC20: 1121212127 | AG20: 15/9/20119
A21: 19 | B21: 2019-01-12 | C21: محمود رجب محمود | D21: ريلمي5 | E21: 2020-01-01 | G21: 2620 | H21: 2650 | I21: 30 | J21: 2000 | K21: 650 | L21: 3 | M21: 195 | N21: 845 | O21: =الجدول14[[#This Row],[الاجمالي بعد الفوائد]]/الجدول14[[#This Row],[عدد قسط]] -> 281.6666667 | P21: 281.7 | Q21: 281.7 | R21: 281.7 | AB21: -0.1 | AC21: 1121212127
A22: 20 | B22: 2019-01-12 | C22: خالد وليد رجب | D22: HOT86 | E22: 2020-01-01 | G22: 2160 | H22: 2180 | I22: 20 | J22: 1000 | K22: 1180 | L22: 5 | M22: 354 | N22: 1534 | O22: =الجدول14[[#This Row],[الاجمالي بعد الفوائد]]/الجدول14[[#This Row],[عدد قسط]] -> 306.8 | P22: 306.8 | Q22: 306.8 | R22: 306.8 | S22: 250 | AB22: 363.6 | AC22: 1121212127
A23: 21 | B23: 2019-01-12 | C23: عز الدين علي صابر | D23: X9 | E23: 2020-01-01 | G23: 4150 | H23: 4200 | I23: 50 | J23: 2200 | K23: 2000 | L23: 8 | M23: 600 | N23: 2600 | O23: =الجدول14[[#This Row],[الاجمالي بعد الفوائد]]/الجدول14[[#This Row],[عدد قسط]] -> 325 | P23: 325 | Q23: 325 | R23: 325 | S23: 325 | T23: 325 | AB23: 975 | AC23: 5532525
A24: 22 | B24: 2019-01-12 | C24: مؤمن جمال محمد | D24: ستار4 | E24: 2020-01-01 | G24: 1620 | H24: 1650 | I24: 30 | J24: 650 | K24: 1000 | L24: 4 | M24: 300 | N24: 1300 | O24: =الجدول14[[#This Row],[الاجمالي بعد الفوائد]]/الجدول14[[#This Row],[عدد قسط]] -> 325 | P24: 325 | Q24: 325 | R24: 325 | S24: 325 | AB24: 0 | AC24: 5545853
A25: 23 | B25: 2019-01-12 | C25: مصطفي محمود | D25: Y92019 | E25: 2020-01-01 | G25: 3560 | H25: 3600 | I25: 40 | J25: 1000 | K25: 2600 | L25: 10 | M25: 780 | N25: 3380 | O25: =الجدول14[[#This Row],[الاجمالي بعد الفوائد]]/الجدول14[[#This Row],[عدد قسط]] -> 338 | P25: 338 | Q25: 338 | R25: 338 | S25: 338 | T25: 338 | AB25: 1690 | AC25: 1121212127
A26: 24 | B26: 2019-01-12 | C26: حسين امين جمال | D26: Y72019 | E26: 2020-01-01 | G26: 2180 | H26: 2200 | I26: 20 | J26: 200 | K26: 2000 | L26: 5 | M26: 600 | N26: 2600 | O26: =الجدول14[[#This Row],[الاجمالي بعد الفوائد]]/الجدول14[[#This Row],[عدد قسط]] -> 520 | P26: 520 | Q26: 520 | R26: 520 | S26: 520 | T26: 520 | AB26: 0 | AG26: 2019-10-10
A27: 25 | B27: 2019-01-12 | C27: كريم عبد الناصر | D27: ريلمي5 برو | E27: 2020-01-01 | G27: 3720 | H27: 3750 | I27: 30 | J27: 1050 | K27: 2700 | L27: 10 | M27: 810 | N27: 3510 | O27: =الجدول14[[#This Row],[الاجمالي بعد الفوائد]]/الجدول14[[#This Row],[عدد قسط]] -> 351 | P27: 351 | Q27: 351 | R27: 351 | S27: 351 | T27: 351 | AB27: 1755 | AC27: 1121212127
A28: 26 | B28: 2020-01-01 | C28: احمد السيد محمد | D28: HOT8 | E28: 2020-01-02 | G28: 1820 | H28: 1850 | I28: 30 | J28: 350 | K28: 1500 | L28: 6 | M28: 450 | N28: 1950 | O28: =الجدول14[[#This Row],[الاجمالي بعد الفوائد]]/الجدول14[[#This Row],[عدد قسط]] -> 325 | Q28: 325 | R28: 325 | S28: 325 | T28: 325 | AB28: 650 | AC28: 1121212127
A29: 27 | B29: 2020-01-01 | C29: عبد الحميد السيد | D29: اوبو+A10 | E29: 2020-01-02 | G29: 7350 | H29: 7400 | I29: 50 | J29: 2000 | K29: 5400 | L29: 10 | M29: 1620 | N29: 7020 | O29: =الجدول14[[#This Row],[الاجمالي بعد الفوائد]]/الجدول14[[#This Row],[عدد قسط]] -> 702 | Q29: 500 | AB29: 6520 | AC29: 1121212127
A30: 28 | B30: 2020-01-01 | C30: محمد خالد سرحان | D30: Y72019 | E30: 2020-01-02 | G30: 2280 | H30: 2300 | I30: 20 | J30: 1000 | K30: 1300 | L30: 5 | M30: 390 | N30: 1690 | O30: =الجدول14[[#This Row],[الاجمالي بعد الفوائد]]/الجدول14[[#This Row],[عدد قسط]] -> 338 | Q30: 338 | R30: 338 | S30: 338 | T30: 338 | AB30: 338
A31: 29 | B31: 2020-01-01 | C31: احمد رجب مينو | D31: اوبوF | E31: 2020-01-02 | G31: 5250 | H31: 5300 | I31: 50 | J31: 2300 | K31: 3000 | L31: 10 | M31: 900 | N31: 3900 | O31: =الجدول14[[#This Row],[الاجمالي بعد الفوائد]]/الجدول14[[#This Row],[عدد قسط]] -> 390 | Q31: 390 | R31: 390 | AB31: 3120 | AC31: 1121212127
A32: 30 | B32: 2019-01-12 | C32: عصام سوريا | D32: a51 | E32: 2020-01-01 | G32: 5200 | H32: 5200 | I32: 0 | J32: 0 | K32: 5200 | L32: 12 | M32: 1560 | N32: 6760 | O32: =الجدول14[[#This Row],[الاجمالي بعد الفوائد]]/الجدول14[[#This Row],[عدد قسط]] -> 563.3333333 | P32: 563.3 | Q32: 563.3 | R32: 563.3 | S32: 563.3 | T32: 563.3 | AB32: 3943.5 | AC32: 1121212127
A33: 31 | B33: 2019-01-12 | C33: عصام سوريا2 | D33: a51 | E33: 2020-01-01 | G33: 5540 | H33: 5540 | I33: 0 | J33: 0 | K33: 5540 | L33: 12 | M33: 1662 | N33: 7202 | O33: =الجدول14[[#This Row],[الاجمالي بعد الفوائد]]/الجدول14[[#This Row],[عدد قسط]] -> 600.1666667 | P33: 600.2 | Q33: 600.2 | R33: 600.2 | S33: 600.2 | T33: 600.2 | AB33: 4201 | AC33: 14525255
A34: 32 | B34: 2020-01-02 | C34: ابو يوسف العاشر3 | D34: a30s | E34: 2020-01-03 | G34: 3500 | H34: 3500 | I34: 0 | J34: 0 | K34: 3500 | L34: 12 | M34: 1050 | N34: 4550 | O34: =الجدول14[[#This Row],[الاجمالي بعد الفوائد]]/الجدول14[[#This Row],[عدد قسط]] -> 379.1666667 | R34: 379.2 | S34: 379.2 | T34: 379.2 | AB34: 3412.4 | AC34: 1121212127
A35: 33 | B35: 2020-01-02 | C35: احمد السيد محمد | D35: سمارت 2 | E35: 2020-01-03 | G35: 1430 | H35: 1450 | I35: 20 | J35: 170 | K35: 1280 | L35: 5 | M35: 384 | N35: 1664 | O35: =الجدول14[[#This Row],[الاجمالي بعد الفوائد]]/الجدول14[[#This Row],[عدد قسط]] -> 332.8 | R35: 332.8 | S35: 332.8 | T35: 332.8 | AB35: 665.6 | AC35: 1121212127
A36: 34 | B36: 2020-01-02 | C36: محمد رجب محمد | D36: y9 | E36: 2020-01-03 | G36: 3380 | H36: 3400 | I36: 20 | J36: 500 | K36: 2900 | L36: 10 | M36: 870 | N36: 3770 | O36: =الجدول14[[#This Row],[الاجمالي بعد الفوائد]]/الجدول14[[#This Row],[عدد قسط]] -> 377 | R36: 390 | S36: 380 | T36: 380 | AB36: 2620 | AC36: 1121212127
A37: 35 | B37: 2020-01-02 | C37: مصطفي احمد عبد العظيم | D37: a10s | E37: 2020-01-03 | G37: 2090 | H37: 2100 | I37: 10 | J37: 500 | K37: 1600 | L37: 7 | M37: 480 | N37: 2080 | O37: =الجدول14[[#This Row],[الاجمالي بعد الفوائد]]/الجدول14[[#This Row],[عدد قسط]] -> 297.1428571 | R37: 297.1 | S37: 297.1 | AB37: 1485.8 | AC37: 1121212127 | AG37: 5/9/20119
A38: 36 | B38: 2020-01-02 | C38: طاهر علي عبد الوهاب | D38: hot8 | E38: 2020-01-03 | G38: 1820 | H38: 1830 | I38: 10 | J38: 0 | K38: 1830 | L38: 6 | M38: 549 | N38: 2379 | O38: =الجدول14[[#This Row],[الاجمالي بعد الفوائد]]/الجدول14[[#This Row],[عدد قسط]] -> 396.5 | R38: 396.5 | S38: 396.5 | T38: 396.5 | AB38: 1189.5 | AC38: 1121212127 | AG38: 5/9/20119
A39: 37 | B39: 2020-01-03 | C39: حسن فؤاد حسن | D39: a20s | E39: 2020-01-04 | G39: 2580 | H39: 2600 | I39: 20 | J39: 500 | K39: 2100 | L39: 9 | M39: 630 | N39: 2730 | O39: =الجدول14[[#This Row],[الاجمالي بعد الفوائد]]/الجدول14[[#This Row],[عدد قسط]] -> 303.3333333 | S39: 303.3 | T39: 303.3 | AB39: 2123.4 | AC39: 1121212127
A40: 38 | B40: 2020-01-04 | C40: طارق عبد الجواد | D40: hot8 | E40: 2020-01-05 | G40: 1820 | H40: 1850 | I40: 30 | J40: 0 | K40: 1850 | L40: 8 | M40: 555 | N40: 2405 | O40: =الجدول14[[#This Row],[الاجمالي بعد الفوائد]]/الجدول14[[#This Row],[عدد قسط]] -> 300.625 | T40: 300.6 | AB40: 2104.4 | AG40: 2019-10-10
A41: 39 | B41: 2020-01-03 | C41: اشرف محمد قطب | D41: a20s | E41: 2020-01-04 | G41: 2580 | H41: 2600 | I41: 20 | J41: 300 | K41: 2300 | L41: 10 | M41: 690 | N41: 2990 | O41: =الجدول14[[#This Row],[الاجمالي بعد الفوائد]]/الجدول14[[#This Row],[عدد قسط]] -> 299 | S41: 299 | T41: 299 | AB41: 2392 | AC41: 1121212127
A42: 40 | B42: 2020-01-03 | C42: محمود عبد العال | D42: a20s | E42: 2020-01-04 | G42: 2600 | H42: 2600 | I42: 0 | J42: 0 | K42: 2600 | L42: 1 | M42: =K42*15/100 -> 390 | N42: 2990 | O42: =الجدول14[[#This Row],[الاجمالي بعد الفوائد]]/الجدول14[[#This Row],[عدد قسط]] -> 2990 | AB42: 2990 | AC42: 1121212127
A43: 41 | B43: 2020-01-04 | C43: احمد خيري عبد العال | D43: a20s | E43: 2020-01-05 | G43: 2580 | H43: 2600 | I43: 20 | J43: 300 | K43: 2300 | L43: 10 | M43: 690 | N43: 2990 | O43: =الجدول14[[#This Row],[الاجمالي بعد الفوائد]]/الجدول14[[#This Row],[عدد قسط]] -> 299 | T43: 299 | AB43: 2691 | AC43: 1121212127
A44: 42 | B44: 2020-01-03 | C44: مصطفي انور مغاغه | D44: ريلمي 5 برو | E44: 2020-01-04 | G44: 3580 | H44: 3600 | I44: 20 | J44: 500 | K44: 3100 | L44: 10 | M44: 930 | N44: 4030 | O44: =الجدول14[[#This Row],[الاجمالي بعد الفوائد]]/الجدول14[[#This Row],[عدد قسط]] -> 403 | S44: 403 | T44: 403 | AB44: 3224 | AC44: 1121212127
A45: 43 | B45: 2020-01-03 | C45: اسلام حسني احمد مصطفي | D45: a20s | E45: 2020-01-04 | G45: 2550 | H45: 2550 | I45: 0 | J45: 300 | K45: 2250 | L45: 10 | M45: 675 | N45: 2925 | O45: =الجدول14[[#This Row],[الاجمالي بعد الفوائد]]/الجدول14[[#This Row],[عدد قسط]] -> 292.5 | S45: 292.5 | T45: 292.5 | AB45: 2340 | AC45: 1121212127
A46: 44 | B46: 2020-01-03 | C46: حسن فؤاد حسن2 | D46: a20s | E46: 2020-01-04 | G46: 2580 | H46: 2600 | I46: 20 | J46: 500 | K46: 2100 | L46: 9 | M46: 630 | N46: 2730 | O46: =الجدول14[[#This Row],[الاجمالي بعد الفوائد]]/الجدول14[[#This Row],[عدد قسط]] -> 303.3333333 | S46: 303.3 | T46: 303.3 | AB46: 2123.4 | AC46: 1121212127
A47: 45 | B47: 2020-01-05 | C47: احمد تبع العباسي | D47: y9s | E47: 2020-01-06 | G47: 3750 | H47: 3750 | I47: 0 | J47: 2250 | K47: 1500 | L47: 10 | M47: 450 | N47: 1950 | O47: =الجدول14[[#This Row],[الاجمالي بعد الفوائد]]/الجدول14[[#This Row],[عدد قسط]] -> 195 | AB47: 1950 | AC47: 1121212127
A48: 46 | B48: 2020-01-04 | C48: العربي عبد الجواد | D48: a5s | E48: 2020-01-05 | G48: 2380 | H48: 2400 | I48: 20 | J48: 400 | K48: 2000 | L48: 8 | M48: 600 | N48: 2600 | O48: =الجدول14[[#This Row],[الاجمالي بعد الفوائد]]/الجدول14[[#This Row],[عدد قسط]] -> 325 | T48: 325 | U48: 325 | V48: 325 | AB48: 1625 | AC48: 1121212127
A49: 47 | B49: 2020-01-04 | C49: عيس عبدالعزيز عدلي | D49: y92019 | E49: 2020-01-05 | G49: 3380 | H49: 3400 | I49: 20 | J49: 0 | K49: 3400 | L49: 10 | M49: 1020 | N49: 4420 | O49: =الجدول14[[#This Row],[الاجمالي بعد الفوائد]]/الجدول14[[#This Row],[عدد قسط]] -> 442 | T49: 442 | AB49: 3978 | AC49: 1121212127
A50: 48 | B50: 2020-01-04 | C50: اسلاسعيد مغاغه | D50: y9s | E50: 2020-01-05 | G50: 4230 | H50: 4250 | I50: 20 | J50: 0 | K50: 4250 | L50: 10 | M50: 1275 | N50: 5525 | O50: =الجدول14[[#This Row],[الاجمالي بعد الفوائد]]/الجدول14[[#This Row],[عدد قسط]] -> 552.5 | T50: 552.5 | AB50: 4972.5 | AC50: 1121212127
A51: 49 | B51: 2020-01-05 | C51: مؤمن السيد احمد لمونه | D51: a51 | E51: 2020-01-06 | G51: 4600 | H51: 4600 | I51: 0 | J51: 0 | K51: 4600 | L51: 10 | M51: 1380 | N51: 5980 | O51: =الجدول14[[#This Row],[الاجمالي بعد الفوائد]]/الجدول14[[#This Row],[عدد قسط]] -> 598 | AB51: 5980 | AC51: 1121212127
A52: 50 | B52: 2020-01-05 | C52: محمد علي حسين | D52: a51 | E52: 2020-01-06 | G52: 4600 | H52: 4600 | I52: 0 | J52: 600 | K52: 4000 | L52: 10 | M52: 1200 | N52: 5200 | O52: =الجدول14[[#This Row],[الاجمالي بعد الفوائد]]/الجدول14[[#This Row],[عدد قسط]] -> 520 | AB52: 5200 | AC52: 1121212127
A53: 51 | B53: 2020-01-05 | C53: عمي عصام ابو الحسن2 | D53: a10s | E53: 2020-01-06 | G53: 2200 | H53: 2200 | I53: 0 | J53: 500 | K53: 1700 | L53: 7 | M53: 510 | N53: 2210 | O53: =الجدول14[[#This Row],[الاجمالي بعد الفوائد]]/الجدول14[[#This Row],[عدد قسط]] -> 315.7142857 | AB53: 2210 | AC53: 1121212127
A54: 52 | B54: 2020-01-05 | C54: ندا محمد قطب | D54: a20s | E54: 2020-01-06 | G54: 2550 | H54: 2550 | I54: 0 | J54: 400 | K54: 2150 | L54: 10 | M54: 645 | N54: 2795 | O54: =الجدول14[[#This Row],[الاجمالي بعد الفوائد]]/الجدول14[[#This Row],[عدد قسط]] -> 279.5 | AB54: 2795 | AC54: 1121212127
A55: 53 | B55: 2020-01-02 | C55: ابو يوسف العاشر2 | D55: a51 | E55: 2020-01-03 | G55: 4750 | H55: 4800 | I55: 50 | J55: 0 | K55: 4800 | L55: 12 | M55: 1440 | N55: 6240 | O55: =الجدول14[[#This Row],[الاجمالي بعد الفوائد]]/الجدول14[[#This Row],[عدد قسط]] -> 520 | R55: 520 | S55: 520 | T55: 520 | AB55: 4680 | AC55: 5566252
A56: 54 | B56: 2020-01-02 | C56: ابو يوسف العاشر | D56: a51 | E56: 2020-01-03 | G56: 4750 | H56: 4800 | I56: 50 | J56: 0 | K56: 4800 | L56: 3 | M56: =K56*4/100 -> 192 | N56: 4992 | O56: =الجدول14[[#This Row],[الاجمالي بعد الفوائد]]/الجدول14[[#This Row],[عدد قسط]] -> 1664 | R56: 2000 | S56: 2000 | T56: 992 | AB56: 0 | AC56: 1121212127
A57: 55 | B57: 2020-01-01 | C57: نادي محمد عماد | D57: a10s | E57: 2020-01-02 | G57: 1980 | H57: 2000 | I57: 20 | J57: 200 | K57: 1800 | L57: 8 | M57: 540 | N57: 2340 | O57: =الجدول14[[#This Row],[الاجمالي بعد الفوائد]]/الجدول14[[#This Row],[عدد قسط]] -> 292.5 | Q57: 292.5 | R57: 292.5 | S57: 292.5 | T57: 292.5 | AB57: 1170 | AC57: 1121212127 | AH57: من هنا الي فوق يوم 1 ف الشهر
A58: 56 | B58: 20/4/2020 | C58: سعودي اسامه | D58: a20 | E58: 20/5/2020 | G58: 2500 | H58: 2500 | I58: 0 | J58: 300 | K58: 2200 | L58: 9 | M58: 660 | N58: 2860 | O58: =الجدول14[[#This Row],[الاجمالي بعد الفوائد]]/الجدول14[[#This Row],[عدد قسط]] -> 317.7777778 | AB58: 2860 | AC58: 1121212127 | AH58: زيادة ف الفؤائد
A59: 57 | B59: 20/4/2020 | C59: احمد صيام الحلو 3 | D59: c3 | E59: 20/5/2020 | G59: 2450 | H59: 2450 | I59: 0 | J59: 0 | K59: 2450 | L59: 10 | M59: 735 | N59: 3185 | O59: =الجدول14[[#This Row],[الاجمالي بعد الفوائد]]/الجدول14[[#This Row],[عدد قسط]] -> 318.5 | AB59: 3185 | AC59: 153523222
A60: 58 | B60: 20/4/2020 | C60: عاطف السيد لمونه | D60: ريلمي8 | E60: 20/5/2020 | G60: 2450 | H60: 2450 | I60: 0 | J60: 450 | K60: 2000 | L60: 10 | M60: 600 | N60: 2600 | O60: =الجدول14[[#This Row],[الاجمالي بعد الفوائد]]/الجدول14[[#This Row],[عدد قسط]] -> 260 | AB60: 2600 | AG60: 2019-10-10
A61: 59 | B61: 20/4/2020 | C61: رمضان عبد الستار | D61: ao1 | E61: 20/5/2020 | G61: 1800 | H61: 1800 | I61: 0 | J61: 400 | K61: 1400 | L61: 7 | M61: 420 | N61: 1820 | O61: =الجدول14[[#This Row],[الاجمالي بعد الفوائد]]/الجدول14[[#This Row],[عدد قسط]] -> 260 | AB61: 1820 | AG61: 2019-10-10
A62: 60 | B62: 20/4/2020 | C62: بدر رجب | D62: a20s | E62: 20/5/2020 | G62: 2550 | H62: 2550 | I62: 0 | J62: 550 | K62: 2000 | L62: 9 | M62: 600 | N62: 2600 | O62: =الجدول14[[#This Row],[الاجمالي بعد الفوائد]]/الجدول14[[#This Row],[عدد قسط]] -> 288.8888889 | AB62: 2600 | AC62: 1121212127
A63: 61 | B63: 20/4/2020 | C63: محمود مصطفي اسماعيل | D63: شاومي 8 | E63: 20/5/2020 | G63: 2950 | H63: 2950 | I63: 0 | J63: 1000 | K63: 1950 | L63: 8 | M63: 585 | N63: 2535 | O63: =الجدول14[[#This Row],[الاجمالي بعد الفوائد]]/الجدول14[[#This Row],[عدد قسط]] -> 316.875 | AB63: 2535 | AC63: 52565322
A64: 62 | B64: 20/4/2020 | C64: محمد قياتي الحلو | D64: y92019 | E64: 20/5/2020 | G64: 3300 | H64: 3300 | I64: 0 | J64: 1200 | K64: 2100 | L64: 9 | M64: 630 | N64: 2730 | O64: =الجدول14[[#This Row],[الاجمالي بعد الفوائد]]/الجدول14[[#This Row],[عدد قسط]] -> 303.3333333 | AB64: 2730 | AC64: 1121212127
A65: 63 | B65: 20/4/2020 | C65: تامر جمعه محمد احمد | D65: y92019 | E65: 20/5/2020 | G65: 3300 | H65: 3300 | I65: 0 | J65: 1000 | K65: 2300 | L65: 10 | M65: 690 | N65: 2990 | O65: =الجدول14[[#This Row],[الاجمالي بعد الفوائد]]/الجدول14[[#This Row],[عدد قسط]] -> 299 | AB65: 2990 | AC65: 1121212127
A66: 64 | B66: 20/4/2020 | C66: عمي عصام حسن | D66: A20 S | E66: 20/5/2020 | G66: 2530 | H66: 2550 | I66: 20 | J66: 550 | K66: 2000 | L66: 9 | M66: 600 | N66: 2600 | O66: =الجدول14[[#This Row],[الاجمالي بعد الفوائد]]/الجدول14[[#This Row],[عدد قسط]] -> 288.8888889 | T66: 288.9 | AB66: 2311.1 | AC66: 12586455
A67: 65 | B67: 20/4/2020 | C67: ابراهيم عاشور حسن | D67: hot8 | E67: 20/5/2020 | G67: 1850 | H67: 1850 | I67: =H67-G67 -> 0 | J67: 500 | K67: =H67-J67 -> 1350 | L67: 6 | M67: 405 | N67: =SUM(M67+K67) -> 1755 | O67: =الجدول14[[#This Row],[الاجمالي بعد الفوائد]]/الجدول14[[#This Row],[عدد قسط]] -> 292.5 | AB67: 1755 | AC67: 1121212127
A68: 66 | B68: 20/4/2020 | C68: احمد تبع القادر | D68: ريلمي 5 برو | E68: 20/5/2020 | G68: 3580 | H68: 3600 | I68: 20 | J68: 400 | K68: 3200 | L68: 10 | M68: =K68*30/100 -> 960 | N68: 4160 | O68: =الجدول14[[#This Row],[الاجمالي بعد الفوائد]]/الجدول14[[#This Row],[عدد قسط]] -> 416 | AB68: 4160 | AC68: 1121212127
A69: 67 | B69: 20/4/2020 | C69: عبد القادر السيد هنداوي | D69: a92020 | E69: 20/5/2020 | G69: 4180 | H69: 4200 | I69: 20 | J69: 1000 | K69: 3200 | L69: 10 | M69: 960 | N69: 4160 | O69: =الجدول14[[#This Row],[الاجمالي بعد الفوائد]]/الجدول14[[#This Row],[عدد قسط]] -> 416 | AB69: =M69+K69-(AA69+Z69+Y69+X69+W69+V69+U69+T69+S69+R69+Q69+P69) -> 4160 | AC69: 1121212127
A70: 68 | B70: 20/4/2020 | C70: عبد الوهاب علي عبد الوهاب | D70: a92020 | E70: 20/5/2020 | G70: 3280 | H70: 3300 | I70: 20 | J70: 300 | K70: 3000 | L70: 10 | M70: 900 | N70: 3900 | O70: =الجدول14[[#This Row],[الاجمالي بعد الفوائد]]/الجدول14[[#This Row],[عدد قسط]] -> 390 | AB70: 3900 | AC70: 1121212127
A71: 69 | B71: 20/4/2020 | C71: محمد احمد اسماعيل | D71: a51 | E71: 20/5/2020 | G71: 4580 | H71: 4600 | I71: 20 | J71: 2000 | K71: 2600 | L71: 5 | M71: =K71*20/100 -> 520 | N71: 3120 | O71: =الجدول14[[#This Row],[الاجمالي بعد الفوائد]]/الجدول14[[#This Row],[عدد قسط]] -> 624 | T71: 624 | AB71: 2496 | AC71: 1121212127 | AH71: خطا ف القسط ناقص
A72: 70 | B72: 20/4/2020 | C72: طارق طه | D72: a92020 | E72: 20/5/2020 | G72: 4100 | H72: 4100 | I72: 0 | J72: 1100 | K72: 3000 | L72: 10 | M72: 900 | N72: 3900 | O72: =الجدول14[[#This Row],[الاجمالي بعد الفوائد]]/الجدول14[[#This Row],[عدد قسط]] -> 390 | AB72: 3900 | AC72: 1121212127
A73: 71 | B73: 20/4/2020 | C73: محمد ابو سعودي | D73: a20s | E73: 20/5/2020 | G73: 2550 | H73: 2550 | I73: 0 | J73: 200 | K73: 2350 | L73: 10 | M73: 705 | N73: 3055 | O73: =الجدول14[[#This Row],[الاجمالي بعد الفوائد]]/الجدول14[[#This Row],[عدد قسط]] -> 305.5 | AB73: 3055 | AC73: 4525223
A74: 72 | B74: 20/12/2020 | C74: عبد الرحمن السيد مبروك | D74: a20s | E74: 20/1/2020 | G74: 2820 | H74: 2850 | I74: 30 | J74: 500 | K74: 2350 | L74: 10 | M74: 705 | N74: 3055 | O74: =الجدول14[[#This Row],[الاجمالي بعد الفوائد]]/الجدول14[[#This Row],[عدد قسط]] -> 305.5 | P74: 305.5 | Q74: 305.5 | R74: 305.5 | S74: 305.5 | T74: 305.5 | AB74: 1527.5 | AC74: 1121212127
A75: 73 | B75: 20/11/2019 | C75: احمد صيام الحلو | D75: a30s | E75: 20/12/2020 | G75: 3520 | H75: 3550 | I75: 30 | J75: 0 | K75: 3550 | L75: 10 | M75: 1065 | N75: 4615 | O75: =الجدول14[[#This Row],[الاجمالي بعد الفوائد]]/الجدول14[[#This Row],[عدد قسط]] -> 461.5 | P75: 461.5 | Q75: 461.5 | R75: 461.5 | S75: 461.5 | AB75: 2769 | AC75: 1121212127
A76: 74 | B76: 20/12/2019 | C76: شاهر علي محمد | D76: y9 | E76: 20/1/2020 | G76: 2320 | H76: 2350 | I76: 30 | J76: 350 | K76: 2000 | L76: 8 | M76: 600 | N76: 2600 | O76: =الجدول14[[#This Row],[الاجمالي بعد الفوائد]]/الجدول14[[#This Row],[عدد قسط]] -> 325 | P76: 325 | Q76: 325 | R76: 325 | S76: 325 | AB76: 1300 | AC76: 1121212127
A77: 75 | B77: 20/11/2019 | C77: محمد هريدي | D77: غير ظاهر | E77: 20/12/2019 | G77: 4800 | H77: 4850 | I77: 50 | J77: 850 | K77: 4000 | L77: 10 | M77: 1200 | N77: 5200 | O77: =الجدول14[[#This Row],[الاجمالي بعد الفوائد]]/الجدول14[[#This Row],[عدد قسط]] -> 520 | P77: 520 | Q77: 520 | R77: 520 | S77: 520 | T77: 520 | AB77: 2600
A78: 76 | B78: 20/11/2019 | C78: زينب محمود عبد الوهاب | D78: غير ظاهر | E78: 20/12/2020 | G78: 3570 | H78: 3600 | I78: 30 | J78: 500 | K78: 3100 | L78: 12 | M78: 930 | N78: 4030 | O78: =الجدول14[[#This Row],[الاجمالي بعد الفوائد]]/الجدول14[[#This Row],[عدد قسط]] -> 335.8333333 | P78: 335.8 | Q78: 335.8 | R78: 335.8 | S78: 335.8 | T78: 335.8 | AB78: 2351 | AC78: 1121212127
A79: 77 | B79: 20/10/2019 | C79: طاهر ابو زيت | D79: a30s | E79: 20/11/2019 | G79: 3370 | H79: 3400 | I79: 30 | J79: 400 | K79: 3000 | L79: 10 | M79: 900 | N79: 3900 | O79: =الجدول14[[#This Row],[الاجمالي بعد الفوائد]]/الجدول14[[#This Row],[عدد قسط]] -> 390 | P79: 390 | Q79: 390 | R79: 390 | S79: 390 | AB79: 2340 | AG79: 2019-10-10
A80: 78 | B80: 20/9/2019 | C80: حنان سيد فكري | D80: غير ظاهر | E80: 20/10/2019 | G80: 2520 | H80: 2550 | I80: 30 | J80: 550 | K80: 2000 | L80: 8 | M80: 600 | N80: 2600 | O80: =الجدول14[[#This Row],[الاجمالي بعد الفوائد]]/الجدول14[[#This Row],[عدد قسط]] -> 325 | P80: 325 | Q80: 325 | R80: 325 | S80: 325 | AB80: 1300 | AC80: 1121212127
A81: 79 | B81: 20/8/2019 | C81: محب مايكل | D81: a20s | E81: 20/9/2019 | G81: 2550 | H81: 2600 | I81: 50 | J81: 500 | K81: 2100 | L81: 9 | M81: 630 | N81: 2730 | O81: =الجدول14[[#This Row],[الاجمالي بعد الفوائد]]/الجدول14[[#This Row],[عدد قسط]] -> 303.3333333 | P81: 303.3 | Q81: 303.3 | R81: 303.3 | S81: 303.3 | T81: 303.3 | AB81: 1213.5 | AC81: 1121212127
A82: 80 | B82: 20/10/2019 | C82: محمد علي سيد | D82: a5 | E82: 20/11/2019 | G82: 2560 | H82: 2600 | I82: 40 | J82: 350 | K82: 2250 | L82: 9 | M82: 675 | N82: 2925 | O82: =الجدول14[[#This Row],[الاجمالي بعد الفوائد]]/الجدول14[[#This Row],[عدد قسط]] -> 325 | P82: 350 | AB82: 2575 | AC82: 1121212127
A83: 81 | B83: 20/5/2019 | C83: محمود احمد الطيار | D83: a30 | E83: 20/6/2019 | G83: 3500 | H83: 3500 | I83: 0 | J83: 500 | K83: 3000 | L83: 12 | M83: 900 | N83: 3900 | O83: =الجدول14[[#This Row],[الاجمالي بعد الفوائد]]/الجدول14[[#This Row],[عدد قسط]] -> 325 | AB83: 3900 | AC83: 1121212127
A84: 82 | B84: 20/7/2019 | C84: محمد رجب شيريف غالب | D84: a10 | E84: 20/8/2019 | G84: 2000 | H84: 2050 | I84: 50 | J84: 500 | K84: 1550 | L84: 7 | M84: 465 | N84: 2015 | O84: =الجدول14[[#This Row],[الاجمالي بعد الفوائد]]/الجدول14[[#This Row],[عدد قسط]] -> 287.8571429 | P84: 287.9 | Q84: 287.9 | AB84: 1439.2 | AC84: 456585636
A85: 83 | B85: 20/3/2020 | C85: محمد فرج سرحان | D85: s5 | E85: 20/4/2020 | G85: 2830 | H85: 2850 | I85: 20 | J85: 500 | K85: 2350 | L85: 8 | M85: 705 | N85: 3055 | O85: =الجدول14[[#This Row],[الاجمالي بعد الفوائد]]/الجدول14[[#This Row],[عدد قسط]] -> 381.875 | S85: 300 | AB85: 2755 | AC85: 1121212127 | AH85: اول قسط 300 فقط
A86: 84 | B86: 20/3/2020 | C86: عبد الله عادل | D86: c3 | E86: 20/4/2020 | G86: 2280 | H86: 2300 | I86: 20 | J86: 1250 | K86: 1050 | L86: 5 | M86: 315 | N86: 1365 | O86: =الجدول14[[#This Row],[الاجمالي بعد الفوائد]]/الجدول14[[#This Row],[عدد قسط]] -> 273 | S86: 273 | T86: 273 | AB86: 819 | AC86: 1121212127
A87: 85 | B87: 20/3/2020 | C87: احمد فرج عبد العظيم | D87: a10s | E87: 20/4/2020 | G87: 2130 | H87: 2150 | I87: 20 | J87: 400 | K87: 1750 | L87: 7 | M87: 525 | N87: 2275 | O87: =الجدول14[[#This Row],[الاجمالي بعد الفوائد]]/الجدول14[[#This Row],[عدد قسط]] -> 325 | S87: 325 | AB87: 1950 | AC87: 532525
A88: 86 | B88: 20/4/2020 | C88: احمد خلف شعبان | D88: y7 | E88: 20/5/2020 | G88: 2470 | H88: 2500 | I88: 30 | J88: 0 | K88: 2500 | L88: 10 | M88: 750 | N88: 3250 | O88: =الجدول14[[#This Row],[الاجمالي بعد الفوائد]]/الجدول14[[#This Row],[عدد قسط]] -> 325 | AB88: 3250 | AC88: 1121212127
A89: 87 | B89: 20/3/2020 | C89: احمد طه علي | D89: y6 | E89: 20/4/2020 | G89: 1830 | H89: 1850 | I89: 20 | J89: 500 | K89: 1350 | L89: 6 | M89: 405 | N89: 1755 | O89: =الجدول14[[#This Row],[الاجمالي بعد الفوائد]]/الجدول14[[#This Row],[عدد قسط]] -> 292.5 | S89: 292.5 | AB89: 1462.5 | AC89: 1121212127
A90: 88 | B90: 20/3/2020 | C90: محمد عبد الفتاح | D90: a30 | E90: 20/4/2020 | G90: 2580 | H90: 2600 | I90: 20 | J90: 200 | K90: 2400 | L90: 10 | M90: 720 | N90: 3120 | O90: =الجدول14[[#This Row],[الاجمالي بعد الفوائد]]/الجدول14[[#This Row],[عدد قسط]] -> 312 | S90: 312 | T90: 312 | AB90: 2496 | AC90: 1121212127
A91: 89 | B91: 20/3/2020 | C91: محمد خالد عبد العال | D91: a10s | E91: 20/4/2020 | G91: 2080 | H91: 2100 | I91: 20 | J91: 1000 | K91: 1100 | L91: 5 | M91: 330 | N91: 1430 | O91: =الجدول14[[#This Row],[الاجمالي بعد الفوائد]]/الجدول14[[#This Row],[عدد قسط]] -> 286 | S91: 300 | AB91: 1130 | AC91: 1121212127
A92: 90 | B92: 20/3/2020 | C92: سعودي اسامه ابو السعود | D92: a20s | E92: 20/4/2020 | G92: 2580 | H92: 2600 | I92: 20 | J92: 400 | K92: 2200 | L92: 10 | M92: 660 | N92: 2860 | O92: =الجدول14[[#This Row],[الاجمالي بعد الفوائد]]/الجدول14[[#This Row],[عدد قسط]] -> 286 | S92: 286 | AB92: 2574 | AC92: 1121212127
A93: 91 | B93: 20/2/2020 | C93: احمد قياتي محمد | D93: a10 | E93: 20/3/2020 | G93: 2080 | H93: 2100 | I93: 20 | J93: 0 | K93: 2100 | L93: 8 | M93: 630 | N93: 2730 | O93: =الجدول14[[#This Row],[الاجمالي بعد الفوائد]]/الجدول14[[#This Row],[عدد قسط]] -> 341.25 | R93: 341.5 | S93: 341.5 | AB93: 2047 | AC93: 1121212127
A94: 92 | B94: 20/2/2020 | C94: يوسف عزمي | D94: a10s | E94: 20/3/2020 | G94: 2080 | H94: 2100 | I94: 20 | J94: 0 | K94: 2100 | L94: 8 | M94: 630 | N94: 2730 | O94: =الجدول14[[#This Row],[الاجمالي بعد الفوائد]]/الجدول14[[#This Row],[عدد قسط]] -> 341.25 | R94: 341.3 | S94: 341.3 | T94: 341.3 | U94: 341.3 | V94: 341.3 | W94: 341.3 | AB94: 682.2 | AC94: 1121212127
A95: 93 | B95: 20/2/2020 | C95: قاسم محمد محمود | D95: A30 | E95: 20/3/2020 | G95: 3570 | H95: 3600 | I95: 30 | J95: 1000 | K95: 2600 | L95: 10 | M95: 780 | N95: 3380 | O95: =الجدول14[[#This Row],[الاجمالي بعد الفوائد]]/الجدول14[[#This Row],[عدد قسط]] -> 338 | R95: 338 | S95: 338 | T95: 338 | AB95: 2366 | AC95: 1121212127
A96: 94 | B96: 20/2/2020 | C96: عمر عادل | D96: a1k | E96: 20/3/2020 | G96: 1870 | H96: 1900 | I96: 30 | J96: 500 | K96: 1400 | L96: 6 | M96: 420 | N96: 1820 | O96: =الجدول14[[#This Row],[الاجمالي بعد الفوائد]]/الجدول14[[#This Row],[عدد قسط]] -> 303.3333333 | R96: 303.3 | S96: 303.3 | AB96: 1213.4 | AC96: 1121212127
A97: 95 | B97: 20/1/2020 | C97: احمد رجب عبد الصمد | D97: 5 | E97: 20/2/2020 | G97: 2780 | H97: 2800 | I97: 20 | J97: 1000 | K97: 1800 | L97: 7 | M97: 540 | N97: 2340 | O97: =الجدول14[[#This Row],[الاجمالي بعد الفوائد]]/الجدول14[[#This Row],[عدد قسط]] -> 334.2857143 | Q97: 334.3 | R97: 265 | AB97: 1740.7 | AC97: 115656565
A98: 96 | B98: 20/1/2020 | C98: احمد راشد | D98: a10s | E98: 20/2/2020 | G98: 1980 | H98: 2000 | I98: 20 | J98: 1000 | K98: 1000 | L98: 4 | M98: 300 | N98: 1300 | O98: =الجدول14[[#This Row],[الاجمالي بعد الفوائد]]/الجدول14[[#This Row],[عدد قسط]] -> 325 | Q98: 325 | R98: 325 | S98: 325 | AB98: 325 | AC98: 1121212127
A99: 97 | B99: 20/2/2020 | C99: ايمان محمود سليم | D99: a10s | E99: 20/3/2020 | G99: 1980 | H99: 2000 | I99: 20 | J99: 150 | K99: 1850 | L99: 8 | M99: 555 | N99: 2405 | O99: =الجدول14[[#This Row],[الاجمالي بعد الفوائد]]/الجدول14[[#This Row],[عدد قسط]] -> 300.625 | R99: 300.6 | S99: 300.6 | T99: 300.6 | AB99: 1503.2 | AC99: 1121212127
A100: 98 | B100: 20/1/2020 | C100: محمود مصطفي حسن | D100: a10s | E100: 20/2/2020 | G100: 1980 | H100: 2000 | I100: 20 | J100: 500 | K100: 1500 | L100: 6 | M100: 450 | N100: 1950 | O100: =الجدول14[[#This Row],[الاجمالي بعد الفوائد]]/الجدول14[[#This Row],[عدد قسط]] -> 325 | Q100: 325 | R100: 325 | S100: 325 | AB100: 975 | AC100: 1121212127
A101: 99 | B101: 20/1/2020 | C101: محمد عبد المحسن محمد | D101: a10s | E101: 20/2/2020 | G101: 1980 | H101: 2000 | I101: 20 | J101: 500 | K101: 1500 | L101: 6 | M101: 450 | N101: 1950 | O101: =الجدول14[[#This Row],[الاجمالي بعد الفوائد]]/الجدول14[[#This Row],[عدد قسط]] -> 325 | Q101: 325 | R101: 325 | S101: 325 | AB101: 975 | AC101: 0 | AG101: 2019-10-10
A102: 100 | B102: 20/1/2020 | C102: محمود شعبان محمد ابو الحسن | D102: ريلمي5 | E102: 20/2/2020 | G102: 2620 | H102: 2650 | I102: 30 | J102: 650 | K102: 2000 | L102: 8 | M102: 600 | N102: 2600 | O102: =الجدول14[[#This Row],[الاجمالي بعد الفوائد]]/الجدول14[[#This Row],[عدد قسط]] -> 325 | Q102: 325 | R102: 325 | S102: 325 | T102: 325 | AB102: 1300
A103: 101 | B103: 20/1/2020 | C103: مايكل نقاش | D103: F11 | E103: 20/2/2020 | G103: 3080 | H103: 3100 | I103: 20 | J103: 1100 | K103: 2000 | L103: 8 | M103: 600 | N103: 2600 | O103: =الجدول14[[#This Row],[الاجمالي بعد الفوائد]]/الجدول14[[#This Row],[عدد قسط]] -> 325 | Q103: 325 | R103: 325 | AB103: 1950 | AC103: 1121212127
A104: 102 | B104: 20/1/2020 | C104: رضا محمد مرسي | D104: a10s | E104: 20/2/2020 | G104: 1980 | H104: 2000 | I104: 20 | J104: 300 | K104: 1700 | L104: 9 | M104: 510 | N104: 2210 | O104: =الجدول14[[#This Row],[الاجمالي بعد الفوائد]]/الجدول14[[#This Row],[عدد قسط]] -> 245.5555556 | Q104: 245 | R104: 245 | S104: 245 | AB104: 1475 | AC104: 1121212127
A105: 103 | B105: 20/1/2020 | C105: وائل محمود محمد | D105: a10 | E105: 20/2/2020 | G105: 1980 | H105: 2000 | I105: 20 | J105: 300 | K105: 1700 | L105: 7 | M105: 510 | N105: 2210 | O105: =الجدول14[[#This Row],[الاجمالي بعد الفوائد]]/الجدول14[[#This Row],[عدد قسط]] -> 315.7142857 | Q105: 315.7 | R105: 315.7 | S105: 315.7 | T105: 315.7 | AB105: 947.2 | AC105: 116585625
A106: 104 | B106: 20/1/2020 | C106: سيف علي نعاس | D106: a20s | E106: 20/2/2020 | G106: 2580 | H106: 2600 | I106: 20 | J106: 200 | K106: 2400 | L106: 10 | M106: 720 | N106: 3120 | O106: =الجدول14[[#This Row],[الاجمالي بعد الفوائد]]/الجدول14[[#This Row],[عدد قسط]] -> 312 | Q106: 312 | R106: 312 | S106: 312 | T106: 312 | AB106: 1872 | AC106: 1121212127
A107: 105 | B107: 20/1/2020 | C107: وليد عصام عبد الفتاح | D107: a10s | E107: 20/2/2020 | G107: 1980 | H107: 2000 | I107: 20 | J107: 500 | K107: 1500 | L107: 6 | M107: 450 | N107: 1950 | O107: =الجدول14[[#This Row],[الاجمالي بعد الفوائد]]/الجدول14[[#This Row],[عدد قسط]] -> 325 | Q107: 325 | R107: 325 | S107: 325 | T107: 325 | AB107: 650
A108: 106 | B108: 20/1/2020 | C108: احمد عبد الله محمد | D108: roo2f | E108: 20/2/2020 | G108: 5200 | H108: 5250 | I108: 50 | J108: 500 | K108: 4750 | L108: 10 | M108: 1425 | N108: 6175 | O108: =الجدول14[[#This Row],[الاجمالي بعد الفوائد]]/الجدول14[[#This Row],[عدد قسط]] -> 617.5 | Q108: 617.5 | R108: 617.5 | S108: 617.5 | AB108: 4322.5 | AC108: 1121212127
A109: 107 | B109: 20/2/2020 | C109: احمد صيام الحلو | D109: a30s | E109: 20/3/2020 | G109: 3380 | H109: 3400 | I109: 20 | J109: 0 | K109: 3400 | L109: 10 | M109: 1020 | N109: 4420 | O109: =الجدول14[[#This Row],[الاجمالي بعد الفوائد]]/الجدول14[[#This Row],[عدد قسط]] -> 442 | Q109: 442 | R109: 442 | S109: 442 | AB109: 3094 | AC109: 1121212127
A110: 108 | B110: 20/1/2020 | C110: محمد مصطفي ادريسي | D110: a10s | E110: 20/2/2020 | G110: 1980 | H110: 2000 | I110: 20 | J110: 200 | K110: 1800 | L110: 8 | M110: 540 | N110: 2340 | O110: =الجدول14[[#This Row],[الاجمالي بعد الفوائد]]/الجدول14[[#This Row],[عدد قسط]] -> 292.5 | Q110: 292.5 | AB110: 2047.5 | AC110: 52655565
A111: 109 | B111: 20/1/2020 | C111: نورهان محمد السيد | D111: a10s | E111: 20/2/2020 | G111: 1980 | H111: 2000 | I111: 20 | J111: 1000 | K111: 1000 | L111: 5 | M111: 300 | N111: 1300 | O111: =الجدول14[[#This Row],[الاجمالي بعد الفوائد]]/الجدول14[[#This Row],[عدد قسط]] -> 260 | Q111: 260 | R111: 260 | S111: 260 | AB111: 520 | AC111: 452220
A112: 110 | B112: 20/1/2020 | C112: محمد علي مصطفي | D112: a10s | E112: 20/2/2020 | G112: 1980 | H112: 2000 | I112: 20 | J112: 400 | K112: 1600 | L112: 7 | M112: 480 | N112: 2080 | O112: =الجدول14[[#This Row],[الاجمالي بعد الفوائد]]/الجدول14[[#This Row],[عدد قسط]] -> 297.1428571 | Q112: 297.1 | R112: 297.1 | S112: 297.1 | T112: 297.1 | AB112: 891.6 | AC112: 1121212127
A113: 111 | B113: 20/10/2019 | C113: حنان صبحي السيد | D113: y72019 | E113: 20/11/2020 | G113: 2570 | H113: 2600 | I113: 30 | J113: 500 | K113: 2100 | L113: 9 | M113: 630 | N113: 2730 | O113: =الجدول14[[#This Row],[الاجمالي بعد الفوائد]]/الجدول14[[#This Row],[عدد قسط]] -> 303.3333333 | P113: 303.3 | AB113: 2426.7 | AC113: 555851454
A114: 112 | B114: 20/10/2019 | C114: عبد الجواد 105 | D114: 105 | E114: 20/11/2019 | G114: 330 | H114: 350 | I114: 20 | J114: 100 | K114: 250 | L114: 2 | M114: 75 | N114: 325 | O114: =الجدول14[[#This Row],[الاجمالي بعد الفوائد]]/الجدول14[[#This Row],[عدد قسط]] -> 162.5 | AB114: 325 | AC114: 1121212127
A115: 113 | B115: 20/10/2019 | C115: عربي محمد طه | D115: a5s | E115: 20/11/2019 | G115: 2650 | H115: 2700 | I115: 50 | J115: 300 | K115: 2400 | L115: 10 | M115: 720 | N115: 3120 | O115: =الجدول14[[#This Row],[الاجمالي بعد الفوائد]]/الجدول14[[#This Row],[عدد قسط]] -> 312 | P115: 312 | Q115: 312 | R115: 312 | S115: 312 | AB115: 1872 | AC115: 1121212127
A116: 114 | B116: 20/10/2019 | C116: السيد احمد السيد | D116: ستار2 | E116: 20/11/2019 | G116: 1420 | H116: 1450 | I116: 30 | J116: 0 | K116: 1450 | L116: 6 | M116: 435 | N116: 1885 | O116: =الجدول14[[#This Row],[الاجمالي بعد الفوائد]]/الجدول14[[#This Row],[عدد قسط]] -> 314.1666667 | P116: 314.2 | Q116: 314.2 | R116: 314.2 | S116: 314.2 | AB116: 628.2 | AC116: 1121212127
A117: 115 | B117: 20/10/2019 | C117: رضا السيد همام | D117: ستار2 | E117: 20/11/2019 | G117: 1420 | H117: 1450 | I117: 30 | J117: 0 | K117: 1450 | L117: 6 | M117: 435 | N117: 1885 | O117: =الجدول14[[#This Row],[الاجمالي بعد الفوائد]]/الجدول14[[#This Row],[عدد قسط]] -> 314.1666667 | P117: 314.2 | Q117: 314.2 | R117: 314.2 | S117: 314.2 | AB117: 628.2 | AC117: 1121212127 | AG117: 15/9/20119
A118: 116 | B118: 20/10/2019 | C118: مؤمن السيداحمد جبر | D118: a20s | E118: 20/11/2019 | G118: 2820 | H118: 2850 | I118: 30 | J118: 500 | K118: 2350 | L118: 10 | M118: 705 | N118: 3055 | O118: =الجدول14[[#This Row],[الاجمالي بعد الفوائد]]/الجدول14[[#This Row],[عدد قسط]] -> 305.5 | P118: 305.5 | Q118: 305.5 | R118: 305.5 | S118: 305.5 | AB118: 1833 | AC118: 1121212127
A119: 117 | B119: 20/10/2019 | C119: علي محمد احمد حسن | D119: a10s | E119: 20/11/2020 | G119: 2120 | H119: 2150 | I119: 30 | J119: 500 | K119: 1650 | L119: 7 | M119: 495 | N119: 2145 | O119: =الجدول14[[#This Row],[الاجمالي بعد الفوائد]]/الجدول14[[#This Row],[عدد قسط]] -> 306.4285714 | P119: 306.4 | Q119: 306.4 | R119: 306.4 | S119: 306.4 | AB119: 919.4 | AC119: 1121212127
A120: 118 | B120: 20/10/2019 | C120: سعودي صابر | D120: ستار2 | E120: 20/11/2019 | G120: 1420 | H120: 1450 | I120: 30 | J120: 0 | K120: 1450 | L120: 6 | M120: 435 | N120: 1885 | O120: =الجدول14[[#This Row],[الاجمالي بعد الفوائد]]/الجدول14[[#This Row],[عدد قسط]] -> 314.1666667 | P120: 314.2 | Q120: 180 | R120: 300 | AB120: 1090.8 | AC120: 1121212127
A121: 119 | B121: 20/10/2019 | C121: شعبان عبد العظيم | D121: a30s | E121: 20/11/2019 | G121: 3720 | H121: 3750 | I121: 30 | J121: 500 | K121: 3250 | L121: 10 | M121: 975 | N121: 4225 | O121: =الجدول14[[#This Row],[الاجمالي بعد الفوائد]]/الجدول14[[#This Row],[عدد قسط]] -> 422.5 | P121: 422.5 | Q121: 422.5 | R121: 422.5 | AB121: 2957.5 | AC121: 1121212127
A122: 120 | B122: 20/10/2019 | C122: شيرهان جمال السيد | D122: f11 | E122: 20/11/2019 | G122: 4820 | H122: 4850 | I122: 30 | J122: 500 | K122: 4350 | L122: 10 | M122: 1305 | N122: 5655 | O122: =الجدول14[[#This Row],[الاجمالي بعد الفوائد]]/الجدول14[[#This Row],[عدد قسط]] -> 565.5 | P122: 465.5 | Q122: 435 | AB122: 4754.5 | AC122: 1121212127
A123: 121 | B123: 20/10/2019 | C123: شيرهان جمال السيد2 | D123: y72019 | E123: 20/11/2019 | G123: 2630 | H123: 2650 | I123: 20 | J123: 400 | K123: 2250 | L123: 9 | M123: 675 | N123: 2925 | O123: =الجدول14[[#This Row],[الاجمالي بعد الفوائد]]/الجدول14[[#This Row],[عدد قسط]] -> 325 | P123: 325 | Q123: 325 | AB123: 2275 | AC123: 1121212127
A124: 122 | B124: 20/10/2019 | C124: بدر عادل يونس | D124: y72019 | E124: 20/11/2019 | G124: 2520 | H124: 2550 | I124: 30 | J124: 550 | K124: 2000 | L124: 8 | M124: 600 | N124: 2600 | O124: =الجدول14[[#This Row],[الاجمالي بعد الفوائد]]/الجدول14[[#This Row],[عدد قسط]] -> 325 | P124: 325 | Q124: 325 | R124: 325 | S124: 325 | AB124: 1300 | AC124: 1121212127
A125: 123 | B125: 20/10/2019 | C125: شعبان علي محمد | D125: s5 | E125: 20/11/2019 | G125: 2720 | H125: 2750 | I125: 30 | J125: 500 | K125: 2250 | L125: 9 | M125: 675 | N125: 2925 | O125: =الجدول14[[#This Row],[الاجمالي بعد الفوائد]]/الجدول14[[#This Row],[عدد قسط]] -> 325 | P125: 325 | Q125: 325 | AB125: 2275 | AC125: 1121212127
A126: 124 | B126: 20/11/2019 | C126: محمود فتحي الجندي | D126: a10s | E126: 20/12/2019 | G126: 2030 | H126: 2050 | I126: 20 | J126: 250 | K126: 1800 | L126: 8 | M126: 540 | N126: 2340 | O126: =الجدول14[[#This Row],[الاجمالي بعد الفوائد]]/الجدول14[[#This Row],[عدد قسط]] -> 292.5 | P126: 292.5 | Q126: 292.5 | R126: 292.5 | S126: 292.5 | AB126: 1170 | AC126: 1121212127
A127: 125 | B127: 20/11/2019 | C127: طارق عبد الله رمضان | D127: ريلمي5 برو | E127: 20/12/2019 | G127: 3820 | H127: 3850 | I127: 30 | J127: 500 | K127: 3350 | L127: 10 | M127: 1005 | N127: 4355 | O127: =الجدول14[[#This Row],[الاجمالي بعد الفوائد]]/الجدول14[[#This Row],[عدد قسط]] -> 435.5 | P127: 435.5 | Q127: 435.5 | R127: 435.5 | S127: 435.5 | T127: 435.5 | AB127: 2177.5 | AC127: 1121212127
A128: 126 | B128: 20/11/2019 | C128: اسلام السيد هنداوي | D128: y92019 | E128: 20/12/2019 | G128: 3570 | H128: 3600 | I128: 30 | J128: 2000 | K128: 1600 | L128: 4 | M128: 480 | N128: 2080 | O128: =الجدول14[[#This Row],[الاجمالي بعد الفوائد]]/الجدول14[[#This Row],[عدد قسط]] -> 520 | P128: 520 | Q128: 550 | AB128: 1010 | AC128: 1121212127
A129: 127 | B129: 20/12/2019 | C129: وليد علي عبد الوهاب | D129: y72019 | E129: 20/1/2019 | G129: 2320 | H129: 2350 | I129: 30 | J129: 600 | K129: 1750 | L129: 7 | M129: 525 | N129: 2275 | O129: =الجدول14[[#This Row],[الاجمالي بعد الفوائد]]/الجدول14[[#This Row],[عدد قسط]] -> 325 | P129: 325 | Q129: 325 | R129: 325 | S129: 325 | AB129: 975 | AC129: 1121212127
A130: 128 | B130: 20/12/2019 | C130: رضا محمد مرسي2 | D130: a10s x2 | E130: 20/1/2020 | G130: 3960 | H130: 4000 | I130: 40 | J130: 600 | K130: 3400 | L130: 10 | M130: 1020 | N130: 4420 | O130: =الجدول14[[#This Row],[الاجمالي بعد الفوائد]]/الجدول14[[#This Row],[عدد قسط]] -> 442 | P130: 442 | Q130: 442 | R130: 442 | S130: 442 | AB130: 2652 | AC130: 1121212127
A131: 129 | B131: 20/12/2019 | C131: محمود شعبان جودة | D131: a2coy | E131: 20/1/2020 | G131: 1280 | H131: 1300 | I131: =H131-G131 -> 20 | J131: 650 | K131: =H131-J131 -> 650 | L131: 3 | M131: 195 | N131: =SUM(M131+K131) -> 845 | O131: =الجدول14[[#This Row],[الاجمالي بعد الفوائد]]/الجدول14[[#This Row],[عدد قسط]] -> 281.6666667 | P131: 281.7 | Q131: 281.7 | R131: 281.7 | AB131: -0.1 | AC131: 1121212127
A132: 130 | B132: 20/12/2019 | C132: سعودي شعبان حلمي | D132: a30s | E132: 20/1/2020 | G132: 3720 | H132: 3750 | I132: =H132-G132 -> 30 | J132: 1750 | K132: 2000 | L132: 8 | M132: =K132*30/100 -> 600 | N132: 2600 | O132: =الجدول14[[#This Row],[الاجمالي بعد الفوائد]]/الجدول14[[#This Row],[عدد قسط]] -> 325 | P132: 325 | Q132: 325 | R132: 325 | S132: 325 | AB132: 1300 | AC132: 1121212127
A133: 131 | B133: 20/1/2020 | C133: سعودي شعبان حلمي2 | D133: a20s | E133: 20/2/2020 | G133: 2620 | H133: 2650 | I133: =H133-G133 -> 30 | J133: 650 | K133: 2000 | L133: 8 | M133: 600 | N133: 2600 | O133: =الجدول14[[#This Row],[الاجمالي بعد الفوائد]]/الجدول14[[#This Row],[عدد قسط]] -> 325 | Q133: 325 | R133: 325 | S133: 325 | AB133: 1625 | AC133: 1121212127
A134: 132 | B134: 20/1/2020 | C134: عبد العظيم رجب عبد | D134: a30s | E134: 20/2/2020 | G134: 3650 | H134: 3700 | I134: =H134-G134 -> 50 | J134: 2000 | K134: 1700 | L134: 3 | M134: 510 | N134: 2210 | O134: =الجدول14[[#This Row],[الاجمالي بعد الفوائد]]/الجدول14[[#This Row],[عدد قسط]] -> 736.6666667 | P134: 736.7 | Q134: 736.7 | R134: 736.7 | AB134: =M134+K134-(AA134+Z134+Y134+X134+W134+V134+U134+T134+S134+R134+Q134+P134) -> -0.1 | AC134: 1121212127
A135: 133 | B135: 20/12/2020 | C135: ام مصطفي حنان | D135: a10s | E135: 20/1/2020 | G135: 1980 | H135: 2000 | I135: 20 | J135: 500 | K135: 1500 | L135: 6 | M135: 450 | N135: 1950 | O135: =الجدول14[[#This Row],[الاجمالي بعد الفوائد]]/الجدول14[[#This Row],[عدد قسط]] -> 325 | P135: 325 | Q135: 325 | R135: 325 | S135: 325 | AB135: 650 | AC135: 1121212127
A136: 134 | B136: 20/12/2019 | C136: شعبان احمد | D136: A20S | E136: 20/1/2020 | G136: 2650 | H136: 2700 | I136: 50 | J136: 850 | K136: 1850 | L136: 8 | M136: 555 | N136: 2405 | O136: =الجدول14[[#This Row],[الاجمالي بعد الفوائد]]/الجدول14[[#This Row],[عدد قسط]] -> 300.625 | P136: 300.6 | Q136: 300.6 | R136: 300.6 | S136: 300.6 | AB136: 1202.6 | AC136: 1121212127 | AH136: من هنا الي فوق يوم20
A137: 135 | B137: 2020-05-04 | C137: محمد محمود سليم2 | D137: A30S | G137: 3470 | H137: 3500 | I137: 30 | J137: 300 | K137: 3200 | L137: 11 | M137: 960 | N137: 4160 | O137: =الجدول14[[#This Row],[الاجمالي بعد الفوائد]]/الجدول14[[#This Row],[عدد قسط]] -> 378.1818182 | T137: 378.2 | AB137: 3781.8 | AC137: 1121212127 | AH137: خطا ف عدد الشهور
A138: 136 | B138: 2020-05-03 | C138: حسن عزت حسن مغاغه | D138: اوبو | E138: 2020-05-04 | G138: 5120 | H138: 5150 | I138: 30 | J138: 0 | K138: 5150 | L138: 10 | M138: 1545 | N138: 6695 | O138: =الجدول14[[#This Row],[الاجمالي بعد الفوائد]]/الجدول14[[#This Row],[عدد قسط]] -> 669.5 | S138: 650 | AB138: 6045 | AC138: 1121212127 | AH138: نقص في القسط
A139: 137 | B139: 2020-05-02 | C139: كريم قهوه | D139: A20S | E139: 2020-05-03 | G139: 2580 | H139: 2600 | I139: 20 | J139: 1000 | K139: 1600 | L139: 7 | M139: 480 | N139: 2080 | O139: =الجدول14[[#This Row],[الاجمالي بعد الفوائد]]/الجدول14[[#This Row],[عدد قسط]] -> 297.1428571 | R139: 297.1 | S139: 297.1 | T139: 297.1 | U139: 297.1 | AB139: 891.6 | AC139: 1121212127
A140: 138 | B140: 2020-05-02 | C140: محمود فرج2 | D140: Y72019 | E140: 2020-05-03 | G140: 2230 | H140: 2250 | I140: 20 | J140: 0 | K140: 2250 | L140: 9 | M140: 675 | N140: 2925 | O140: =الجدول14[[#This Row],[الاجمالي بعد الفوائد]]/الجدول14[[#This Row],[عدد قسط]] -> 325 | R140: 325 | S140: 325 | T140: 200 | AB140: 2075 | AC140: 1121212127
A141: 139 | B141: 2020-05-01 | C141: عبد العظيم عيد عبد النبي | D141: A10S | E141: 2020-05-02 | G141: 1980 | H141: 2000 | I141: 20 | J141: 500 | K141: 1500 | L141: 6 | M141: 450 | N141: 1950 | O141: =الجدول14[[#This Row],[الاجمالي بعد الفوائد]]/الجدول14[[#This Row],[عدد قسط]] -> 325 | Q141: 325 | R141: 325 | S141: 325 | AB141: 975 | AC141: 1121212127
A142: 140 | B142: 2020-05-02 | C142: محمود مفتاح | D142: A30S | E142: 2020-05-03 | G142: 3280 | H142: 3300 | I142: 20 | J142: 0 | K142: 3300 | L142: 10 | M142: 990 | N142: 4290 | O142: =الجدول14[[#This Row],[الاجمالي بعد الفوائد]]/الجدول14[[#This Row],[عدد قسط]] -> 429 | R142: 429 | S142: 429 | T142: 429 | AB142: 3003 | AC142: 1121212127
A143: 141 | B143: 2020-05-02 | C143: عم جمال محمد احمد | D143: A20S | E143: 2020-05-03 | G143: 2720 | H143: 2750 | I143: 30 | J143: 500 | K143: 2250 | L143: 10 | M143: 675 | N143: 2925 | O143: =الجدول14[[#This Row],[الاجمالي بعد الفوائد]]/الجدول14[[#This Row],[عدد قسط]] -> 292.5 | R143: 292.5 | S143: 292.5 | AB143: 2340 | AC143: 1121212127
A144: 142 | B144: 2020-05-02 | C144: عثمان رمضان عبد الوهاب | D144: Y92019 | E144: 2020-05-03 | G144: 3380 | H144: 3400 | I144: 20 | J144: 1000 | K144: 2400 | L144: 10 | M144: 720 | N144: 3120 | O144: =الجدول14[[#This Row],[الاجمالي بعد الفوائد]]/الجدول14[[#This Row],[عدد قسط]] -> 312 | R144: 312 | S144: 312 | AB144: 2496 | AC144: 1121212127
A145: 143 | B145: 2020-05-01 | C145: محمود فرج محمود | D145: A10S | E145: 2020-05-02 | G145: 1980 | H145: 2000 | I145: 20 | J145: 400 | K145: 1600 | L145: 7 | M145: 480 | N145: 2080 | O145: =الجدول14[[#This Row],[الاجمالي بعد الفوائد]]/الجدول14[[#This Row],[عدد قسط]] -> 297.1428571 | Q145: 297.1 | R145: 297.1 | S145: 297.1 | T145: 297.1 | AB145: 891.6 | AC145: 1121212127
A146: 144 | B146: 2020-05-01 | C146: عمر محمد كامل | D146: A10S | E146: 2020-05-02 | G146: 1980 | H146: 2000 | I146: 20 | J146: 500 | K146: 1500 | L146: 6 | M146: 450 | N146: 1950 | O146: =الجدول14[[#This Row],[الاجمالي بعد الفوائد]]/الجدول14[[#This Row],[عدد قسط]] -> 325 | Q146: 325 | R146: 125 | AB146: 1500 | AC146: 1123166522
A147: 145 | B147: 2020-05-01 | C147: احمد طلبه حسن | D147: A10S | E147: 2020-05-02 | G147: 1980 | H147: 2000 | I147: 20 | J147: 1000 | K147: 1000 | L147: 4 | M147: 300 | N147: 1300 | O147: =الجدول14[[#This Row],[الاجمالي بعد الفوائد]]/الجدول14[[#This Row],[عدد قسط]] -> 325 | Q147: 325 | R147: 325 | S147: 325 | T147: 325 | AB147: 0 | AC147: 1121212127
A148: 146 | B148: 2020-05-01 | C148: الشيخ محمد محمود | D148: غير ظاهر | E148: 2020-05-02 | G148: 1670 | H148: 1700 | I148: 30 | J148: 400 | K148: 1300 | L148: 6 | M148: 390 | N148: 1690 | O148: =الجدول14[[#This Row],[الاجمالي بعد الفوائد]]/الجدول14[[#This Row],[عدد قسط]] -> 281.6666667 | Q148: 281.7 | R148: 281.7 | S148: 281.7 | AB148: 844.9 | AC148: 1121212127
A149: 147 | B149: 2020-05-01 | C149: الاستاذ ابو زيد | D149: A10S | E149: 2020-05-02 | G149: 1970 | H149: 2000 | I149: 30 | J149: 600 | K149: 1400 | L149: 6 | M149: 420 | N149: 1820 | O149: =الجدول14[[#This Row],[الاجمالي بعد الفوائد]]/الجدول14[[#This Row],[عدد قسط]] -> 303.3333333 | Q149: 303.3 | R149: 303.3 | S149: 303.3 | T149: 303.3 | AB149: 606.8 | AC149: 1155088075
A150: 148 | B150: 2020-05-01 | C150: شادي رضا همام | D150: A20S | E150: 2020-05-02 | G150: 2620 | H150: 2650 | I150: 30 | J150: 300 | K150: 2350 | L150: 10 | M150: 705 | N150: 3055 | O150: =الجدول14[[#This Row],[الاجمالي بعد الفوائد]]/الجدول14[[#This Row],[عدد قسط]] -> 305.5 | Q150: 305.5 | R150: 305.5 | S150: 305.5 | AB150: 2138.5 | AC150: 1121212127
A151: 149 | B151: 2020-05-01 | C151: ابو عيسي | D151: a30s | E151: 2020-05-02 | G151: 3650 | H151: 3700 | I151: 50 | J151: 1300 | K151: 2400 | L151: 10 | M151: 720 | N151: 3120 | O151: =الجدول14[[#This Row],[الاجمالي بعد الفوائد]]/الجدول14[[#This Row],[عدد قسط]] -> 312 | Q151: 312 | R151: 312 | S151: 312 | AB151: 2184 | AC151: 1121212127
A152: 150 | B152: 2020-05-01 | C152: يوسف صالح عبد المولي | D152: اوبو5 | E152: 2020-05-02 | G152: 2620 | H152: 2650 | I152: 30 | J152: 1000 | K152: 1650 | L152: 7 | M152: 495 | N152: 2145 | O152: =الجدول14[[#This Row],[الاجمالي بعد الفوائد]]/الجدول14[[#This Row],[عدد قسط]] -> 306.4285714 | Q152: 306.4 | R152: 306.4 | S152: 306.4 | AB152: 1225.8 | AC152: 1121212127
A153: 151 | B153: 2020-05-01 | C153: فتحي عبد العزيز عدلي | D153: y9 | E153: 2020-05-02 | G153: 4280 | H153: 4300 | I153: 20 | J153: 0 | K153: 4300 | L153: 10 | M153: 1290 | N153: 5590 | O153: =الجدول14[[#This Row],[الاجمالي بعد الفوائد]]/الجدول14[[#This Row],[عدد قسط]] -> 559 | Q153: 559 | R153: 559 | AB153: 4472 | AC153: 1121212127
A154: 152 | B154: 2020-05-01 | C154: احمد محمد احمد حسن | D154: a20s | E154: 2020-05-02 | G154: 2620 | H154: 2650 | I154: 30 | J154: 650 | K154: 2000 | L154: 8 | M154: 600 | N154: 2600 | O154: =الجدول14[[#This Row],[الاجمالي بعد الفوائد]]/الجدول14[[#This Row],[عدد قسط]] -> 325 | Q154: 325 | R154: 325 | S154: 325 | T154: 325 | AB154: 1300 | AC154: 1121212127
A155: 153 | B155: 2020-05-01 | C155: خالد محمد محمد عبد الجواد | D155: y92019 | E155: 2020-05-02 | G155: 3520 | H155: 3550 | I155: 30 | J155: 550 | K155: 3000 | L155: 10 | M155: 900 | N155: 3900 | O155: =الجدول14[[#This Row],[الاجمالي بعد الفوائد]]/الجدول14[[#This Row],[عدد قسط]] -> 390 | Q155: 390 | R155: 390 | S155: 390 | AB155: 2730 | AC155: 1121212127
A156: 154 | B156: 2020-05-01 | C156: حاتم مصطفي عبد الوهاب | D156: A10S | E156: 2020-05-02 | G156: 1980 | H156: 2000 | I156: 20 | J156: 500 | K156: 1500 | L156: 6 | M156: 450 | N156: 1950 | O156: =الجدول14[[#This Row],[الاجمالي بعد الفوائد]]/الجدول14[[#This Row],[عدد قسط]] -> 325 | Q156: 325 | R156: 325 | S156: 325 | T156: 325 | AB156: 650 | AC156: 1121212127
A157: 155 | B157: 2020-05-01 | C157: احمد ناصر محمد مغاغه | D157: A52020 | E157: 2020-05-02 | G157: 3520 | H157: 3550 | I157: =H157-G157 -> 30 | J157: 450 | K157: 3100 | L157: 10 | M157: 930 | N157: 4030 | O157: =الجدول14[[#This Row],[الاجمالي بعد الفوائد]]/الجدول14[[#This Row],[عدد قسط]] -> 403 | Q157: 403 | R157: 403 | S157: 403 | AB157: 2821 | AC157: 1121212127
A158: 156 | B158: 2020-05-01 | C158: شريف فرج الله | D158: A20S | E158: 2020-05-02 | G158: 2620 | H158: 2650 | I158: 30 | J158: 650 | K158: 2000 | L158: 8 | M158: 600 | N158: 2600 | O158: =الجدول14[[#This Row],[الاجمالي بعد الفوائد]]/الجدول14[[#This Row],[عدد قسط]] -> 325 | Q158: 325 | R158: 325 | S158: 325 | T158: 325 | AB158: 1300 | AC158: 1121212127
A159: 157 | B159: 2019-05-12 | C159: محمود منصور | D159: A120S | E159: 2020-05-01 | G159: 2020 | H159: 2050 | I159: 30 | J159: 1000 | K159: 1050 | L159: 5 | M159: 315 | N159: 1365 | O159: =الجدول14[[#This Row],[الاجمالي بعد الفوائد]]/الجدول14[[#This Row],[عدد قسط]] -> 273 | P159: 273 | Q159: 273 | R159: 273 | S159: 273 | AB159: 273 | AC159: 1121212127
A160: 158 | B160: 2019-05-12 | C160: عيس عبدالعزيز عدلي2 | D160: A10S | E160: 2020-05-01 | G160: 2020 | H160: 2050 | I160: 30 | J160: 0 | K160: 2050 | L160: 8 | M160: 615 | N160: 2665 | O160: =الجدول14[[#This Row],[الاجمالي بعد الفوائد]]/الجدول14[[#This Row],[عدد قسط]] -> 333.125 | P160: 333.1 | Q160: 333.1 | R160: 333.1 | S160: 333.1 | T160: 333.1 | AB160: 999.5 | AC160: 1148101201
A161: 159 | B161: 2019-05-12 | C161: عبد اللطيف محمد | D161: A20S | E161: 2020-05-01 | G161: 2770 | H161: 2800 | I161: 30 | J161: 500 | K161: 2300 | L161: 10 | M161: 690 | N161: 2990 | O161: =الجدول14[[#This Row],[الاجمالي بعد الفوائد]]/الجدول14[[#This Row],[عدد قسط]] -> 299 | P161: 299 | Q161: 299 | R161: 299 | S161: 299 | T161: 299 | AB161: 1495 | AC161: 1121212127
A162: 160 | B162: 2019-05-12 | C162: احمد ابو الجرس | D162: ريلمي5 | E162: 2020-05-01 | G162: 2620 | H162: 2650 | I162: 30 | J162: 150 | K162: 2500 | L162: 10 | M162: 750 | N162: 3250 | O162: =الجدول14[[#This Row],[الاجمالي بعد الفوائد]]/الجدول14[[#This Row],[عدد قسط]] -> 325 | P162: 325 | Q162: 325 | R162: 325 | S162: 325 | AB162: 1950 | AC162: 1153249980
A163: 161 | B163: 2019-05-10 | C163: بتول ايوبي | D163: NT7 | E163: 2019-05-11 | G163: 3930 | H163: 3950 | I163: 20 | J163: 450 | K163: 3500 | L163: 10 | M163: 1050 | N163: 4550 | O163: =الجدول14[[#This Row],[الاجمالي بعد الفوائد]]/الجدول14[[#This Row],[عدد قسط]] -> 455 | AB163: 4550 | AC163: 1121212127
A164: 162 | B164: 2019-05-10 | C164: ولاء ابراهيم | D164: S4 | E164: 2020-05-11 | G164: 2720 | H164: 2750 | I164: 30 | J164: 300 | K164: 2450 | L164: 10 | M164: 735 | N164: 3185 | O164: =الجدول14[[#This Row],[الاجمالي بعد الفوائد]]/الجدول14[[#This Row],[عدد قسط]] -> 318.5 | P164: 318.5 | Q164: 318.5 | R164: 318.5 | S164: 318.5 | T164: 318.5 | AB164: 1592.5 | AC164: 1121212127
A165: 163 | B165: 2019-05-10 | C165: رجب محمد رزق | D165: A20 | E165: 2019-05-11 | G165: 2600 | H165: 2650 | I165: 50 | J165: 800 | K165: 1850 | L165: 8 | M165: 555 | N165: 2405 | O165: =الجدول14[[#This Row],[الاجمالي بعد الفوائد]]/الجدول14[[#This Row],[عدد قسط]] -> 300.625 | P165: 300.6 | Q165: 300.6 | R165: 300.6 | S165: 300.6 | T165: 300.6 | AB165: 902 | AC165: 1121212127
A166: 164 | B166: 2019-05-10 | C166: عبد الله جمال ادم | D166: A20 | E166: 2019-05-11 | G166: 2620 | H166: 2650 | I166: 30 | J166: 500 | K166: 2150 | L166: 8 | M166: 645 | N166: 2795 | O166: =الجدول14[[#This Row],[الاجمالي بعد الفوائد]]/الجدول14[[#This Row],[عدد قسط]] -> 349.375 | P166: 349.4 | Q166: 349.4 | R166: 349.4 | S166: 349.4 | T166: 349.4 | AB166: 1048 | AC166: 1121212127
A167: 165 | B167: 2019-05-10 | C167: محمد كثروي | D167: S4 | E167: 2019-05-11 | G167: 2730 | H167: 2750 | I167: 20 | J167: 300 | K167: 2450 | L167: 10 | M167: 735 | N167: 3185 | O167: =الجدول14[[#This Row],[الاجمالي بعد الفوائد]]/الجدول14[[#This Row],[عدد قسط]] -> 318.5 | P167: 318.5 | Q167: 318.5 | R167: 318.5 | S167: 318.5 | T167: 318.5 | AB167: 1592.5 | AC167: 1121212127
A168: 166 | B168: 2019-05-10 | C168: رباب محمد السيد | D168: A20 XZ | E168: 2019-05-11 | G168: 5340 | H168: 5400 | I168: 60 | J168: 1000 | K168: 4400 | L168: 10 | M168: 1320 | N168: 5720 | O168: =الجدول14[[#This Row],[الاجمالي بعد الفوائد]]/الجدول14[[#This Row],[عدد قسط]] -> 572 | P168: 572 | Q168: 572 | R168: 572 | S168: 572 | T168: 572 | AB168: 2860 | AC168: 1121212127
A169: 167 | B169: 2019-05-10 | C169: رجب السيد | D169: A10S | E169: 2019-05-11 | G169: 2670 | H169: 2700 | I169: 30 | J169: 700 | K169: 2000 | L169: 8 | M169: 600 | N169: 2600 | O169: =الجدول14[[#This Row],[الاجمالي بعد الفوائد]]/الجدول14[[#This Row],[عدد قسط]] -> 325 | P169: 325 | Q169: 325 | R169: 325 | S169: 325 | T169: 325 | U169: 325 | AB169: 650 | AC169: 1121212127
A170: 168 | B170: 2019-05-11 | C170: رضا عبد المطلب | D170: A10S | E170: 2019-05-12 | G170: 2120 | H170: 2150 | I170: 30 | J170: 600 | K170: 1550 | L170: 6 | M170: 465 | N170: 2015 | O170: =الجدول14[[#This Row],[الاجمالي بعد الفوائد]]/الجدول14[[#This Row],[عدد قسط]] -> 335.8333333 | P170: 400 | Q170: 1000 | AB170: 615 | AC170: 1121212127
A171: 169 | B171: 2019-05-11 | C171: احمد ماهر المصري | D171: اوبو A9 | E171: 2019-05-12 | G171: 5100 | H171: 5150 | I171: 50 | J171: 1000 | K171: 4150 | L171: 10 | M171: 1245 | N171: 5395 | O171: =الجدول14[[#This Row],[الاجمالي بعد الفوائد]]/الجدول14[[#This Row],[عدد قسط]] -> 539.5 | P171: 539.5 | Q171: 539.5 | R171: 539.5 | S171: 539.5 | T171: 539.5 | U171: 539.5 | AB171: 2158 | AC171: 109695739
A172: 170 | B172: 2019-05-11 | C172: فرجاني احمد مصطفي | D172: A10S | E172: 2019-05-12 | G172: 2120 | H172: 2150 | I172: 30 | J172: 150 | K172: 2000 | L172: 8 | M172: 600 | N172: 2600 | O172: =الجدول14[[#This Row],[الاجمالي بعد الفوائد]]/الجدول14[[#This Row],[عدد قسط]] -> 325 | P172: 325 | Q172: 325 | R172: 325 | S172: 325 | T172: 325 | AB172: 975 | AC172: 101847658
A173: 171 | B173: 2019-05-11 | C173: عبد العظيم السيد عبد العظيم | D173: Y92019 | E173: 2019-05-12 | G173: 2480 | H173: 2500 | I173: 20 | J173: 1000 | K173: 1500 | L173: 6 | M173: 450 | N173: 1950 | O173: =الجدول14[[#This Row],[الاجمالي بعد الفوائد]]/الجدول14[[#This Row],[عدد قسط]] -> 325 | P173: 325 | Q173: 325 | R173: 325 | AB173: 975 | AC173: 1121212127
A174: 172 | B174: 2019-05-10 | C174: رجب محمد رزق2 | D174: A20S | E174: 2019-05-11 | G174: 2820 | H174: 2850 | I174: 30 | J174: 1000 | K174: 1850 | L174: 8 | M174: 555 | N174: 2405 | O174: =الجدول14[[#This Row],[الاجمالي بعد الفوائد]]/الجدول14[[#This Row],[عدد قسط]] -> 300.625 | P174: 300.6 | Q174: 300.6 | R174: 300.6 | S174: 300.6 | T174: 300.6 | AB174: 902 | AC174: 1121212127
A175: 173 | B175: 2020-10-02 | C175: محمد السيد ابراهيم | D175: S5 | E175: 2020-10-03 | G175: 2820 | H175: 2850 | I175: 30 | J175: 500 | K175: 2350 | L175: 10 | M175: 705 | N175: 3055 | O175: =الجدول14[[#This Row],[الاجمالي بعد الفوائد]]/الجدول14[[#This Row],[عدد قسط]] -> 305.5 | R175: 305.5 | S175: 305.5 | AB175: 2444 | AC175: 1121212127
A176: 174 | B176: 2020-10-02 | C176: محمد عبد الوهاب عبد العزيز | D176: A20S | E176: 2020-10-03 | G176: 2580 | H176: 2600 | I176: 20 | J176: 500 | K176: 2100 | L176: 9 | M176: 630 | N176: 2730 | O176: =الجدول14[[#This Row],[الاجمالي بعد الفوائد]]/الجدول14[[#This Row],[عدد قسط]] -> 303.3333333 | R176: 303.3 | S176: 303.3 | T176: 303.3 | AB176: 1820.1 | AC176: 1121212127 | AH176: خطا في فرق الجمله ونقص القسط
A177: 175 | B177: 2020-10-03 | C177: عم احمد ابو الجندي | D177: A10S | E177: 2020-10-04 | G177: 2100 | H177: 2100 | I177: 0 | J177: 400 | K177: 1700 | L177: 9 | M177: 510 | N177: 2210 | O177: =الجدول14[[#This Row],[الاجمالي بعد الفوائد]]/الجدول14[[#This Row],[عدد قسط]] -> 245.5555556 | S177: 245.6 | AB177: 1964.4 | AC177: 1121212127
A178: 176 | B178: 2020-10-03 | C178: مصطفي صلاح محمد | D178: ريملي5 | E178: 2020-10-04 | G178: 2620 | H178: 2650 | I178: 30 | J178: 1500 | K178: 1150 | L178: 5 | M178: 345 | N178: 1495 | O178: =الجدول14[[#This Row],[الاجمالي بعد الفوائد]]/الجدول14[[#This Row],[عدد قسط]] -> 299 | S178: 299 | T178: 299 | AB178: 897 | AC178: 1121212127
A179: 177 | B179: 2020-10-03 | C179: جمال خالد محمد علي | D179: A10S | E179: 2020-10-04 | G179: 2080 | H179: 2100 | I179: 20 | J179: 500 | K179: 1600 | L179: 7 | M179: 480 | N179: 2080 | O179: =الجدول14[[#This Row],[الاجمالي بعد الفوائد]]/الجدول14[[#This Row],[عدد قسط]] -> 297.1428571 | S179: 297.1 | T179: 297.1 | AB179: 1485.8 | AC179: 1121212127
A180: 178 | B180: 2020-10-02 | C180: احمد محمود محمد | D180: A10S | E180: 2020-10-03 | G180: 2080 | H180: 2100 | I180: 20 | J180: 500 | K180: 1600 | L180: 10 | M180: 480 | N180: 2080 | O180: =الجدول14[[#This Row],[الاجمالي بعد الفوائد]]/الجدول14[[#This Row],[عدد قسط]] -> 208 | R180: 208 | S180: 208 | T180: 80 | AB180: 1584 | AC180: 1121212127
A181: 179 | B181: 2020-10-03 | C181: علي فرج عبد الطيف | D181: A20S | E181: 2020-10-04 | G181: 2580 | H181: 2600 | I181: 20 | J181: 500 | K181: 2100 | L181: 9 | M181: 630 | N181: 2730 | O181: =الجدول14[[#This Row],[الاجمالي بعد الفوائد]]/الجدول14[[#This Row],[عدد قسط]] -> 303.3333333 | S181: 303.3 | T181: 303.3 | AB181: 2123.4 | AC181: 1121212127
A182: 180 | B182: 2020-10-03 | C182: محمود ناصر مغاغه2 | D182: HOT8 | E182: 2020-10-04 | G182: 2180 | H182: 2200 | I182: 20 | J182: 0 | K182: 2200 | L182: 10 | M182: 660 | N182: 2860 | O182: =الجدول14[[#This Row],[الاجمالي بعد الفوائد]]/الجدول14[[#This Row],[عدد قسط]] -> 286 | S182: 286 | T182: 286 | AB182: 2288 | AC182: 1121212127
A183: 181 | B183: 2020-10-03 | C183: محمد عبد الفتاح حسن | D183: A20S | E183: 2020-10-04 | G183: 2580 | H183: 2600 | I183: 20 | J183: 300 | K183: 2300 | L183: 10 | M183: 690 | N183: 2990 | O183: =الجدول14[[#This Row],[الاجمالي بعد الفوائد]]/الجدول14[[#This Row],[عدد قسط]] -> 299 | Q183: 299 | AB183: 2691 | AC183: 1121212127
A184: 182 | B184: 2020-10-03 | C184: حسام رجب عبد اللطيف | D184: a20s | E184: 2020-10-04 | G184: 2580 | H184: 2600 | I184: 20 | J184: 1000 | K184: 1600 | L184: 7 | M184: 480 | N184: 2080 | O184: =الجدول14[[#This Row],[الاجمالي بعد الفوائد]]/الجدول14[[#This Row],[عدد قسط]] -> 297.1428571 | S184: 297.1 | T184: 297.1 | AB184: 1485.8 | AC184: 1121212127
A185: 183 | B185: 2020-10-03 | C185: محمد طه عبد الوهاب | D185: y7b | E185: 2020-10-04 | G185: 2780 | H185: 2800 | I185: 20 | J185: 200 | K185: 2600 | L185: 10 | M185: 780 | N185: 3380 | O185: =الجدول14[[#This Row],[الاجمالي بعد الفوائد]]/الجدول14[[#This Row],[عدد قسط]] -> 338 | S185: 338 | T185: 338 | AB185: 2704 | AC185: 1121212127
A186: 184 | B186: 2020-10-03 | C186: درويش | D186: a10s | E186: 2020-10-04 | G186: 2080 | H186: 2100 | I186: 20 | J186: 400 | K186: 1700 | L186: 9 | M186: 510 | N186: 2210 | O186: =الجدول14[[#This Row],[الاجمالي بعد الفوائد]]/الجدول14[[#This Row],[عدد قسط]] -> 245.5555556 | S186: 245.6 | T186: 245.6 | AB186: 1718.8 | AC186: 1121212127
A187: 185 | B187: 2020-10-03 | C187: عبد الجليل | D187: a10s | E187: 2020-10-04 | G187: 2080 | H187: 2100 | I187: 20 | J187: 100 | K187: 2000 | L187: 8 | M187: 600 | N187: 2600 | O187: =الجدول14[[#This Row],[الاجمالي بعد الفوائد]]/الجدول14[[#This Row],[عدد قسط]] -> 325 | S187: 325 | T187: 325 | AB187: 1950 | AC187: 1121212127
A188: 186 | B188: 2020-10-03 | C188: صالح علي احمد | D188: a5s | E188: 2020-10-04 | G188: 2430 | H188: 2450 | I188: 20 | J188: 400 | K188: 2050 | L188: 9 | M188: 615 | N188: 2665 | O188: =الجدول14[[#This Row],[الاجمالي بعد الفوائد]]/الجدول14[[#This Row],[عدد قسط]] -> 296.1111111 | S188: 296.1 | T188: 296.1 | AB188: 2072.8 | AC188: 1121212127
A189: 187 | B189: 2020-10-03 | C189: احمد محمد عبد الحميد | D189: سمارت 2 | E189: 2020-10-04 | G189: 1530 | H189: 1550 | I189: 20 | J189: 200 | K189: 1350 | L189: 8 | M189: 405 | N189: 1755 | O189: =الجدول14[[#This Row],[الاجمالي بعد الفوائد]]/الجدول14[[#This Row],[عدد قسط]] -> 219.375 | S189: 219.4 | T189: 219.4 | AB189: 1316.2 | AC189: 1121212127
A190: 188 | B190: 2020-10-03 | C190: عبد العظيم رجب عبد العظيم | D190: a10s | E190: 2020-10-04 | G190: 2080 | H190: 2100 | I190: 20 | J190: 100 | K190: 2000 | L190: 8 | M190: 600 | N190: 2600 | O190: =الجدول14[[#This Row],[الاجمالي بعد الفوائد]]/الجدول14[[#This Row],[عدد قسط]] -> 325 | S190: 325 | AB190: 2275 | AC190: 1121212127
A191: 189 | B191: 2020-10-03 | C191: ايمن حسين سالم | D191: 5 | E191: 2020-10-04 | G191: 2630 | H191: 2650 | I191: 20 | J191: 650 | K191: 2000 | L191: 8 | M191: 600 | N191: 2600 | O191: =الجدول14[[#This Row],[الاجمالي بعد الفوائد]]/الجدول14[[#This Row],[عدد قسط]] -> 325 | S191: 325 | T191: 325 | AB191: 1950 | AC191: 1121212127
A192: 190 | B192: 2020-10-05 | C192: محمد ابو الحسن | D192: اوبو2 | E192: 2020-10-06 | G192: 4000 | H192: 4000 | I192: 0 | J192: 0 | K192: 4000 | L192: 10 | M192: 1200 | N192: 5200 | O192: =الجدول14[[#This Row],[الاجمالي بعد الفوائد]]/الجدول14[[#This Row],[عدد قسط]] -> 520 | AB192: 5200 | AC192: 1121212127
A193: 191 | B193: 2020-10-04 | C193: محمد رجب حسين | D193: ra2f | E193: 2020-10-05 | G193: 5100 | H193: 5100 | I193: 0 | J193: 2100 | K193: 3000 | L193: 10 | M193: 900 | N193: 3900 | O193: =الجدول14[[#This Row],[الاجمالي بعد الفوائد]]/الجدول14[[#This Row],[عدد قسط]] -> 390 | T193: 390 | AB193: 3510 | AC193: 1121212127
A194: 192 | B194: 2020-10-03 | C194: احمد ايمن مخيمر | D194: y92019 | E194: 2020-10-04 | G194: 3380 | H194: 3400 | I194: 20 | J194: 1400 | K194: 2000 | L194: 8 | M194: 600 | N194: 2600 | O194: =الجدول14[[#This Row],[الاجمالي بعد الفوائد]]/الجدول14[[#This Row],[عدد قسط]] -> 325 | S194: 325 | T194: 325 | U194: 325 | V194: 325 | AB194: 1300 | AC194: 1121212127
A195: 193 | B195: 2020-10-04 | C195: ياسر محمد علي بطيخه | D195: a30s | E195: 2020-10-05 | G195: 3020 | H195: 3050 | I195: 30 | J195: 500 | K195: =H195-J195 -> 2550 | L195: 10 | M195: 765 | N195: =SUM(M195+K195) -> 3315 | O195: =الجدول14[[#This Row],[الاجمالي بعد الفوائد]]/الجدول14[[#This Row],[عدد قسط]] -> 331.5 | T195: 331.5 | AB195: 2983.5 | AC195: 1121212127
A196: 194 | B196: 2020-10-04 | C196: معتصم محمد ابراهيم | D196: y6 | E196: 2020-10-05 | G196: 1830 | H196: 1850 | I196: 20 | J196: 0 | K196: 1850 | L196: 8 | M196: =K196*30/100 -> 555 | N196: 2405 | O196: =الجدول14[[#This Row],[الاجمالي بعد الفوائد]]/الجدول14[[#This Row],[عدد قسط]] -> 300.625 | T196: 300.6 | AB196: 2104.4 | AC196: 1121212127
A197: 195 | B197: 2020-10-04 | C197: محمد السيد بهجات | D197: a20s | E197: 2020-10-05 | G197: 2600 | H197: 2600 | I197: 0 | J197: 0 | K197: 2600 | L197: 10 | M197: 780 | N197: 3380 | O197: =الجدول14[[#This Row],[الاجمالي بعد الفوائد]]/الجدول14[[#This Row],[عدد قسط]] -> 338 | T197: 338 | AB197: 3042 | AC197: 1121212127
A198: 196 | B198: 2020-10-04 | C198: اخت عبد الرحمن السيد مبروك | D198: a20s | E198: 2020-10-05 | G198: 2550 | H198: 2550 | I198: =H198-G198 -> 0 | J198: 1000 | K198: 1550 | L198: 8 | M198: 465 | N198: 2015 | O198: =الجدول14[[#This Row],[الاجمالي بعد الفوائد]]/الجدول14[[#This Row],[عدد قسط]] -> 251.875 | T198: 251.9 | AB198: =M198+K198-(AA198+Z198+Y198+X198+W198+V198+U198+T198+S198+R198+Q198+P198) -> 1763.1 | AC198: 1121212127
A199: 197 | B199: 2020-10-05 | C199: محمد تبع همام | D199: y92019 | E199: 2020-10-06 | G199: 3400 | H199: 3400 | I199: 0 | J199: 500 | K199: 2900 | L199: 10 | M199: 870 | N199: 3770 | O199: =الجدول14[[#This Row],[الاجمالي بعد الفوائد]]/الجدول14[[#This Row],[عدد قسط]] -> 377 | AB199: 3770 | AC199: 1121212127
A200: 198 | B200: 2020-10-05 | C200: صفاء السيد احمد احمد | D200: a20s | E200: 2020-10-06 | G200: 2550 | H200: 2550 | I200: 0 | J200: 250 | K200: 2300 | L200: 10 | M200: 690 | N200: 2990 | O200: =الجدول14[[#This Row],[الاجمالي بعد الفوائد]]/الجدول14[[#This Row],[عدد قسط]] -> 299 | AB200: 2990 | AC200: 1121212127
... 1924 more rows

Sheet اجمالي الارباح
A1: شركة الحمد فون لخدمات المحمول | C1: بسم الله الرحمن الرحيم | I1: بسم الله ماشاء الله
A2: رائس مال كامل | B2: المبيعات بدون الفوائد | C2: المصروفات | E2: اجمالي المسدد من الاقساط | F2: اجمالي الديون الخارجية | I2: الصندوق | J2: ارباح فرق الجملة | K2: فوائد القسط | L2: اجمالي الارباح
A3: =SUM(A5+E5) -> 257000 | B3: =SUM('تسديد اقساط 2020'!K:K) -> 482140 | C3: =SUM(I5+L5) -> 0 | E3: =SUM([1]ورقة2!A38+[1]ورقة2!B38) -> 226983.3 | F3: =SUM('[1]تسديد اقساط 2020'!AA:AA) -> 401374.9 | I3: =B3-F3 -> 80765.1 | J3: =SUM('[1]اجمالي المبيعات'!H:H) -> 6390 | K3: =SUM('[1]اجمالي المبيعات'!L:L) -> 135999 | L3: =SUM(K3+J3) -> 142389
A4: تقارير اجمالي الايداع مستثمر م ص | E4: تقارير اجمالي الايداع مستثمرأك | I4: اجمالي المصروفات مستثمر م ص | L4: اجمالي المصروفات مستثمر أك
A5: =SUM(B7:B10) -> 107000 | E5: =SUM(F7:F374) -> 150000 | I5: =SUM(J7:J284) -> 0 | L5: =SUM(M7:M345) -> 0
A6: التاريخ | B6: المبلغ | C6: تاريخ الايقاف | D6: مده العمل | E6: تاريخ الايداع | F6: المبلغ | G6: تاريخ الايقاف | H6: مده العمل | I6: التاريخ | J6: المبلغ | L6: التاريخ | M6: المبلغ
A7: 2019-01-11 | B7: 57000 | D7: 200 | E7: 2019-05-10 | F7: 50000 | G7: 30/05/2020 | H7: 200 | I7: 2020-01-06 | J7: 0 | L7: 2020-01-01 | M7: 0
A8: 2020-05-01 | B8: 40000 | D8: 100 | E8: 2019-01-11 | F8: 50000 | G8: 30/05/2020 | H8: 100 | I8: 2020-01-03 | J8: 0 | L8: 2020-01-02 | M8: 0
A9: 25/03/2020 | B9: 10000 | D9: 150 | E9: 13/11/2019 | F9: 20000 | G9: 30/5/2020 | H9: 400
E10: 2020-10-02 | F10: 30000
B12: تقسيم الارباح حسب الاسهم
B13: مبلغ الربح كامل | C13: نصف الربح | D13: عدد ايام السنة | E13: قيمة الربح اليومي
B14: =SUM(J3+K3) -> 142389 | C14: =B14/2 -> 71194.5 | D14: 365 | E14: =C14/D14 -> 195.0534247
A15: اسم المستثمر | B15: قيمه السهم | C15: عدد الاسهم | D15: مجموع عدد ايام العمل | E15: صافي الربح
A16: مستثمر ا ك | B16: 1000 | C16: 107 | D16: =SUM(H7:H77) -> 700 | E16: =D16*E14 -> 136537.3973
A17: مستثمر م ص | B17: 1000 | C17: 200 | D17: =SUM(D7:D10) -> 450 | E17: =D17*E14 -> 87774.0411
A18: الحمد فون | B18: =B14/2 -> 71194.5 | C18: جمال/ محمود | D18: =B18/2 -> 35597.25 | E18: =B18/2 -> 35597.25

Sheet حركه الصندوق
F1: حركة الصندوق اليومية
F4: المبيعات | G4: المصروفات | H4: فرق الصندوق | I4: استلام اقساط | J4: ملاحظات

Sheet اله حاسبه الاقساط
C1: ال
D4: المبلغ | E4: مقدم | F4: الباقي بعد المقدم | G4: نسبة الربح | H4: الاجمالي | I4: عدد الاقساط | J4: مبلغ القسط
D5: 2000 | E5: 0 | F5: =D5-E5 -> 2000 | G5: =F5*30% -> 600 | H5: =F5+G5 -> 2600 | I5: 3 | J5: =H5/I5 -> 866.6666667

Sheet ورقة2 (2)
E7: اكواد برمجه | F7: الكود
E8: تنسيق الصفوف وتوسيعاها تلقائي | F8: Columns.AutoFit
A37: اجمالي مسدد 2019 | B37: اجمالي مسدد 2020
A38: =SUM('[1]اجمالي المبيعات'!O:Z) -> 33569.2 | B38: =SUM('[1]تسديد اقساط 2020'!O:Z) -> 193414.1

Sheet ورقة2
B1: فارس محمد حماده | C1: a10 | E1: محمد محمود سليم خطا ف القسط
B2: كريم محمد عبد الصمد
B3: هنداوي اسلامان
B4: محمد السيد عيد محمد
B5: حسن جمعه
B6: اسلام علي محمد
B7: احمد خليفه حسن
B8: احمد عبد العزيز

Sheet ورقة3
A1: تاريخ البدايه | B1: تاريخ النهايه | C1: عدد الايام | D1: عدد الشهور
A2: 2020-01-01 | B2: =TODAY() -> 2020-05-21
